Workbook

Sheet LDC Info
AA3: Algoma Power Inc.
AA4: Atikokan Hydro Inc.
AA5: Attawapiskat Power Corporation
AA6: Bluewater Power Distribution Corporation
AA7: Brant County Power Inc.
AA8: Brantford Power Inc.
AA9: Burlington Hydro Inc.
AA10: Cambridge and North Dumfries Hydro Inc.
AA11: Canadian Niagara Power Inc.
AA12: Centre Wellington Hydro Ltd.
AA13: Chapleau Public Utilities Corporation
D14: Utility Name | E14: Renfrew Hydro Inc. | AA14: COLLUS PowerStream Corp.
AA15: Cooperative Hydro Embrun Inc.
D16: Assigned EB Number | E16: EB-2016-0166 | AA16: E.L.K. Energy Inc.
AA17: Enersource Hydro Mississauga Inc.
D18: Name of Contact and Title | E18: Bill Nippard | AA18: Entegrus Powerlines Inc.
AA19: EnWin Utilities Ltd.
D20: Phone Number | AA20: Erie Thames Powerlines Corporation
AA21: Espanola Regional Hydro Distribution Corporation
D22: Email Address | AA22: Essex Powerlines Corporation
AA23: Festival Hydro Inc.
D24: Test Year | E24: 2017 | AA24: Fort Albany Power Corporation
AA25: Fort Frances Power Corporation
D26: Bridge Year | E26: =IF(ISBLANK(E24), "", E24-1) -> 2016 | AA26: Greater Sudbury Hydro Inc.
AA27: Grimsby Power Inc.
D28: Last Rebasing Year | E28: 2010 | AA28: Guelph Hydro Electric Systems Inc.
AA29: Haldimand County Hydro Inc.
A30: Identify the accounting standard used for the test year | AA30: Halton Hills Hydro Inc.
E31: MIFRS | AA31: Hearst Power Distribution Company Limited
AA32: Horizon Utilities Corporation
A33: Did you update your depreciation and capitalization policies? | AA33: Hydro 2000 Inc.
E34: Yes | AA34: Hydro Hawkesbury Inc.
AA35: Hydro One Brampton Networks Inc.
A36: When did you update your depreciation and capitalization policies? | AA36: Hydro One Networks Inc.
E37: 2001-01-01 | F37: 2013 | AA37: Hydro One Remote Communities Inc.
AA38: Hydro Ottawa Limited
A39: Identify the year that the applicant has adopted or is expected to adopt IFRS for financial reporting purposes | AA39: Innpower Corporation
E40: 2015 or Later | AA40: Kashechewan Power Corporation
AA41: Kenora Hydro Electric Corporation Ltd.
AA42: Kingston Hydro Corporation
A43: Are you applying for cost recovery for the test and/or future year(s) for Green Energy initiatives? | AA43: Kitchener-Wilmot Hydro Inc.
E44: No | AA44: Lakefront Utilities Inc.
AA45: Lakeland Power Distribution Ltd.
A46: ="Is " & E14 & " an embedded distributor?" -> Is Renfrew Hydro Inc. an embedded distributor? | E46: Yes | AA46: London Hydro Inc.
AA47: Midland Power Utility Corporation
AA48: Milton Hydro Distribution Inc.
B49: Notes | AA49: Newmarket-Tay Power Distribution Ltd.
AA50: Niagara Peninsula Energy Inc.
C51: Pale green cells represent input cells. | AA51: Niagara-on-the-Lake Hydro Inc.
AA52: Norfolk Power Distribution Inc.
C53: Pale blue cells represent drop-down lists. The applicant should select the appropriate item from the drop-down list. | AA53: North Bay Hydro Distribution Limited
AA54: Northern Ontario Wires Inc.
C55: White cells contain fixed values, automatically generated values or formulae. | AA55: Oakville Hydro Electricity Distribution Inc.
AA56: Orangeville Hydro Limited
AA57: Orillia Power Distribution Corporation
AA58: Oshawa PUC Networks Inc.
AA59: Ottawa River Power Corporation
AA60: Peterborough Distribution Incorporated
AA61: PowerStream Inc.
AA62: PUC Distribution Inc.
AA63: Renfrew Hydro Inc.
AA64: Rideau St. Lawrence Distribution Inc.
AA65: Sioux Lookout Hydro Inc.
AA66: St. Thomas Energy Inc.
AA67: Thunder Bay Hydro Electricity Distribution Inc.
AA68: Tillsonburg Hydro Inc.
AA69: Toronto Hydro-Electric System Limited
AA70: Veridian Connections Inc.
AA71: Wasaga Distribution Inc.
AA72: Waterloo North Hydro Inc.
AA73: Welland Hydro-Electric System Corp.
AA74: Wellington North Power Inc.
AA75: West Coast Huron Energy Inc.
AA76: Westario Power Inc.
AA77: Whitby Hydro Electric Corporation
AA78: Woodstock Hydro Services Inc.

Sheet Index
A15: 1 | B15: LDC Information Sheet | E15: 28 | F15: App.2-G: Service Reliability Indicators
A16: 2 | B16: Index | E16: 29 | F16: App.2-H: Other Operating Revenue
A17: 3 | B17: Cost of Service Application Flowchart | E17: 30 | F17: App.2-I: Load Forecast CDM Adjustment Workform
A18: 4 | B18: List of Key References | E18: 31 | F18: App.2-IA: Actual and Forecast Load and Customer Data
A19: 5 | B19: App.2-AA: Capital Projects Table | E19: 32 | F19: App.2-JA: OM&A Summary Analysis
A20: 6 | B20: App.2-AB: Capital Expenditures | E20: 33 | F20: App.2-JB: Recoverable OM&A Cost Driver Table
A21: 7 | B21: App. 2-AC: Customer Engagement Worksheet | E21: 34 | F21: App.2-JC: OM&A Programs Table
A22: 8 | B22: App.2-B: General Accounting Instructions | E22: 35 | F22: App.2-K: Employee Costs
A23: 9 | B23: App.2-BA: Fixed Asset Continuity Schedule | E23: 36 | F23: App.2-L: Recoverable OM&A Cost per Customer and per FTE
A24: 10 | B24: Appendix 2-BB: Service Life Comparison | E24: 37 | F24: App.2-M: Regulatory Costs Schedule
A25: 11 | B25: App.2-CA: 2012 Depreciation and Amortization Expense (Old CGAAP) | E25: 38 | F25: App.2-N: Shared Servcies and Corporate Cost Allocation
A26: 12 | B26: App.2-CB: 2012 Depreciation and Amortization Expense (New CGAAP) | E26: 39 | F26: App.2-OA: Capital Structure and Cost of Capital
A27: 13 | B27: App.2-CC: 2013 Depreciation and Amortization Expense (New CGAAP) | E27: 40 | F27: App.2-OB: Debt Instruments
A28: 14 | B28: App.2-CD: 2014 Depreciation and Amortization Expense (MIFRS) | E28: 41 | F28: App.2-P: Cost Allocation
A29: 15 | B29: App.2-CE: 2015 Depreciation and Amortization Expense (MIFRS) | E29: 42 | F29: App.2-PA: New Rate Design Policy For Residential Customers
A30: 16 | B30: App.2-CF: 2015 Depreciation and Amortization Expense (MIFRS) | E30: 43 | F30: App.2-Q: Cost of Serving Embedded Distributor(s)
A31: 17 | B31: App.2-CG: 2013 Depreciation and Amortization Expense (Old CGAAP) | E31: 44 | F31: App.2-R: Loss Factors
A32: 18 | B32: App.2-CH: 2013 Depreciation and Amortization Expense (New CGAAP) | E32: 45 | F32: App.2-S: Stranded Meter Treatment
A33: 19 | B33: App.2-CI: 2014 Depreciation and Amortization Expense (MIFRS) | E33: 46 | F33: App.2-TA: Account 1592, PILs and Tax Variances
A34: 20 | B34: App.2-CJ: 2015 Depreciation and Amortization Expense (MIFRS) | E34: 47 | F34: App.2-TB: Account 1592, HST-OVAT Input Tax Credits
A35: 21 | B35: App.2-CK: 2016 Depreciation and Amortization Expense (MIFRS) | E35: 48 | F35: App.2-U: One-Time Incremental IFRS Transition Costs
A36: 22 | B36: App.2-D: Overhead Expenses | E36: 49 | F36: App.2-V: Revenue Reconciliation
A37: 23 | B37: App.2-EA: Account 1575 PP&E Deferral Account (2015 IFRS Adopters) | E37: 50 | F37: App.2-W: Bill Impacts
A38: 24 | B38: App.2-EB: Account 1576 - Accounting Changes Under CGAAP (2012 Changes) | E38: 51 | F38: App.2-Y: Transition to MIFRS Summary Impact
A39: 25 | B39: App.2-EC: Account 1576 - Accounting Changes Under CGAAP (2013 Changes) | E39: 52 | F39: App. 2-Z: Tariff Schedule
A40: 26 | B40: App.2-FA: Renewable Generation Connection Investment Summary
A41: 27 | B41: App.2-FB: Calculation of Renewable Generation Connection Direct Benefits/Provincial Amount: Renewable Enabling Improvement Investments
A42: 28 | B42: App.2-FC: Calculation of Renewable Generation Connection Direct Benefits/Provincial Amount: Renewable Expansion Investments

Sheet COS Flowchart
B4: Cost of Service Rate Application Schematic
B6: The Cost of Service Rate Application Schematic is a flowchart appended to Chapter 2 of the Filing Requirements as a guide for the components of an application and how demand and costs interrelate to derive the revenue requirement and then how the revenue requirement is allocated between classes and through fixed/variable splits to derive rates that will be compensatory for the annual revenue requirement, based on the the forecasted demand. There is no form to be filled out; therefore, this Schedule is not required to be filed.

Sheet List of Key References
B3: List of Key References
A5: A list of key references for understanding the Filing Requirements has been embedded in the document below. To access the list of references and associated hyperlinks double-click the icon below.

Sheet App.2-AA_Capital Projects
F1: File Number: | G1: =EBNUMBER -> EB-2016-0166
F2: Exhibit:
F3: Tab:
F4: Schedule:
F5: Page:
F7: Date:
A9: Appendix 2-AA
A10: Capital Projects Table
A12: Reporting Basis | B12: Reporting Basis | C12: CGAAP | D12: CGAAP | E12: CGAAP | F12: NEWGAAP | G12: NEWGAAP | H12: MIFRS | I12: MIFRS | J12: MIFRS
A13: Projects | B13: Projects | C13: ='[4]0.1 LDC Info'!$E$27 -> 2010 | D13: ='[4]0.1 LDC Info'!$E$27+1 -> 2011 | E13: ='[4]0.1 LDC Info'!$E$27+2 -> 2012 | F13: ='[4]0.1 LDC Info'!$E$27+3 -> 2013 | G13: ='[4]0.1 LDC Info'!$E$27+4 -> 2014 | H13: ='[4]0.1 LDC Info'!$E$27+5 -> 2015 | I13: =Bridge_Year -> 2016 | J13: =Test_Year -> 2017
A15: System Access | B15: System Access
B16: Underground | C16: 3041 | D16: 12837 | E16: 10518 | G16: 4739 | H16: 4321 | J16: 15000.3
B17: New Coleraine Subdivision | E17: 85502
B18: Riverview extension | F18: 19282
B19: Coleraine Subdivision | F19: 26320
B20: RVH - building 2 | F20: 16291
B21: Hunter Gate - phase 3 | F21: 82050
B22: OPG new office | G22: 25804
B23: O'Brien Office | G23: 10166
B24: Hunter Gate - phase 4 | I24: 102000
B25: Easement | I25: 3000
A31: Contributed Capital | B31: Capital Contributions - Coleraine | F31: -24600
B32: Capital Contributions - | I32: -10000 | J32: -10000
B36: Sub-Total System Access - Contributed Capital
A37: Sub-Total System Access | B37: =A37 -> Sub-Total System Access | C37: =SUM(C16:C30)+SUM(C32:C35) -> 3041 | D37: 12837 | E37: 96020 | F37: =SUM(F16:F30)+SUM(F31:F35) -> 119343 | G37: =SUM(G16:G30)+SUM(G32:G35) -> 40709 | H37: =SUM(H16:H30)+SUM(H32:H35) -> 4321 | I37: 95000 | J37: 5000.3
A39: Explanatory Notes on Projects
A40: Notes on System Access
A49: System Renewal | B49: System Renewal | C49: =$C$12 -> CGAAP | D49: =$D$12 -> CGAAP | E49: =$E$12 -> CGAAP | F49: =$F$12 -> NEWGAAP | G49: =$G$12 -> NEWGAAP | H49: =$H$12 -> MIFRS | I49: =$I$12 -> MIFRS | J49: =$J$12 -> MIFRS
B50: General replacement and renewal | C50: 172629 | D50: 97635 | E50: 126672 | F50: 109633.78 | G50: 104269.22 | H50: 165992 | I50: 176000 | J50: 154000
B51: MS-4 pole fire | C51: 169188
B52: MS-2 transformer | C52: 141933
B53: Plaunt St. rebuild | D53: 323519
B54: Bonnechere Feeder | E54: 159270.8
B55: Moore St. Rebuild | F55: 40190.97
B56: Stevenson Crescent | F56: 46766.75
B57: Argyle St. rebuild | G57: 109292.39
B58: Dominion/Barr St. | G58: 65905.41
B59: Gillan Rd - 44kv poles | H59: 147003
B60: Argyle St. | I60: 256000
B61: Raglan St N | J61: 171000
B62: MS-1 Reclosures | J62: 300000
A65: Contributed Capital
B66: Capital Contribution - Mac's Convenience | H66: -16382
B67: Capital Contribution | I67: -10000 | J67: -10000
B70: Sub-Total System Renewal - Contributed Capital
A71: Sub-Total System Renewal | B71: =A71 -> Sub-Total System Renewal | C71: =SUM(C50:C64)+SUM(C66:C69) -> 483750 | D71: 421154 | E71: 285942.8 | F71: 196591.5 | G71: =SUM(G50:G64)+SUM(G66:G69) -> 279467.02 | H71: =SUM(H50:H64)+SUM(H66:H69) -> 296613 | I71: 422000 | J71: 615000
A73: Explanatory Notes on Projects
A74: Notes on System Renewal
A83: System Service | B83: System Service | C83: =$C$12 -> CGAAP | D83: =$D$12 -> CGAAP | E83: =$E$12 -> CGAAP | F83: =$F$12 -> NEWGAAP | G83: =$G$12 -> NEWGAAP | H83: =$H$12 -> MIFRS | I83: =$I$12 -> MIFRS | J83: =$J$12 -> MIFRS
B84: General | C84: 11176 | D84: 7551 | H84: 10407
B85: Meters | C85: 6617 | F85: 14490.6 | G85: 10278 | H85: 1884 | I85: 10000 | J85: 10000
B86: Install inline switch | E86: 3644.87
B87: Substation Monitoring | J87: 100000
A99: Contributed Capital
C100: 0 | D100: 0 | E100: 0 | F100: 0 | G100: 0 | H100: 0 | I100: 0 | J100: 0
B101: Capital Contribution - Mac's Convenience | H101: -1884
B104: Sub-Total System Service - Contributed Capital
A105: Sub-Total System Service | B105: =A105 -> Sub-Total System Service | C105: =SUM(C84:C98)+SUM(C100:C103) -> 17793 | D105: 7551 | E105: 3644.87 | F105: 14490.6 | G105: =SUM(G84:G98)+SUM(G100:G103) -> 10278 | H105: =SUM(H84:H98)+SUM(H100:H103) -> 10407 | I105: 10000 | J105: 110000
A107: Explanatory Notes on Projects
A108: Notes on System Service
A117: General Plant | B117: General Plant | C117: =$C$12 -> CGAAP | D117: =$D$12 -> CGAAP | E117: =$E$12 -> CGAAP | F117: =$F$12 -> NEWGAAP | G117: =$G$12 -> NEWGAAP | H117: =$H$12 -> MIFRS | I117: =$I$12 -> MIFRS | J117: =$J$12 -> MIFRS
B118: Computer | C118: 4448 | D118: 40204
B119: Software | C119: 6445
B120: Office renovation | C120: 11168
B121: Land rights/easements | C121: 6606
B122: Office renovation | D122: 15365
B123: MS1 - replace roof | D123: 21172
B124: 2009 Ford F550 | E124: 47264.18
B125: New Computer Server | E125: 6705
B126: Box for 2009 Ford | F126: 2500
B127: Dodge Journey | G127: 21744
B128: Computers | G128: 5437 | H128: 1918 | I128: 3000 | J128: 3000
B129: New location - Leasehold Improvements | H129: 116088 | I129: 10000
B130: New office equipment and furniture | H130: 21604
B131: Tools | H131: 625 | I131: 7500 | J131: 7500
B132: CIS - Software upgrade | H132: 39417
B133: Stores equipment | H133: 1731
B138: Project Description
A139: Contributed Capital
B144: Sub-Total General Plant - Contributed Capital
A145: Sub-Total General Plant | B145: =A145 -> Sub-Total General Plant | C145: =SUM(C118:C138)+SUM(C140:C143) -> 28667 | D145: 76741 | E145: 53969.18 | F145: 2500 | G145: 27181 | H145: 181383 | I145: 20500 | J145: 10500
A147: Total Capital Expenditures | C147: =C37+C71+C105+C145 -> 533251 | D147: 518283 | E147: 439576.85 | F147: 332925.1 | G147: 357635.02 | H147: 492724 | I147: 547500 | J147: 740500.3
A149: Reconciliation to yearly additions | C149: ='[4]2.6 Fixed Asset Cont Stmt'!E69 -> 0 | D149: ='[4]2.6 Fixed Asset Cont Stmt'!E138 -> 0 | E149: ='[4]2.6 Fixed Asset Cont Stmt'!E205 -> 0 | F149: ='[4]2.6 Fixed Asset Cont Stmt'!E297 -> 0 | G149: ='[4]2.6 Fixed Asset Cont Stmt'!E388 -> 0 | H149: ='[4]2.6 Fixed Asset Cont Stmt'!E475 -> 0 | I149: ='[4]2.6 Fixed Asset Cont Stmt'!E566 -> 0 | J149: ='[4]2.6 Fixed Asset Cont Stmt'!E659 -> 0
A150: Variance to yearly additions | C150: =C147-'[4]2.6 Fixed Asset Cont Stmt'!E66 -> 533251 | D150: =D147-'[4]2.6 Fixed Asset Cont Stmt'!E135 -> 518283 | E150: =E147-'[4]2.6 Fixed Asset Cont Stmt'!E202 -> 439576.85 | F150: =F147-'[4]2.6 Fixed Asset Cont Stmt'!E297 -> 332925.1 | G150: =G147-'[4]2.6 Fixed Asset Cont Stmt'!E388 -> 357635.02 | H150: =H147-'[4]2.6 Fixed Asset Cont Stmt'!E475 -> 492724 | I150: =+I147 -> 547500 | J150: =+J147 -> 740500.3

Sheet App.2-AB_Capital Expenditures
Y1: File Number: | AA1: =EBNUMBER -> EB-2016-0166
Y2: Exhibit:
Y3: Tab:
Y4: Schedule:
Y5: Page:
Y7: Date:
A9: Appendix 2-AB
A10: Table 2 - Capital Expenditure Summary from Chapter 5 Consolidated Distribution System Plan Filing Requirements
A12: First year of Forecast Period: | B12: =TestYear -> 2017
A13: CATEGORY | B13: Historical Period (previous plan1 & actual) | W13: Forecast Period (planned)
B14: 2010 | E14: 2011 | H14: 2012 | K14: 2013 | N14: 2014 | Q14: 2015 | T14: =W14-1 -> 2016 | W14: =B12 -> 2017 | X14: =W14+1 -> 2018 | Y14: =X14+1 -> 2019 | Z14: 2020 | AA14: 2021
B15: Plan | C15: Actual | D15: Var | E15: Plan | F15: Actual | G15: Var | H15: Plan | I15: Actual | J15: Var | K15: Plan | L15: Actual | M15: Var | N15: Plan | O15: Actual | P15: Var | Q15: Plan | R15: Actual | S15: Var | T15: Plan | U15: Actual2 | V15: Var
B16: $ | D16: % | E16: $ | G16: % | H16: $ | J16: % | K16: $ | M16: % | N16: $ | P16: % | Q16: $ | S16: % | T16: $ | V16: % | W16: $
A17: System Access | B17: 5000 | C17: 3041 | D17: =IF(ISERROR((C17-B17)/B17),"--",(C17-B17)/B17) -> -0.3918 | E17: 10000 | F17: 12837 | G17: =IF(ISERROR((F17-E17)/E17),"--",(F17-E17)/E17) -> 0.2837 | H17: 80000 | I17: 96020 | J17: =IF(ISERROR((I17-H17)/H17),"--",(I17-H17)/H17) -> 0.20025 | K17: 140000 | L17: =143943-24600 -> 119343 | M17: =IF(ISERROR((L17-K17)/K17),"--",(L17-K17)/K17) -> -0.14755 | N17: 40000 | O17: 40709 | P17: =IF(ISERROR((O17-N17)/N17),"--",(O17-N17)/N17) -> 0.017725 | Q17: 5000 | R17: 4321 | S17: =IF(ISERROR((R17-Q17)/Q17),"--",(R17-Q17)/Q17) -> -0.1358 | T17: 95000 | U17: 7398 | V17: =IF(ISERROR((U17-T17)/T17),"--",(U17-T17)/T17) -> -0.9221263158 | W17: 5000 | X17: 35000 | Y17: 129000 | Z17: 10000 | AA17: 10000
A18: System Renewal | B18: 450479 | C18: 483750 | D18: =IF(ISERROR((C18-B18)/B18),"--",(C18-B18)/B18) -> 0.07385693895 | E18: 360000 | F18: 421154 | G18: =IF(ISERROR((F18-E18)/E18),"--",(F18-E18)/E18) -> 0.1698722222 | H18: 297537 | I18: 285942.8 | J18: =IF(ISERROR((I18-H18)/H18),"--",(I18-H18)/H18) -> -0.03896725449 | K18: 265000 | L18: 196592 | M18: =IF(ISERROR((L18-K18)/K18),"--",(L18-K18)/K18) -> -0.2581433962 | N18: 339500 | O18: 279467 | P18: =IF(ISERROR((O18-N18)/N18),"--",(O18-N18)/N18) -> -0.1768276878 | Q18: 368000 | R18: 296613 | S18: =IF(ISERROR((R18-Q18)/Q18),"--",(R18-Q18)/Q18) -> -0.193986413 | T18: 422000 | U18: =82605+26282 -> 108887 | V18: =IF(ISERROR((U18-T18)/T18),"--",(U18-T18)/T18) -> -0.7419739336 | W18: 615000 | X18: 335000 | Y18: 380000 | Z18: 385000 | AA18: 350000
A19: System Service | B19: 15520 | C19: 17793 | D19: =IF(ISERROR((C19-B19)/B19),"--",(C19-B19)/B19) -> 0.1464561856 | E19: 5000 | F19: 7551 | G19: 0.5102 | H19: 3500 | I19: 3644.87 | J19: =IF(ISERROR((I19-H19)/H19),"--",(I19-H19)/H19) -> 0.04139142857 | K19: 25000 | L19: 14491 | M19: -0.42036 | N19: 15000 | O19: 10278 | P19: -0.3148 | Q19: 17000 | R19: 10407 | S19: -0.3878235294 | T19: 10000 | U19: 0 | V19: -1 | W19: 110000 | X19: 20000 | Y19: 5000 | Z19: 5000 | AA19: 10000
A20: General Plant | B20: 46000 | C20: 28667 | D20: =IF(ISERROR((C20-B20)/B20),"--",(C20-B20)/B20) -> -0.3768043478 | E20: 85000 | F20: 76741 | G20: -0.09716470588 | H20: 57700 | I20: 53969.18 | J20: =IF(ISERROR((I20-H20)/H20),"--",(I20-H20)/H20) -> -0.06465892548 | K20: 0 | L20: 2500 | M20: -- | N20: 42000 | O20: 27181 | P20: -0.3528333333 | Q20: 100000 | R20: 181383 | S20: 0.81383 | T20: 20500 | U20: =3952+1314+7505+14962 -> 27733 | V20: 0.3528292683 | W20: 10500 | X20: 360500 | Y20: 10500 | Z20: 10500 | AA20: 20000
B21: 0 | C21: 0 | D21: =IF(ISERROR((C21-B21)/B21),"--",(C21-B21)/B21) -> -- | E21: 0 | F21: 0 | G21: -- | H21: 0 | I21: 0 | J21: =IF(ISERROR((I21-H21)/H21),"--",(I21-H21)/H21) -> -- | K21: 0 | L21: 0 | M21: -- | N21: 0 | O21: 0 | P21: =IF(ISERROR((O21-N21)/N21),"--",(O21-N21)/N21) -> -- | Q21: 0 | S21: =IF(ISERROR((R21-Q21)/Q21),"--",(R21-Q21)/Q21) -> -- | T21: 0 | U21: 0 | V21: =IF(ISERROR((U21-T21)/T21),"--",(U21-T21)/T21) -> --
A22: TOTAL EXPENDITURE | B22: =SUM(B17:B20) -> 516999 | C22: =SUM(C17:C20) -> 533251 | D22: =IF(ISERROR((C22-B22)/B22),"--",(C22-B22)/B22) -> 0.0314352639 | E22: =SUM(E17:E20) -> 460000 | F22: 518283 | G22: =IF(ISERROR((F22-E22)/E22),"--",(F22-E22)/E22) -> 0.1267021739 | H22: =SUM(H17:H20) -> 438737 | I22: 439576.85 | J22: =IF(ISERROR((I22-H22)/H22),"--",(I22-H22)/H22) -> 0.001914244753 | K22: =SUM(K17:K20) -> 430000 | L22: 332926 | M22: =IF(ISERROR((L22-K22)/K22),"--",(L22-K22)/K22) -> -0.2257534884 | N22: 436500 | O22: 357635 | P22: =IF(ISERROR((O22-N22)/N22),"--",(O22-N22)/N22) -> -0.1806758305 | Q22: 490000 | R22: =SUM(R17:R20) -> 492724 | S22: =IF(ISERROR((R22-Q22)/Q22),"--",(R22-Q22)/Q22) -> 0.005559183673 | T22: 547500 | U22: 144018 | V22: -0.7369534247 | W22: 740500 | X22: 750500 | Y22: 524500 | Z22: =SUM(Z17:Z20) -> 410500 | AA22: =SUM(AA17:AA20) -> 390000
A23: System O&M | C23: ='App.2-JA_OM&A_Summary_Analys'!C25 -> 1041099.11 | D23: =IF(ISERROR((C23-B23)/B23),"--",(C23-B23)/B23) -> -- | F23: ='App.2-JA_OM&A_Summary_Analys'!D25 -> 1143712.54 | G23: -- | I23: ='App.2-JA_OM&A_Summary_Analys'!E25 -> 1202038.92 | J23: -- | L23: ='App.2-JA_OM&A_Summary_Analys'!F25 -> 1254895.88 | M23: -- | O23: ='App.2-JA_OM&A_Summary_Analys'!G25 -> 1240159.42 | P23: -- | R23: ='App.2-JA_OM&A_Summary_Analys'!H25 -> 1330158.2 | S23: -- | U23: ='App.2-JA_OM&A_Summary_Analys'!I25 -> 1427921.08 | V23: -- | W23: ='App.2-JA_OM&A_Summary_Analys'!J25 -> 1549280 | X23: =+W23*1.03 -> 1595758.4
A25: Notes to the Table:
A26: 1. Historical “previous plan” data is not required unless a plan has previously been filed
A27: 2. Indicate the number of months of 'actual' data included in the last year of the Historical Period (normally a 'bridge' year):
A29: Explanatory Notes on Variances (complete only if applicable)
A30: Notes on shifts in forecast vs. historical budgets by category
A31: The variance between the 2010 budget and actual reflects only a 3.1% difference or $16,252.
A33: Notes on year over year Plan vs. Actual variances for Total Expenditures
A34: The variance between the 2011 budget and actual reflects a 12.7% difference or $58,283.
A36: Notes on Plan vs. Actual variance trends for individual expenditure categories
A37: For 2012 there is no material difference between the budget and actual.
A39: Notes on Plan vs. Actual variance trends for individual expenditure categories
A40: The variance between the 2013 budget and 2013 actual shows a variance of 22.6% or (97,074). There were two main contributors to the variance. There was a delay in completing one of the capital jobs resulting in a work in progress balance of $25,804 at the end of 2013. There were also capital contributions totalling $24,600 during the year which also lowered the net capital expenditures.
A43: Notes on Plan vs. Actual variance trends for individual expenditure categories
A44: The variance between the 2014 budget and 2014 actual shows a variance of 18.1%, or (78,865). One of the main causes for the variance was a delay in finishing one of the capital projects which resulted in a 2014 work in progress balance of $43,483.
A47: Notes on Plan vs. Actual variance trends for individual expenditure categories
A48: For 2015 there is no material difference between the overall budget and actual. The office and operations moved to a new location during 2015. More than the original budget for leasehold improvements was required for the move, and a necessary computer software upgrade also increased the General Plant category over the original budget.
A51: Notes on Plan vs. Actual variance trends for individual expenditure categories
A52: For 2016 - The Actual reflects capital expenditures up to June 30, 2016 (6 months). A large System Access Underground capital project (Huntergate Subdivision) has been delayed by the developer, and therefore no capital expenditures to date. A budget was set up of $102,000 for this project. In System Renewal, new transformers, poles and overhead wire are scheduled to be installed for a large capital job in Q3 and Q4.

Sheet App. 2-AC_Customer Engagement
B1: File Number:
B2: Exhibit:
B3: Tab:
B4: Schedule:
B5: Page:
B7: Date:
A9: Appendix 2-AC
A10: Customer Engagement Activities Summary
A12: Provide a list of customer engagement activities | B12: Provide a list of customer needs and preferences identified through each engagement activity | C12: Actions taken to respond to identified needs and preferences. If no action was taken, explain why.
A13: Public Consultation/Open House | B13: Lower Rates | C13: Manage expenses diligently. Request bill impacts for deferral/variance accounts over a longer timeframes
B14: Make Bills easier to understand | C14: We explain bills one on one with customers where possible
B15: Easier access to government programs for electrical rebates and CDM programs | C15: Assist customers one on one. Provide numerous bill inserts on OESP Program. Liaison with LEAP intake agency to assist low income customers. Participate in local home show to promote CDM initiatives and coupons
A16: Electrical Safety Awareness and Customer Statisfaction Surveys | B16: Overall concern with rates and where they are heading | C16: Doing our best to mitigate rates but some costs are outside LDC control
B17: Gernerally satisfied with service | C17: Service and safety remain our top priority. Customers equate reliability with safety as it is an essential service
B18: General public is knowledgealbe of electrical hazards | C18: No concerns at this time
A19: Counter Service and direct customer interaction | B19: Information on OESP, OCEB, help paying bills | C19: Help customers by providing brochures, bill inserts, updates to website, and through customer service interaction
B20: Rate change info, TOU info | C20: OEB insert, website, fridge magnets, info at counter
B21: High Bills | C21: Review bill history, help customers apply CDM and equal payment plans, educate on TOU. Provide customers with details on how to view their energy consumption online
A22: CDM and Environmental Awareness materials through mail, front counter, and Home Show interactions | B22: How to save energy, home efficiency | C22: saveOnenergy coupons, website
B23: Upgrade incentives | C23: Homeshow Displays
B24: Retailer information/warnings | C24: Front counter interactions
B25: Coupons, customer connect | C25: RHI website, Homeshow posters and handouts & Counter Interaction
A45: Note: Use "ALT-ENTER" to go to the next line within a cell

Sheet App.2-FB Calc of REG Improvemnt
N1: File Number: | O1: =EBNUMBER -> EB-2016-0166
A2: NOT APPLICABLE | N2: Exhibit:
N3: Tab:
N4: Schedule:
N5: Page:
N7: Date:
A9: Appendix 2-FB
A10: Calculation of Renewable Generation Connection Direct Benefits/Provincial Amount: Renewable Enabling Improvement Investments
A12: This table will calculate the distributor/provincial shares of the investments entered in Part A of Appendix 2-FA.
A13: Enter values in green shaded cells: WCA percentage, debt percentages, interest rates, kWh, tax rates, amortization period, CCA Class and percentage.
A14: For historical investments, enter these variables for your last cost of service test year. For 2016 and beyond, enter variables as in the application.
A15: Rate Riders are not calculated for Test Year as these assets and costs are already in the distributor's rate base/revenue requirement.
C17: 2012 | F17: 2013 | I17: 2014 | L17: 2015 | O17: 2016 Test Year | R17: 2017 | U17: 2018 | V17: 2016 | X17: 2019 | AA17: 2020
D18: Direct Benefit | E18: Provincial | G18: Direct Benefit | H18: Provincial | J18: Direct Benefit | K18: Provincial | M18: Direct Benefit | N18: Provincial | P18: Direct Benefit | Q18: Provincial | S18: Direct Benefit | T18: Provincial | V18: Direct Benefit | W18: Provincial | Y18: Direct Benefit | Z18: Provincial | AB18: Direct Benefit | AC18: Provincial
C19: Total | D19: 0.06 | E19: 0.94 | F19: Total | G19: 0.06 | H19: 0.94 | I19: Total | J19: 0.06 | K19: 0.94 | L19: Total | M19: 0.06 | N19: 0.94 | O19: Total | P19: 0.06 | Q19: 0.94 | R19: Total | S19: 0.06 | T19: 0.94 | U19: Total | V19: 0.06 | W19: 0.94 | X19: Total | Y19: 0.06 | Z19: 0.94 | AA19: Total | AB19: 0.06 | AC19: 0.94
A20: Net Fixed Assets (average) | C20: =D82 ->  | D20: =C20*D19 ->  | E20: =C20*E19 ->  | F20: =E82 ->  | G20: =F20*G19 ->  | H20: =F20*H19 ->  | I20: =F82 ->  | J20: =I20*J19 ->  | K20: =I20*K19 ->  | L20: =G82 ->  | M20: =L20*M19 ->  | N20: =L20*N19 ->  | O20: =H82 ->  | P20: =O20*P19 ->  | Q20: =O20*Q19 ->  | R20: =I82 ->  | S20: =R20*S19 ->  | T20: =R20*T19 ->  | U20: =J82 ->  | V20: =U20*V19 ->  | W20: =U20*W19 ->  | X20: =K82 ->  | Y20: =X20*Y19 ->  | Z20: =X20*Z19 ->  | AA20: =L82 ->  | AB20: =AA20*AB19 ->  | AC20: =AA20*AC19 -> 
A21: Incremental OM&A (on-going, N/A for Provincial Recovery) | C21: =#REF! ->  | D21: =C21 ->  | F21: =#REF! ->  | G21: =F21 ->  | I21: =#REF! ->  | J21: =I21 ->  | L21: =#REF! ->  | M21: =L21 ->  | O21: =#REF! ->  | P21: =O21 ->  | R21: =#REF! ->  | S21: =R21 ->  | U21: =#REF! ->  | V21: =U21 ->  | X21: =#REF! ->  | Y21: =X21 ->  | AA21: =#REF! ->  | AB21: =AA21 -> 
A22: Incremental OM&A (start-up, applicable for Provincial Recovery) | C22: =#REF! ->  | D22: =C22*D19 ->  | E22: =C22*E19 ->  | F22: =#REF! ->  | G22: =F22*G19 ->  | H22: =F22*H19 ->  | I22: =#REF! ->  | J22: =I22*J19 ->  | K22: =I22*K19 ->  | L22: =#REF! ->  | M22: =L22*M19 ->  | N22: =L22*N19 ->  | O22: =#REF! ->  | P22: =O22*P19 ->  | Q22: =O22*Q19 ->  | R22: =#REF! ->  | S22: =R22*S19 ->  | T22: =R22*T19 ->  | U22: =#REF! ->  | V22: =U22*V19 ->  | W22: =U22*W19 ->  | X22: =#REF! ->  | Y22: =X22*Y19 ->  | Z22: =X22*Z19 ->  | AA22: =#REF! ->  | AB22: =AA22*AB19 ->  | AC22: =AA22*AC19 -> 
A23: WCA | D23: =(D21+D22)*$B$23 ->  | E23: =E22*$B$23 ->  | G23: =(G21+G22)*$B$23 ->  | H23: =H22*$B$23 ->  | J23: =(J21+J22)*$B$23 ->  | K23: =K22*$B$23 ->  | M23: =(M21+M22)*$B$23 ->  | N23: =N22*$B$23 ->  | P23: =(P21+P22)*$B$23 ->  | Q23: =Q22*$B$23 ->  | S23: =(S21+S22)*$B$23 ->  | T23: =T22*$B$23 ->  | V23: =(V21+V22)*$B$23 ->  | W23: =W22*$B$23 ->  | Y23: =(Y21+Y22)*$B$23 ->  | Z23: =Z22*$B$23 ->  | AB23: =(AB21+AB22)*$B$23 ->  | AC23: =AC22*$B$23 -> 
A24: Rate Base | D24: =SUM(D20+D23) ->  | E24: =SUM(E20+E23) ->  | G24: =SUM(G20+G23) ->  | H24: =SUM(H20+H23) ->  | J24: =SUM(J20+J23) ->  | K24: =SUM(K20+K23) ->  | M24: =SUM(M20+M23) ->  | N24: =SUM(N20+N23) ->  | P24: =SUM(P20+P23) ->  | Q24: =SUM(Q20+Q23) ->  | S24: =SUM(S20+S23) ->  | T24: =SUM(T20+T23) ->  | V24: =SUM(V20+V23) ->  | W24: =SUM(W20+W23) ->  | Y24: =SUM(Y20+Y23) ->  | Z24: =SUM(Z20+Z23) ->  | AB24: =SUM(AB20+AB23) ->  | AC24: =SUM(AC20+AC23) -> 
A27: Deemed ST Debt | D27: =D24*$B$27 ->  | E27: =E24*$B$27 ->  | G27: =G24*$B$27 ->  | H27: =H24*$B$27 ->  | J27: =J24*$B$27 ->  | K27: =K24*$B$27 ->  | M27: =M24*$B$27 ->  | N27: =N24*$B$27 ->  | P27: =P24*$B$27 ->  | Q27: =Q24*$B$27 ->  | S27: =S24*$B$27 ->  | T27: =T24*$B$27 ->  | V27: =V24*$B$27 ->  | W27: =W24*$B$27 ->  | Y27: =Y24*$B$27 ->  | Z27: =Z24*$B$27 ->  | AB27: =AB24*$B$27 ->  | AC27: =AC24*$B$27 -> 
A28: Deemed LT Debt | D28: =D24*$B$28 ->  | E28: =E24*$B$28 ->  | G28: =G24*$B$28 ->  | H28: =H24*$B$28 ->  | J28: =J24*$B$28 ->  | K28: =K24*$B$28 ->  | M28: =M24*$B$28 ->  | N28: =N24*$B$28 ->  | P28: =P24*$B$28 ->  | Q28: =Q24*$B$28 ->  | S28: =S24*$B$28 ->  | T28: =T24*$B$28 ->  | V28: =V24*$B$28 ->  | W28: =W24*$B$28 ->  | Y28: =Y24*$B$28 ->  | Z28: =Z24*$B$28 ->  | AB28: =AB24*$B$28 ->  | AC28: =AC24*$B$28 -> 
A29: Deemed Equity | D29: =D24*$B$29 ->  | E29: =E24*$B$29 ->  | G29: =G24*$B$29 ->  | H29: =H24*$B$29 ->  | J29: =J24*$B$29 ->  | K29: =K24*$B$29 ->  | M29: =M24*$B$29 ->  | N29: =N24*$B$29 ->  | P29: =P24*$B$29 ->  | Q29: =Q24*$B$29 ->  | S29: =S24*$B$29 ->  | T29: =T24*$B$29 ->  | V29: =V24*$B$29 ->  | W29: =W24*$B$29 ->  | Y29: =Y24*$B$29 ->  | Z29: =Z24*$B$29 ->  | AB29: =AB24*$B$29 ->  | AC29: =AC24*$B$29 -> 
A31: ST Interest | D31: =D27*$B31 ->  | E31: =E27*$B31 ->  | G31: =G27*$B31 ->  | H31: =H27*$B31 ->  | J31: =J27*$B31 ->  | K31: =K27*$B31 ->  | M31: =M27*$B31 ->  | N31: =N27*$B31 ->  | P31: =P27*$B31 ->  | Q31: =Q27*$B31 ->  | S31: =S27*$B31 ->  | T31: =T27*$B31 ->  | V31: =V27*$B31 ->  | W31: =W27*$B31 ->  | Y31: =Y27*$B31 ->  | Z31: =Z27*$B31 ->  | AB31: =AB27*$B31 ->  | AC31: =AC27*$B31 -> 
A32: LT Interest | D32: =D28*$B32 ->  | G32: =G28*$B32 ->  | J32: =J28*$B32 ->  | M32: =M28*$B32 ->  | P32: =P28*$B32 ->  | S32: =S28*$B32 ->  | V32: =V28*$B32 ->  | Y32: =Y28*$B32 ->  | AB32: =AB28*$B32 -> 
A33: ROE
A34: Cost of Capital Total | D34: =SUM(D31:D33) ->  | E34: =SUM(E31:E33) ->  | G34: =SUM(G31:G33) ->  | H34: =SUM(H31:H33) ->  | J34: =SUM(J31:J33) ->  | K34: =SUM(K31:K33) ->  | M34: =SUM(M31:M33) ->  | N34: =SUM(N31:N33) ->  | P34: =SUM(P31:P33) ->  | Q34: =SUM(Q31:Q33) ->  | S34: =SUM(S31:S33) ->  | T34: =SUM(T31:T33) ->  | V34: =SUM(V31:V33) ->  | W34: =SUM(W31:W33) ->  | Y34: =SUM(Y31:Y33) ->  | Z34: =SUM(Z31:Z33) ->  | AB34: =SUM(AB31:AB33) ->  | AC34: =SUM(AC31:AC33) -> 
A36: OM&A | D36: =D21+D22 ->  | E36: =E22 ->  | G36: =G21+G22 ->  | H36: =H22 ->  | J36: =J21+J22 ->  | K36: =K22 ->  | M36: =M21+M22 ->  | N36: =N22 ->  | P36: =P21+P22 ->  | Q36: =Q22 ->  | S36: =S21+S22 ->  | T36: =T22 ->  | V36: =V21+V22 ->  | W36: =W22 ->  | Y36: =Y21+Y22 ->  | Z36: =Z22 ->  | AB36: =AB21+AB22 ->  | AC36: =AC22 -> 
A37: Amortization | C37: =D77 ->  | D37: =C37*D$19 ->  | E37: =C37*E$19 ->  | F37: =E77 ->  | G37: =F37*G$19 ->  | H37: =F37*H$19 ->  | I37: =F77 ->  | J37: =I37*J$19 ->  | K37: =I37*K$19 ->  | L37: =G77 ->  | M37: =L37*M$19 ->  | N37: =L37*N$19 ->  | O37: =H77 ->  | P37: =O37*P$19 ->  | Q37: =O37*Q$19 ->  | R37: =I76+I77 ->  | S37: =R37*S$19 ->  | T37: =R37*T$19 ->  | U37: =J76+J77 ->  | V37: =U37*V$19 ->  | W37: =U37*W$19 ->  | X37: =K76+K77 ->  | Y37: =X37*Y$19 ->  | Z37: =X37*Z$19 ->  | AA37: =L76+L77 ->  | AB37: =AA37*AB$19 ->  | AC37: =AA37*AC$19 -> 
A38: Grossed-up PILs | D38: =D65 ->  | E38: =E65 ->  | G38: =G65 ->  | H38: =H65 ->  | J38: =J65 ->  | K38: =K65 ->  | M38: =M65 ->  | N38: =N65 ->  | P38: =P65 ->  | Q38: =Q65 ->  | S38: =S65 ->  | T38: =T65 ->  | V38: =V65 ->  | W38: =W65 ->  | Y38: =Y65 ->  | Z38: =Z65 ->  | AB38: =AB65 ->  | AC38: =AC65 -> 
A40: Revenue Requirement | D40: =SUM(D34:D38) ->  | E40: =SUM(E34:E38) ->  | G40: =SUM(G34:G38) ->  | H40: =SUM(H34:H38) ->  | J40: =SUM(J34:J38) ->  | K40: =SUM(K34:K38) ->  | M40: =SUM(M34:M38) ->  | N40: =SUM(N34:N38) ->  | P40: =SUM(P34:P38) ->  | Q40: =SUM(Q34:Q38) ->  | S40: =SUM(S34:S38) ->  | T40: =SUM(T34:T38) ->  | V40: =SUM(V34:V38) ->  | W40: =SUM(W34:W38) ->  | Y40: =SUM(Y34:Y38) ->  | Z40: =SUM(Z34:Z38) ->  | AB40: =SUM(AB34:AB38) ->  | AC40: =SUM(AC34:AC38) -> 
A43: Provincial Rate Protection | E43: =E40 ->  | H43: =H40 ->  | K43: =K40 ->  | N43: =N40 ->  | Q43: =Q40 ->  | T43: =T40 ->  | W43: =W40 ->  | Z43: =Z40 ->  | AC43: =AC40 -> 
A45: Monthly Amount Paid by IESO | E45: =E43/12 ->  | H45: =H43/12 ->  | K45: =K43/12 ->  | N45: =N43/12 ->  | Q45: =Q43/12 ->  | T45: =T43/12 ->  | W45: =W43/12 ->  | Z45: =Z43/12 ->  | AC45: =AC43/12 -> 
A47: Note 1: The difference between the actual costs of approved eligible investments and revenue received from the IESO should be recorded in a variance account. The Board may provide
A48: regulatory accounting guidance regarding a variance account either in an individual proceeding or on a generic basis.
A49: Note 2: For the 2016 Test Year, Costs and Revenues of the Direct Benefit are to be included in the test year applicant Rate Base and Revenues.
A51: PILs Calculation
D52: 2012 | G52: 2013 | J52: 2014 | M52: 2015 | P52: 2016 | S52: =P52+1 -> 2017 | V52: =S52+1 -> 2018 | Y52: =V52+1 -> 2019 | AB52: =Y52+1 -> 2020
A53: Income Tax | D53: Direct Benefit | E53: Provincial | G53: Direct Benefit | H53: Provincial | J53: Direct Benefit | K53: Provincial | M53: Direct Benefit | N53: Provincial | P53: Direct Benefit | Q53: Provincial | S53: Direct Benefit | T53: Provincial | V53: Direct Benefit | W53: Provincial | Y53: Direct Benefit | Z53: Provincial | AB53: Direct Benefit | AC53: Provincial
X54: Total | AA54: Total
A55: Net Income - ROE on Rate Base | D55: =D33 ->  | E55: =E33 ->  | G55: =G33 ->  | H55: =H33 ->  | J55: =J33 ->  | K55: =K33 ->  | M55: =M33 ->  | N55: =N33 ->  | P55: =P33 ->  | Q55: =Q33 ->  | S55: =S33 ->  | T55: =T33 ->  | V55: =V33 ->  | W55: =W33 ->  | Y55: =Y33 ->  | Z55: =Z33 ->  | AB55: =AB33 ->  | AC55: =AC33 -> 
A56: Amortization (6% DB and 94% P) | D56: =D37 ->  | E56: =E37 ->  | G56: =G37 ->  | H56: =H37 ->  | J56: =J37 ->  | K56: =K37 ->  | M56: =M37 ->  | N56: =N37 ->  | P56: =P37 ->  | Q56: =Q37 ->  | S56: =S37 ->  | T56: =T37 ->  | V56: =V37 ->  | W56: =W37 ->  | Y56: =Y37 ->  | Z56: =Z37 ->  | AB56: =AB37 ->  | AC56: =AC37 -> 
A57: CCA (6% DB and 94% P) | D57: =-D94*D$19 ->  | E57: =-D94*E$19 ->  | G57: =-E94*G19 ->  | H57: =-E94*H$19 ->  | J57: =-F94*J$19 ->  | K57: =-F94*K$19 ->  | M57: =-G94*M$19 ->  | N57: =-G94*N$19 ->  | P57: =-H94*P$19 ->  | Q57: =-H94*Q$19 ->  | S57: =-I94*S$19 ->  | T57: =-I94*T$19 ->  | V57: =-J94*V$19 ->  | W57: =-J94*W$19 ->  | Y57: =-K94*Y$19 ->  | Z57: =-K94*Z$19 ->  | AB57: =-L94*AB$19 ->  | AC57: =-L94*AC$19 -> 
A58: Taxable income | D58: =SUM(D55:D57) ->  | E58: =SUM(E55:E57) ->  | G58: =SUM(G55:G57) ->  | H58: =SUM(H55:H57) ->  | J58: =SUM(J55:J57) ->  | K58: =SUM(K55:K57) ->  | M58: =SUM(M55:M57) ->  | N58: =SUM(N55:N57) ->  | P58: =SUM(P55:P57) ->  | Q58: =SUM(Q55:Q57) ->  | S58: =SUM(S55:S57) ->  | T58: =SUM(T55:T57) ->  | V58: =SUM(V55:V57) ->  | W58: =SUM(W55:W57) ->  | Y58: =SUM(Y55:Y57) ->  | Z58: =SUM(Z55:Z57) ->  | AB58: =SUM(AB55:AB57) ->  | AC58: =SUM(AC55:AC57) -> 
A60: Tax Rate (to be entered)
A62: Income Taxes Payable | D62: =D58*D60 ->  | E62: =E58*E60 ->  | G62: =G58*G60 ->  | H62: =H58*H60 ->  | J62: =J58*J60 ->  | K62: =K58*K60 ->  | M62: =M58*M60 ->  | N62: =N58*N60 ->  | P62: =P58*P60 ->  | Q62: =Q58*Q60 ->  | S62: =S58*S60 ->  | T62: =T58*T60 ->  | V62: =V58*V60 ->  | W62: =W58*W60 ->  | Y62: =Y58*Y60 ->  | Z62: =Z58*Z60 ->  | AB62: =AB58*AB60 ->  | AC62: =AC58*AC60 -> 
A63: Gross Up
A64: Income Taxes Payable | D64: =D62/(1-D60) ->  | E64: =E62/(1-E60) ->  | G64: =G62/(1-G60) ->  | H64: =H62/(1-H60) ->  | J64: =J62/(1-J60) ->  | K64: =K62/(1-K60) ->  | M64: =M62/(1-M60) ->  | N64: =N62/(1-N60) ->  | P64: =P62/(1-P60) ->  | Q64: =Q62/(1-Q60) ->  | S64: =S62/(1-S60) ->  | T64: =T62/(1-T60) ->  | V64: =V62/(1-V60) ->  | W64: =W62/(1-W60) ->  | Y64: =Y62/(1-Y60) ->  | Z64: =Z62/(1-Z60) ->  | AB64: =AB62/(1-AB60) ->  | AC64: =AC62/(1-AC60) -> 
A65: Grossed Up PILs | D65: =SUM(D64:D64) ->  | E65: =SUM(E64:E64) ->  | G65: =SUM(G64:G64) ->  | H65: =SUM(H64:H64) ->  | J65: =SUM(J64:J64) ->  | K65: =SUM(K64:K64) ->  | M65: =SUM(M64:M64) ->  | N65: =SUM(N64:N64) ->  | P65: =SUM(P64:P64) ->  | Q65: =SUM(Q64:Q64) ->  | S65: =SUM(S64:S64) ->  | T65: =SUM(T64:T64) ->  | V65: =SUM(V64:V64) ->  | W65: =SUM(W64:W64) ->  | Y65: =SUM(Y64:Y64) ->  | Z65: =SUM(Z64:Z64) ->  | AB65: =SUM(AB64:AB64) ->  | AC65: =SUM(AC64:AC64) -> 
D68: 2012 | E68: 2013 | F68: 2014 | G68: 2015 | H68: 2016 | I68: =H68+1 -> 2017 | J68: =I68+1 -> 2018 | K68: 2019 | L68: 2020
A69: Net Fixed Assets
B70: Enter applicable amortization in years: | C70: 25
A71: Opening Gross Fixed Assets | E71: =D73 ->  | I71: =H73 ->  | J71: =I73 ->  | K71: =J73 ->  | L71: =K73 -> 
A72: Gross Capital Additions | D72: =#REF! ->  | E72: =#REF! ->  | F72: =#REF! ->  | G72: =#REF! ->  | H72: =#REF! ->  | I72: =#REF! ->  | J72: =#REF! ->  | K72: =#REF! ->  | L72: =#REF! -> 
A73: Closing Gross Fixed Assets | D73: =SUM(D71:D72) ->  | H73: =SUM(H71:H72) ->  | I73: =SUM(I71:I72) -> 
A75: Opening Accumulated Amortization | E75: =+D78 ->  | F75: =E78 -> 
A76: Current Year Amortization (before additions) | D76: =IF(ISERROR(D71/$C$70), 0, D71/$C$70) -> 0 | E76: 0 | F76: 0 | G76: 0 | H76: 0 | I76: =IF(ISERROR(I71/$C$70), 0, I71/$C$70) -> 0 | J76: =IF(ISERROR(J71/$C$70), 0, J71/$C$70) -> 0 | K76: =IF(ISERROR(K71/$C$70), 0, K71/$C$70) -> 0 | L76: =IF(ISERROR(L71/$C$70), 0, L71/$C$70) -> 0
A77: Additions (half year) | D77: =D72/$C$70/2 ->  | E77: =E72/$C$70/2 ->  | F77: =F72/$C$70/2 ->  | H77: =H72/$C$70/2 ->  | I77: =I72/C70/2 ->  | J77: =J72/C70/2 ->  | K77: =K72/C70/2 ->  | L77: =L72/C70/2 -> 
A78: Closing Accumulated Amortization | D78: =SUM(D75+D76+D77) ->  | E78: =SUM(E75+E76+E77) ->  | F78: =SUM(F75+F76+F77) ->  | G78: =SUM(G75+G76+G77) ->  | H78: =SUM(H75+H76+H77) ->  | I78: =SUM(I75:I77) ->  | J78: =SUM(J75:J77) ->  | K78: =SUM(K75:K77) ->  | L78: =SUM(L75:L77) -> 
A80: Opening Net Fixed Assets | D80: =D71-D75 -> 0 | F80: =F71-F75 ->  | H80: =H71-H75 ->  | I80: =H81 ->  | J80: =I81 ->  | K80: =J81 ->  | L80: =K81 -> 
A81: Closing Net Fixed Assets | D81: =D73-D78 ->  | E81: =E73-E78 ->  | H81: =H73-H78 ->  | I81: =I73-I78 ->  | J81: =J73-J78 ->  | K81: =K73-K78 ->  | L81: =L73-L78 -> 
A82: Average Net Fixed Assets | D82: =SUM(D80:D81)/2 ->  | H82: =SUM(H80:H81)/2 ->  | I82: =SUM(I80:I81)/2 ->  | J82: =SUM(J80:J81)/2 ->  | K82: =SUM(K80:K81)/2 ->  | L82: =SUM(L80:L81)/2 -> 
A84: UCC for PILs Calculation
D85: 2012 | E85: 2013 | F85: 2014 | G85: 2015 | H85: 2016 | I85: =H85+1 -> 2017 | J85: =I85+1 -> 2018 | K85: 2019 | L85: 2020
A87: Opening UCC | E87: =D95 -> 
A88: Capital Additions (from Appendix 2-FA) | D88: =D72 ->  | H88: =H72 ->  | I88: =I72 -> 
A89: UCC Before Half Year Rule | D89: =SUM(D87:D88) ->  | H89: =SUM(H87:H88) ->  | I89: =SUM(I87:I88) ->  | J89: =SUM(J87:J88) ->  | K89: =SUM(K87:K88) ->  | L89: =SUM(L87:L88) -> 
A90: Half Year Rule (1/2 Additions - Disposals) | D90: =D88/2 ->  | H90: =H88/2 ->  | I90: =I88/2 ->  | J90: =J88/2 ->  | K90: =K88/2 ->  | L90: =L88/2 -> 
A91: Reduced UCC | D91: =D89-D90 ->  | H91: =H89-H90 ->  | I91: =I89-I90 ->  | J91: =J89-J90 ->  | K91: =K89-K90 ->  | L91: =L89-L90 -> 
A92: CCA Rate Class (to be entered) | C92: 47 | D92: =C92 -> 47 | E92: =D92 -> 47 | F92: 47 | G92: 47 | H92: 47 | I92: 47 | J92: 47 | K92: 47 | L92: 47
A93: CCA Rate (to be entered) | C93: 0.08 | D93: =C93 -> 0.08 | E93: 0.08 | F93: 0.08 | G93: 0.08 | H93: 0.08 | I93: 0.08 | J93: 0.08 | K93: 0.08 | L93: 0.08
A94: CCA | D94: =D91*D93 ->  | H94: =H91*H93 ->  | I94: =I91*I93 ->  | L94: =L91*L93 -> 
A95: Closing UCC | D95: =D89-D94 ->  | H95: =H89-H94 ->  | I95: =I89-I94 ->  | J95: =J89-J94 ->  | K95: =K89-K94 ->  | L95: =L89-L94 -> 

Sheet App.2-FC Calc of REG Expansion
N1: File Number: | O1: =EBNUMBER -> EB-2016-0166
A2: NOT APPLICABLE | N2: Exhibit:
N3: Tab:
N4: Schedule:
N5: Page:
N7: Date:
A9: Appendix 2-FC
A10: Calculation of Renewable Generation Connection Direct Benefits/Provincial Amount: Renewable Expansion Investments
A12: This table will calculate the distributor/provincial shares of the investments entered in Part B of Appendix 2-FA.
A13: Enter values in green shaded cells: WCA percentage, debt percentages, interest rates, kWh, tax rates, amortization period, CCA Class and percentage.
A14: For historical investments, enter these variables for your last cost of service test year. For 2016 and beyond, enter variables as in the application.
A15: Rate Riders are not calculated for Test Year as these assets and costs are already in the distributor's rate base.
D18: 2012 | G18: 2013 | J18: 2014 | M18: 2015 | P18: 2016 TEST YEAR | S18: 2017 | T18: 2016 | V18: 2018 | Y18: 2019 | AB18: 2020
E19: Direct Benefit | F19: Provincial | H19: Direct Benefit | I19: Provincial | K19: Direct Benefit | L19: Provincial | N19: Direct Benefit | O19: Provincial | Q19: Direct Benefit | R19: Provincial | T19: Direct Benefit | U19: Provincial | W19: Direct Benefit | X19: Provincial | Z19: Direct Benefit | AA19: Provincial | AC19: Direct Benefit | AD19: Provincial
D20: Total | E20: 0.17 | F20: 0.83 | G20: Total | H20: 0.17 | I20: 0.83 | J20: Total | K20: 0.17 | L20: 0.83 | M20: Total | N20: 0.17 | O20: 0.83 | P20: Total | Q20: 0.17 | R20: 0.83 | S20: Total | T20: 0.17 | U20: 0.83 | V20: Total | W20: 0.17 | X20: 0.83 | Y20: Total | Z20: 0.17 | AA20: 0.83 | AB20: Total | AC20: 0.17 | AD20: 0.83
A21: Net Fixed Assets (average) | D21: =D82 ->  | E21: =D21*E20 ->  | F21: =D21*F20 ->  | G21: =E82 ->  | H21: =G21*H20 ->  | I21: =G21*I20 ->  | J21: =F82 ->  | K21: =J21*K20 ->  | L21: =J21*L20 ->  | M21: =G82 ->  | N21: =M21*N20 ->  | O21: =M21*O20 ->  | P21: =H82 ->  | Q21: =P21*Q20 ->  | R21: =P21*R20 ->  | S21: =I82 ->  | T21: =S21*T20 ->  | U21: =S21*U20 ->  | V21: =J82 ->  | W21: =V21*W20 ->  | X21: =V21*X20 ->  | Y21: =K82 ->  | Z21: =Y21*Z20 ->  | AA21: =Y21*AA20 ->  | AB21: =L82 ->  | AC21: =AB21*AC20 ->  | AD21: =AB21*AD20 -> 
A22: Incremental OM&A (on-going, N/A for Provincial Recovery) | D22: =#REF! ->  | E22: =D22 ->  | G22: =#REF! ->  | H22: =G22 ->  | J22: =#REF! ->  | K22: =J22 ->  | M22: =#REF! ->  | N22: =M22 ->  | P22: =#REF! ->  | Q22: =P22 ->  | S22: =#REF! ->  | T22: =S22 ->  | V22: =#REF! ->  | W22: =V22 ->  | Y22: =#REF! ->  | Z22: =Y22 ->  | AB22: =#REF! ->  | AC22: =AB22 -> 
A23: Incremental OM&A (start-up, applicable for Provincial Recovery) | D23: =#REF! ->  | E23: =D23*E20 ->  | F23: =D23*F20 ->  | G23: =#REF! ->  | H23: =G23*H20 ->  | I23: =G23*I20 ->  | J23: =#REF! ->  | K23: =J23*K20 ->  | L23: =J23*L20 ->  | M23: =#REF! ->  | N23: =M23*N20 ->  | O23: =M23*O20 ->  | P23: =#REF! ->  | Q23: =P23*Q20 ->  | R23: =P23*R20 ->  | S23: =#REF! ->  | T23: =S23*T20 ->  | U23: =S23*U20 ->  | V23: =#REF! ->  | W23: =V23*W20 ->  | X23: =V23*X20 ->  | Y23: =#REF! ->  | Z23: =Y23*Z20 ->  | AA23: =Y23*AA20 ->  | AB23: =#REF! ->  | AC23: =AB23*AC20 ->  | AD23: =AB23*AD20 -> 
A24: WCA | E24: =(E22+E23)*$B$24 ->  | F24: =F23*$B$24 ->  | H24: =(H22+H23)*$B$24 ->  | I24: =I23*$B$24 ->  | K24: =(K22+K23)*$B$24 ->  | L24: =L23*$B$24 ->  | N24: =(N22+N23)*$B$24 ->  | O24: =O23*$B$24 ->  | Q24: =(Q22+Q23)*$B$24 ->  | R24: =R23*$B$24 ->  | T24: =(T22+T23)*$B$24 ->  | U24: =U23*$B$24 ->  | W24: =(W22+W23)*$B$24 ->  | X24: =X23*$B$24 ->  | Z24: =(Z22+Z23)*$B$24 ->  | AA24: =AA23*$B$24 ->  | AC24: =(AC22+AC23)*$B$24 ->  | AD24: =AD23*$B$24 -> 
A25: Rate Base | E25: =SUM(E21+E24) ->  | F25: =SUM(F21+F24) ->  | H25: =SUM(H21+H24) ->  | I25: =SUM(I21+I24) ->  | K25: =SUM(K21+K24) ->  | L25: =SUM(L21+L24) ->  | N25: =SUM(N21+N24) ->  | O25: =SUM(O21+O24) ->  | Q25: =SUM(Q21+Q24) ->  | R25: =SUM(R21+R24) ->  | T25: =SUM(T21+T24) ->  | U25: =SUM(U21+U24) ->  | W25: =SUM(W21+W24) ->  | X25: =SUM(X21+X24) ->  | Z25: =SUM(Z21+Z24) ->  | AA25: =SUM(AA21+AA24) ->  | AC25: =SUM(AC21+AC24) ->  | AD25: =SUM(AD21+AD24) -> 
A28: Deemed ST Debt | E28: =E25*$B$28 ->  | F28: =F25*$B$28 ->  | H28: =H25*$B$28 ->  | I28: =I25*$B$28 ->  | K28: =K25*$B$28 ->  | L28: =L25*$B$28 ->  | N28: =N25*$B$28 ->  | O28: =O25*$B$28 ->  | Q28: =Q25*$B$28 ->  | R28: =R25*$B$28 ->  | T28: =T25*$B$28 ->  | U28: =U25*$B$28 ->  | W28: =W25*$B$28 ->  | X28: =X25*$B$28 ->  | Z28: =Z25*$B$28 ->  | AA28: =AA25*$B$28 ->  | AC28: =AC25*$B$28 ->  | AD28: =AD25*$B$28 -> 
A29: Deemed LT Debt | E29: =E25*$B$29 ->  | F29: =F25*$B$29 ->  | H29: =H25*$B$29 ->  | I29: =I25*$B$29 ->  | K29: =K25*$B$29 ->  | L29: =L25*$B$29 ->  | N29: =N25*$B$29 ->  | O29: =O25*$B$29 ->  | Q29: =Q25*$B$29 ->  | R29: =R25*$B$29 ->  | T29: =T25*$B$29 ->  | U29: =U25*$B$29 ->  | W29: =W25*$B$29 ->  | X29: =X25*$B$29 ->  | Z29: =Z25*$B$29 ->  | AA29: =AA25*$B$29 ->  | AC29: =AC25*$B$29 ->  | AD29: =AD25*$B$29 -> 
A30: Deemed Equity | E30: =E25*$B$30 ->  | F30: =F25*$B$30 ->  | H30: =H25*$B$30 ->  | I30: =I25*$B$30 ->  | K30: =K25*$B$30 ->  | L30: =L25*$B$30 ->  | N30: =N25*$B$30 ->  | O30: =O25*$B$30 ->  | Q30: =Q25*$B$30 ->  | R30: =R25*$B$30 ->  | T30: =T25*$B$30 ->  | U30: =U25*$B$30 ->  | W30: =W25*$B$30 ->  | X30: =X25*$B$30 ->  | Z30: =Z25*$B$30 ->  | AA30: =AA25*$B$30 ->  | AC30: =AC25*$B$30 ->  | AD30: =AD25*$B$30 -> 
A32: ST Interest | E32: =E28*$B$32 ->  | F32: =F28*$B$32 ->  | H32: =H28*$B$32 ->  | I32: =I28*$B$32 ->  | K32: =K28*$B$32 ->  | L32: =L28*$B$32 ->  | N32: =N28*$B$32 ->  | O32: =O28*$B$32 ->  | Q32: =Q28*$B$32 ->  | R32: =R28*$B$32 ->  | T32: =T28*$B$32 ->  | U32: =U28*$B$32 ->  | W32: =W28*$B$32 ->  | X32: =X28*$B$32 ->  | Z32: =Z28*$B$32 ->  | AA32: =AA28*$B$32 ->  | AC32: =AC28*$B$32 ->  | AD32: =AD28*$B$32 -> 
A33: LT Interest | E33: =E29*$B$33 ->  | F33: =F29*$B$33 ->  | H33: =H29*$B$33 ->  | I33: =I29*$B$33 ->  | K33: =K29*$B$33 ->  | L33: =L29*$B$33 ->  | N33: =N29*$B$33 ->  | O33: =O29*$B$33 ->  | Q33: =Q29*$B$33 ->  | R33: =R29*$B$33 ->  | T33: =T29*$B$33 ->  | U33: =U29*$B$33 ->  | W33: =W29*$B$33 ->  | X33: =X29*$B$33 ->  | Z33: =Z29*$B$33 ->  | AA33: =AA29*$B$33 ->  | AC33: =AC29*$B$33 ->  | AD33: =AD29*$B$33 -> 
A34: ROE | E34: =E30*$B$34 ->  | F34: =F30*$B$34 ->  | H34: =H30*$B$34 ->  | I34: =I30*$B$34 ->  | K34: =K30*$B$34 ->  | L34: =L30*$B$34 ->  | N34: =N30*$B$34 ->  | O34: =O30*$B$34 ->  | Q34: =Q30*$B$34 ->  | R34: =R30*$B$34 ->  | T34: =T30*$B$34 ->  | U34: =U30*$B$34 ->  | W34: =W30*$B$34 ->  | X34: =X30*$B$34 ->  | Z34: =Z30*$B$34 ->  | AA34: =AA30*$B$34 ->  | AC34: =AC30*$B$34 ->  | AD34: =AD30*$B$34 -> 
A35: Cost of Capital Total | E35: =SUM(E32:E34) ->  | F35: =SUM(F32:F34) ->  | H35: =SUM(H32:H34) ->  | I35: =SUM(I32:I34) ->  | K35: =SUM(K32:K34) ->  | L35: =SUM(L32:L34) ->  | N35: =SUM(N32:N34) ->  | O35: =SUM(O32:O34) ->  | Q35: =SUM(Q32:Q34) ->  | R35: =SUM(R32:R34) ->  | T35: =SUM(T32:T34) ->  | U35: =SUM(U32:U34) ->  | W35: =SUM(W32:W34) ->  | X35: =SUM(X32:X34) ->  | Z35: =SUM(Z32:Z34) ->  | AA35: =SUM(AA32:AA34) ->  | AC35: =SUM(AC32:AC34) ->  | AD35: =SUM(AD32:AD34) -> 
A37: OM&A | E37: =E22+E23 ->  | F37: =F23 ->  | H37: =H22+H23 ->  | I37: =I23 ->  | K37: =K22+K23 ->  | L37: =L23 ->  | N37: =N22+N23 ->  | O37: =O23 ->  | Q37: =Q22+Q23 ->  | R37: =R23 ->  | T37: =T22+T23 ->  | U37: =U23 ->  | W37: =W22+W23 ->  | X37: =X23 ->  | Z37: =Z22+Z23 ->  | AA37: =AA23 ->  | AC37: =AC22+AC23 ->  | AD37: =AD23 -> 
A38: Amortization | D38: =D78 ->  | E38: =D38*E$20 ->  | F38: =D38*F$20 ->  | G38: =E78 ->  | H38: =G38*H$20 ->  | I38: =G38*I$20 ->  | J38: =F78 ->  | K38: =J38*K$20 ->  | L38: =J38*L$20 ->  | M38: =G78 ->  | N38: =M38*N$20 ->  | O38: =M38*O$20 ->  | P38: =H76+H77 ->  | Q38: =P38*Q$20 ->  | R38: =P38*R$20 ->  | S38: =I76+I77 ->  | T38: =S38*T$20 ->  | U38: =S38*U$20 ->  | V38: =J76+J77 ->  | W38: =V38*W$20 ->  | X38: =V38*X$20 ->  | Y38: =K76+K77 ->  | Z38: =Y38*Z$20 ->  | AA38: =Y38*AA$20 ->  | AB38: =L76+L77 ->  | AC38: =AB38*AC$20 ->  | AD38: =AB38*AD$20 -> 
A39: Grossed-up PILs | E39: =E66 ->  | F39: =F66 ->  | H39: =H66 ->  | I39: =I66 ->  | K39: =K66 ->  | L39: =L66 ->  | N39: =N66 ->  | O39: =O66 ->  | Q39: =Q66 ->  | R39: =R66 ->  | T39: =T66 ->  | U39: =U66 ->  | W39: =W66 ->  | X39: =X66 ->  | Z39: =Z66 ->  | AA39: =AA66 ->  | AC39: =AC66 ->  | AD39: =AD66 -> 
A41: Revenue Requirement | E41: =SUM(E35:E39) ->  | F41: =SUM(F35:F39) ->  | H41: =SUM(H35:H39) ->  | I41: =SUM(I35:I39) ->  | K41: =SUM(K35:K39) ->  | L41: =SUM(L35:L39) ->  | N41: =SUM(N35:N39) ->  | O41: =SUM(O35:O39) ->  | Q41: =SUM(Q35:Q39) ->  | R41: =SUM(R35:R39) ->  | T41: =SUM(T35:T39) ->  | U41: =SUM(U35:U39) ->  | W41: =SUM(W35:W39) ->  | X41: =SUM(X35:X39) ->  | Z41: =SUM(Z35:Z39) ->  | AA41: =SUM(AA35:AA39) ->  | AC41: =SUM(AC35:AC39) ->  | AD41: =SUM(AD35:AD39) -> 
A44: Provincial Rate Protection | F44: =F41 ->  | I44: =I41 ->  | L44: =L41 ->  | O44: =O41 ->  | R44: =R41 ->  | U44: =U41 ->  | X44: =X41 ->  | AA44: =AA41 ->  | AD44: =AD41 -> 
A46: Monthly Amount Paid by IESO | F46: =F44/12 ->  | I46: =I44/12 ->  | L46: =L44/12 ->  | O46: =O44/12 ->  | R46: =R44/12 ->  | U46: =U44/12 ->  | X46: =X44/12 ->  | AA46: =AA44/12 ->  | AD46: =AD44/12 -> 
A48: Note 1: The difference between the actual costs of approved eligible investments and revenue received from the IESO should be recorded in a variance account. The Board may provide
A49: regulatory accounting guidance regarding a variance account either in an individual proceeding or on a generic basis.
A50: Note 2: For the 2016 Test Year, Costs and Revenues of the Direct Benefit are to be included in the test year applicant Rate Base and Revenues.
A52: PILs Calculation
E53: 2012 | H53: 2013 | K53: 2014 | N53: 2015 | Q53: 2016 TEST YEAR | T53: 2017 | W53: 2018 | Z53: 2019 | AC53: 2020
A54: Income Tax | E54: Direct Benefit | F54: Provincial | H54: Direct Benefit | I54: Provincial | K54: Direct Benefit | L54: Provincial | N54: Direct Benefit | O54: Provincial | Q54: Direct Benefit | R54: Provincial | T54: Direct Benefit | U54: Provincial | W54: Direct Benefit | X54: Provincial | Z54: Direct Benefit | AA54: Provincial | AC54: Direct Benefit | AD54: Provincial
V55: Total | Y55: Total | AB55: Total
A56: Net Income - ROE on Rate Base | E56: =E34 ->  | F56: =F34 ->  | H56: =H34 ->  | I56: =I34 ->  | K56: =K34 ->  | L56: =L34 ->  | N56: =N34 ->  | O56: =O34 ->  | Q56: =Q34 ->  | R56: =R34 ->  | T56: =T34 ->  | U56: =U34 ->  | W56: =W34 ->  | X56: =X34 ->  | Z56: =Z34 ->  | AA56: =AA34 ->  | AC56: =AC34 ->  | AD56: =AD34 -> 
A57: Amortization (17% DB and 83% P) | E57: =E38 ->  | F57: =F38 ->  | H57: =H38 ->  | I57: =I38 ->  | K57: =K38 ->  | L57: =L38 ->  | N57: =N38 ->  | O57: =O38 ->  | Q57: =Q38 ->  | R57: =R38 ->  | T57: =T38 ->  | U57: =U38 ->  | W57: =W38 ->  | X57: =X38 ->  | Z57: =Z38 ->  | AA57: =AA38 ->  | AC57: =AC38 ->  | AD57: =AD38 -> 
A58: CCA (17% DB and 83% P) | E58: =-D94*E$20 ->  | F58: =-D94*F$20 ->  | H58: =-E94*H$20 ->  | I58: =-E94*I$20 ->  | K58: =-F94*K$20 ->  | L58: =-F94*L$20 ->  | N58: =-G94*N$20 ->  | O58: =-G94*O$20 ->  | Q58: =-H94*Q$20 ->  | R58: =-H94*R$20 ->  | T58: =-I94*T$20 ->  | U58: =-I94*U$20 ->  | W58: =-J94*W$20 ->  | X58: =-J94*X$20 ->  | Z58: =-K94*Z$20 ->  | AA58: =-K94*AA$20 ->  | AC58: =-L94*AC$20 ->  | AD58: =-L94*AD$20 -> 
A59: Taxable income | E59: =SUM(E56:E58) ->  | F59: =SUM(F56:F58) ->  | H59: =SUM(H56:H58) ->  | I59: =SUM(I56:I58) ->  | K59: =SUM(K56:K58) ->  | L59: =SUM(L56:L58) ->  | N59: =SUM(N56:N58) ->  | O59: =SUM(O56:O58) ->  | Q59: =SUM(Q56:Q58) ->  | R59: =SUM(R56:R58) ->  | T59: =SUM(T56:T58) ->  | U59: =SUM(U56:U58) ->  | W59: =SUM(W56:W58) ->  | X59: =SUM(X56:X58) ->  | Z59: =SUM(Z56:Z58) ->  | AA59: =SUM(AA56:AA58) ->  | AC59: =SUM(AC56:AC58) ->  | AD59: =SUM(AD56:AD58) -> 
A61: Tax Rate (to be entered)
A63: Income Taxes Payable | E63: =E59*E61 ->  | F63: =F59*F61 ->  | H63: =H59*H61 ->  | I63: =I59*I61 ->  | K63: =K59*K61 ->  | L63: =L59*L61 ->  | N63: =N59*N61 ->  | O63: =O59*O61 ->  | Q63: =Q59*Q61 ->  | R63: =R59*R61 ->  | T63: =T59*T61 ->  | U63: =U59*U61 ->  | W63: =W59*W61 ->  | X63: =X59*X61 ->  | Z63: =Z59*Z61 ->  | AA63: =AA59*AA61 ->  | AC63: =AC59*AC61 ->  | AD63: =AD59*AD61 -> 
A64: Gross Up
A65: Income Taxes Payable | E65: =E63/(1-E61) ->  | F65: =F63/(1-F61) ->  | H65: =H63/(1-H61) ->  | I65: =I63/(1-I61) ->  | K65: =K63/(1-K61) ->  | L65: =L63/(1-L61) ->  | N65: =N63/(1-N61) ->  | O65: =O63/(1-O61) ->  | Q65: =Q63/(1-Q61) ->  | R65: =R63/(1-R61) ->  | T65: =T63/(1-T61) ->  | U65: =U63/(1-U61) ->  | W65: =W63/(1-W61) ->  | X65: =X63/(1-X61) ->  | Z65: =Z63/(1-Z61) ->  | AA65: =AA63/(1-AA61) ->  | AC65: =AC63/(1-AC61) ->  | AD65: =AD63/(1-AD61) -> 
A66: Grossed Up PILs | E66: =SUM(E65:E65) ->  | F66: =SUM(F65:F65) ->  | H66: =SUM(H65:H65) ->  | I66: =SUM(I65:I65) ->  | K66: =SUM(K65:K65) ->  | L66: =SUM(L65:L65) ->  | N66: =SUM(N65:N65) ->  | O66: =SUM(O65:O65) ->  | Q66: =SUM(Q65:Q65) ->  | R66: =SUM(R65:R65) ->  | T66: =SUM(T65:T65) ->  | U66: =SUM(U65:U65) ->  | W66: =SUM(W65:W65) ->  | X66: =SUM(X65:X65) ->  | Z66: =SUM(Z65:Z65) ->  | AA66: =SUM(AA65:AA65) ->  | AC66: =SUM(AC65:AC65) ->  | AD66: =SUM(AD65:AD65) -> 
A69: Net Fixed Assets | D69: 2011 | E69: 2012 | F69: 2013 | G69: 2014 | H69: 2015 | I69: 2016 | J69: 2017 | K69: 2018 | L69: 2019
B70: Enter applicable amortization in years: | C70: 25
A71: Opening Gross Fixed Assets | E71: =D73 -> 
A72: Gross Capital Additions | D72: =#REF! ->  | E72: =#REF! ->  | F72: =#REF! ->  | G72: =#REF! ->  | H72: =#REF! ->  | I72: =#REF! ->  | J72: =#REF! ->  | K72: =#REF! ->  | L72: =#REF! -> 
A73: Closing Gross Fixed Assets | D73: =SUM(D71:D72) -> 
A75: Opening Accumulated Amortization | E75: =+D78 ->  | F75: =E78 ->  | H75: =G78 ->  | I75: =H78 ->  | J75: =I78 ->  | K75: =J78 ->  | L75: =K78 -> 
A76: Current Year Amortization (before additions) | E76: =IF(ISERROR(E71/$C$70), 0, E71/$C$70) -> 0 | F76: 0 | G76: 0 | H76: =H71/$C$70 ->  | I76: =I71/$C$70 ->  | J76: =J71/$C$70 ->  | K76: =K71/$C$70 ->  | L76: =L71/$C$70 -> 
A77: Additions (half year) | D77: =D72/C70/2 ->  | E77: =E72/C70/2 ->  | F77: =F72/C70/2 ->  | G77: =G72/C70/2 ->  | H77: =H72/C70/2 ->  | I77: =I72/C70/2 ->  | J77: =J72/C70/2 ->  | K77: =K72/C70/2 ->  | L77: =L72/C70/2 -> 
A78: Closing Accumulated Amortization | D78: =SUM(D75+D77) ->  | E78: =SUM(E75:E77) -> 
A80: Opening Net Fixed Assets | D80: =D71-D75 -> 0 | E80: =E71-E75 ->  | F80: =F71-F75 ->  | G80: =G71-G75 ->  | H80: =G81 ->  | I80: =H81 ->  | J80: =I81 ->  | K80: =J81 ->  | L80: =K81 -> 
A81: Closing Net Fixed Assets | D81: =D73-D78 -> 
A82: Average Net Fixed Assets | D82: =SUM(D80:D81)/2 -> 
A84: UCC for PILs Calculation
D85: 2014 | E85: 2014 | F85: 2014 | G85: 2014 | H85: 2015 | I85: 2016 | J85: 2017 | K85: 2018 | L85: 2019
A87: Opening UCC | E87: =D95 -> 
A88: Capital Additions (from Appendix 2-FA) | D88: =D72 -> 
A89: UCC Before Half Year Rule | D89: =SUM(D87:D88) -> 
A90: Half Year Rule (1/2 Additions - Disposals) | D90: =D88/2 -> 
A91: Reduced UCC | D91: =D89-D90 -> 
A92: CCA Rate Class (to be entered) | C92: 47 | D92: =$C$92 -> 47 | E92: =$C$92 -> 47 | F92: 47 | G92: 47 | H92: 47 | I92: 47 | J92: 47 | K92: 47 | L92: 47
A93: CCA Rate (to be entered) | C93: 0.08 | D93: =$C$93 -> 0.08 | E93: =$C$93 -> 0.08 | F93: 0.08 | G93: 0.08 | H93: 0.08 | I93: 0.08 | J93: 0.08 | K93: 0.08 | L93: 0.08
A94: CCA | D94: =D91*D$93 ->  | E94: =E91*E$93 ->  | F94: =F91*F$93 ->  | G94: =G91*G$93 ->  | H94: =H91*H$93 -> 
A95: Closing UCC | D95: =D89-D94 -> 

Sheet App.2-SQI
A8: Service Reliability Indicators
B11: Indicator | C11: OEB Minimum Standard | D11: ='[4]0.1 LDC Info'!$E$27 -> 2010 | E11: ='[4]0.1 LDC Info'!$E$27+1 -> 2011 | F11: ='[4]0.1 LDC Info'!$E$27+2 -> 2012 | G11: ='[4]0.1 LDC Info'!$E$27+3 -> 2013 | H11: ='[4]0.1 LDC Info'!$E$27+4 -> 2014 | I11: ='[4]0.1 LDC Info'!$E$27+5 -> 2015
B12: Low Voltage Connections | C12: 0.9 | D12: 1 | E12: 1 | F12: 1 | G12: 1 | H12: 1 | I12: 1
B13: High Voltage Connections | C13: 0.9 | D13: NA | E13: NA | F13: NA | G13: NA | H13: NA | I13: NA
B14: Appointment Scheduling | C14: 0.65 | D14: 1 | E14: 1 | F14: 1 | G14: 1 | H14: 0.961
B15: Appointments Met | C15: 0.9 | D15: 1 | E15: 1 | F15: 1 | G15: 1 | H15: 1
B16: Telephone Accessibility | C16: 0.8 | D16: 0.855 | E16: 0.903 | F16: 0.793 | G16: 0.878 | H16: 0.894
B17: Rescheduling a Missed Appointment | C17: 0.8 | D17: NA | E17: NA | F17: NA | G17: NA | H17: NA | I17: NA
B18: Telephone Call Abandon Rate | C18: 0.8 | H18: 0.061
B19: Written Response to Enquires | C19: 0.1 | H19: 1
B20: Emergency Urban Response | C20: 0.9 | H20: 1
B21: Emergency Rural Response | C21: 1 | D21: NA | E21: NA | F21: NA | G21: NA | H21: NA | I21: NA
B22: Reconnection Performance Standard | C22: 0.85 | H22: 1
A26: Index | C26: Includes outages caused by loss of supply | H26: Excludes outages caused by loss of supply
C27: ='[4]0.1 LDC Info'!$E$27+1 -> 2011 | D27: ='[4]0.1 LDC Info'!$E$27+2 -> 2012 | E27: ='[4]0.1 LDC Info'!$E$27+3 -> 2013 | F27: ='[4]0.1 LDC Info'!$E$27+4 -> 2014 | G27: ='[4]0.1 LDC Info'!$E$27+5 -> 2015 | H27: ='[4]0.1 LDC Info'!$E$27+1 -> 2011 | I27: ='[4]0.1 LDC Info'!$E$27+2 -> 2012 | J27: ='[4]0.1 LDC Info'!$E$27+3 -> 2013 | K27: ='[4]0.1 LDC Info'!$E$27+4 -> 2014 | L27: ='[4]0.1 LDC Info'!$E$27+5 -> 2015
A28: SAIDI | C28: 1.18 | D28: 2.42 | E28: 0.23 | F28: 1.91 | G28: 2.69 | H28: 0.98 | I28: 1.92 | J28: 0.23 | K28: 1.91 | L28: 2.69
A29: SAIFI | C29: 1.84 | D29: 2.39 | E29: 0.12 | F29: 1.1 | G29: 2.11 | H29: 0.84 | I29: 1.4 | J29: 0.12 | K29: 1.1 | L29: 2.11
B31: 5 Year Historical Average
A32: SAIDI | G32: =IF(ISERROR(AVERAGE(C28:G28)), "", AVERAGE(C28:G28)) -> 1.686 | L32: =IF(ISERROR(AVERAGE(H28:L28)), "", AVERAGE(H28:L28)) -> 1.546
A33: SAIFI | G33: =IF(ISERROR(AVERAGE(C29:G29)), "", AVERAGE(C29:G29)) -> 1.512 | L33: =IF(ISERROR(AVERAGE(H29:L29)), "", AVERAGE(H29:L29)) -> 1.114

Sheet App.2-H_Other_Oper_Rev
A9: Appendix 2-H
A10: Other Operating Revenue
B12: Reporting Basis | C12: CGAAP | D12: CGAAP | E12: CGAAP | F12: CGAAP | G12: CGAAP | H12: CGAAP | I12: MIFRS | J12: CGAAP | K12: CGAAP
C13: ='[4]0.1 LDC Info'!$E$27 -> 2010 | D13: ='[4]0.1 LDC Info'!$E$27 -> 2010 | E13: ='[4]0.1 LDC Info'!$E$27+1 -> 2011 | F13: ='[4]0.1 LDC Info'!$E$27+2 -> 2012 | G13: ='[4]0.1 LDC Info'!$E$27+3 -> 2013 | H13: ='[4]0.1 LDC Info'!$E$27+4 -> 2014 | I13: 2015 | J13: =Bridge_Year -> 2016 | K13: =Test_Year -> 2017
B14: USoA Description | C14: Board Approved
A15: 4235 | B15: 4235-Miscellaneous Service Revenues | C15: -20325 | D15: -15945 | E15: -26322.99 | F15: -24521.82 | G15: -19080 | H15: -18017 | I15: -18198 | J15: -18199 | K15: -18500
A16: 4225 | B16: 4225-Late Payment Charges | C16: -31200 | D16: -24840.76 | E16: -28301.15 | F16: -20987.98 | G16: -21437.09 | H16: -21455.81 | I16: -18985.64 | J16: -18991 | K16: -20000
A17: =LEFT(B17,4) -> 4082 | B17: ='[4]1.2.TB Historical Balances'!B318 -> 4082-Retail Services Revenues | C17: 0 | D17: 0 | E17: 0 | F17: -4446.02 | G17: -4300 | H17: -4591.97 | I17: -4732.75 | J17: -4732 | K17: -5000
A18: 4084 | B18: ='[4]1.2.TB Historical Balances'!B319 -> 4084-Service Transaction Requests (STR) Revenues | C18: 0 | D18: 0 | E18: 0 | F18: -58.25 | G18: -58 | H18: -38.75 | I18: -44.75 | J18: -45 | K18: -50
A19: 4086 | B19: ='[4]1.2.TB Historical Balances'!B320 -> 4086-SSS Administration Revenue | C19: -12500 | D19: -11609.76 | E19: -11706.99 | F19: -12039.76 | G19: -12191.41 | H19: -12322.3 | I19: -12351.89 | J19: -12374 | K19: -12500
A20: 4205 | B20: ='[4]1.2.TB Historical Balances'!B326 -> 4205-Interdepartmental Rents | C20: 0 | D20: 0 | E20: 0 | F20: 0 | G20: 0 | H20: 0 | I20: 0 | J20: 0 | K20: 0
A21: 4210 | B21: ='[4]1.2.TB Historical Balances'!B327 -> 4210-Rent from Electric Property | C21: -38402 | D21: -35033.21 | E21: -35033.21 | F21: -38033.21 | G21: -35033.21 | H21: -38709.37 | I21: -37491.74 | J21: -37494 | K21: -38000
A22: 4245 | B22: ='[4]1.2.TB Historical Balances'!B334 -> 4245-Government Assistance Directly Credited to Income | C22: 0 | D22: 0 | E22: 0 | F22: 0 | G22: -278.2 | H22: -556.39 | I22: -817.8 | J22: -800 | K22: -800
A23: 4305 | B23: ='[4]1.2.TB Historical Balances'!B337 -> 4305-Regulatory Debits | C23: 0 | D23: 0 | E23: 0 | F23: 0 | G23: 183938.06 | H23: 163527.69 | I23: 172388.1 | J23: 172500 | K23: 0
A24: 4324 | B24: ='[4]1.2.TB Historical Balances'!B341 -> 4324-Special Purpose Charge Recovery | C24: 0 | D24: -3927.98 | E24: 0 | F24: 0 | G24: 0 | H24: 0 | I24: 0 | J24: 0 | K24: 0
A25: 4325 | B25: ='[4]1.2.TB Historical Balances'!B342 -> 4325-Revenues from Merchandise Jobbing, Etc. | C25: -11500 | D25: -6785.02 | E25: -8598.53 | F25: -7568.81 | G25: -6725.99 | H25: -13639.47 | I25: -5195.32 | J25: -6177 | K25: -7000
A26: 4355 | B26: ='[4]1.2.TB Historical Balances'!B348 -> 4355-Gain on Disposition of Utility and Other Property | C26: -3500 | D26: 0 | E26: 0 | F26: 0 | G26: 0 | H26: 0 | I26: -398.23 | J26: -67674 | K26: 0
A27: 4360 | B27: ='[4]1.2.TB Historical Balances'!B349 -> 4360-Loss on Disposition of Utility and Other Property | C27: 0 | D27: 0 | E27: 0 | F27: 0 | G27: 6454.51 | H27: 12269.16 | I27: 11106.58 | J27: 10000 | K27: 10000
A28: 4375 | B28: ='[4]1.2.TB Historical Balances'!B352 -> 4375-Revenues from Non-Utility Operations | C28: -10600 | D28: -11526.6 | E28: -10379.98 | F28: -7673.3 | G28: -10538.56 | H28: -7123.28 | I28: -23279.63 | J28: -6909 | K28: -8000
A29: 4390 | B29: ='[4]1.2.TB Historical Balances'!B357 -> 4390-Miscellaneous Non-Operating Income | C29: -3500 | D29: -14117.32 | E29: -4989.76 | F29: -3685.17 | G29: -3335.64 | H29: -3500.257 | I29: -3615.46 | J29: -3600 | K29: -3700
A30: 4405 | B30: ='[4]1.2.TB Historical Balances'!B362 -> 4405-Interest and Dividend Income | C30: -10000 | D30: -19380.04 | E30: -35113.34 | F30: -33722.47 | G30: -29067.26 | H30: -23489.45 | I30: -16347.54 | J30: -11820 | K30: -4000
B31: Total | C31: =SUM(C15:C25)+SUM(C26:C30) -> -141527 | D31: -143165.69 | E31: -160445.95 | F31: -152736.79 | G31: 48347.21 | H31: 32352.803 | I31: 42035.93 | J31: -6315 | K31: -107550
B33: Specific Service Charges | C33: =C15 -> -20325 | D33: -15945 | E33: -26322.99 | F33: -24521.82 | G33: -19080 | H33: -18017 | I33: -18198 | J33: -18199 | K33: -18500
B34: Late Payment Charges | C34: =C16 -> -31200 | D34: -24840.76 | E34: -28301.15 | F34: -20987.98 | G34: -21437.09 | H34: -21455.81 | I34: -18985.64 | J34: -18991 | K34: -20000
B35: Other Distribution/Operating Revenues | C35: =SUM(C17:C22) -> -50902 | D35: -46642.97 | E35: -46740.2 | F35: -54577.24 | G35: -51860.82 | H35: -56218.78 | I35: -55438.93 | J35: -55445 | K35: -56350
B36: Other Income or Deductions | C36: =SUM(C23:C30) -> -39100 | D36: -55736.96 | E36: -59081.61 | F36: -52649.75 | G36: 140725.12 | H36: 128044.393 | I36: 134658.5 | J36: 86320 | K36: -12700
B37: Total | C37: =SUM(C33:C36) -> -141527 | D37: -143165.69 | E37: -160445.95 | F37: -152736.79 | G37: 48347.21 | H37: 32352.803 | I37: 42035.93 | J37: -6315 | K37: -107550
A40: 4405 | B40: 4405-Interest and Dividend Income
A42: Account 4405 - Interest and Dividend Income | C42: 2010 BA | D42: 2010 | E42: 2011 | F42: 2012 | G42: 2013 | H42: 2014 | I42: 2015 | J42: 2016 | K42: 2017
D43: Actual | E43: Actual | F43: Actual | G43: Actual | H43: Actual | I43: Actual | J43: Bridge | K43: Test
A44: Reporting Basis | D44: CGAAP | E44: CGAAP | F44: CGAAP | G44: CGAAP | H44: CGAAP | I44: MIFRS | J44: CGAAP | K44: CGAAP
A46: Regulatory Interest Income | D46: 5284.59 | E46: 14129.75 | F46: 16210.49 | G46: 17117.39 | H46: 17457.15 | I46: 11456.99 | J46: 7860
A47: Interest on investments
A48: Interest on Bank Balances | D48: 14095.75 | E48: 20983.59 | F48: 17511.98 | G48: 11949.87 | H48: 6032.3 | I48: 4890.55 | J48: 3960 | K48: 4000
A49: Total | D49: 19380.34 | E49: 35113.34 | F49: 33722.47 | G49: 29067.26 | H49: 23489.45 | I49: 16347.54 | J49: 11820 | K49: 4000
B51: Per T/B | D51: 19380 | E51: 35113 | F51: 33722 | G51: 29067 | H51: 23489 | I51: 16348 | J51: 11820 | K51: 4000
B53: In Balance | D53: 0.34 | E53: 0.34 | F53: 0.47 | G53: 0.26 | H53: 0.45 | I53: -0.46 | J53: 0 | K53: 0

Sheet App_2-I LF_CDM
G1: File Number: | H1: =EBNUMBER -> EB-2016-0166
G2: Exhibit:
G3: Tab:
G4: Schedule:
G5: Page:
G7: Date:
A9: Appendix 2-I
A10: Load Forecast CDM Adjustment Work Form (2016)
A12: 2014 is the last year of the current four year (2011-2014) CDM program, and 2015 is the first year of a new six year (2015-2020) CDM program, per the Ministerial directives of March 31, 2014. With 2016, there is a need to recognize the full year impact of the current 2011-2014 CDM program, as well as to estimate reasonable impacts for each year for the new 2015-2020 CDM program. These are combined to estimate the adjustment for CDM program impacts on the 2016 load forecast.
A14: Appendix 2-I was developed to help determine what would be the amount of CDM savings needed in each year to cumulatively achieve the four year 2011-2014 CDM target. This then determined the amount of kWh (and with translation, kW of demand) savings that were converted in dollars balances for the LRAMVA, and also to determine the related adjustment to the load forecast to account for OPA-reported savings. Beginning for the 2015 year, it has been adjusted because of the persistence of 2011-2014 CDM programs will be an adjustment to the load forecast in addition to the estimated savings for the first year (2015) for the new 2015-2020 CDM plan.
A16: It is assumed that the new six year (2015-2020) CDM program will work similar to the existing 2011-2014 CDM program, meaning that distributors will offer programs each year that, cumulatively over the six years (from January 1, 2015 to December 31, 2020) will cumulatively achieve the new six year CDM target. This is the approach contemplated in the Ministerial directive letters of March 31, 2014 to the Board and to the OPA. Thus, distributors will be able to offer programs on a basis so that cumulatively over the period, the impacts, including persistence, of the CDM programs will accumulate towards achieving each distributor's 2015-2020 CDM target.
A18: With this approach, it is necessary to account for estimated savings for the last year of the current program, particularly the estimated savings for new CDM programs offered in 2014, as well as the estimated savings for new CDM programs that the distributor will offer in 2015 towards achievement of the new six year (2015-2020) CDM program. This necessitates expansion of this Appendix 2-I to deal with both the 2011-2014 and 2015-2020 CDM plans. It is expected that this approach will be updated each year.
A20: 2011-2014 CDM Program - 2014, last year of the current CDM plan
A22: Input the 2011-2014 CDM target in Cell B21.
A24: Input the measured results for 2011 CDM programs for each of the years 2011 and persistence into 2012, 2013 and 2014 into cells B31 to E31. These results are taken from the final 2011 CDM Report issued by the OPA for that distributor in the fall of 2012.
A26: Measured results for 2012 CDM programs for each of the years 2012 and persistence into 2013 and 2014 are input into cells C32 to E32. These results are taken from the final 2012 CDM Report issued by the OPA for that distributor in the fall of 2013.
A28: Measured results for 2013 CDM programs for each of the years 2013 and persistence into 2014 are input into cells C33 to E33. These results are taken from the final 2013 CDM Report issued by the OPA for that distributor in the fall of 2014. Until that report is issued, the distributor should use the results from the preliminary 2013 CDM Report issued in the spring of 2014.
A30: Measured results for 2014 CDM programs for each of the years 2013 and persistence into 2014 are input into cells C33 to E33. These results are taken from the final 2013 CDM Report issued by the OPA for that distributor in the fall of 2014. Until that report is issued, the distributor should use the results from the preliminary 2013 CDM Report issued in the spring of 2014. The distributor also needs to input the persistence of 2014 CDM programs into 2015 and 2016 in cells G45 and G46.
A33: 4 Year (2011-2014) kWh Target: | G33: Persistence of 2014 CDM Program into 2015 and 2016
A34: 4860000
B35: 2011 | C35: 2012 | D35: 2013 | E35: 2014 | F35: Total | G35: 2015 | H35: 2016
A36: 2011 CDM Programs | B36: =B42/$F$46 -> 0.1115209373 | C36: =C42/$F$46 -> 0.1115209373 | D36: =D42/$F$46 -> 0.1115209373 | E36: =E42/$F$46 -> 0.1115209373 | F36: =SUM(B36:E36) -> 0.4460837492
A37: 2012 CDM Programs | C37: =C43/$F$46 -> 0.0956823606 | D37: =D43/$F$46 -> 0.09546539379 | E37: =E43/$F$46 -> 0.09546539379 | F37: =SUM(B37:E37) -> 0.2866131482
A38: 2013 CDM Programs | D38: =D44/$F$46 -> 0.05467563463 | E38: =E44/$F$46 -> 0.05445866782 | F38: =SUM(B38:E38) -> 0.1091343025
A39: 2014 CDM Programs | E39: =E45/$F$46 -> 0.1358212194 | F39: =SUM(B39:E39) -> 0.1358212194
A40: Total in Year | B40: =SUM(B36:B39) -> 0.1115209373 | C40: =SUM(C36:C39) -> 0.2072032979 | D40: =SUM(D36:D39) -> 0.2616619657 | E40: =SUM(E36:E39) -> 0.3972662183 | F40: =SUM(B40:E40) -> 0.9776524192
A41: kWh
A42: 2011 CDM Programs | B42: 514000 | C42: 514000 | D42: 514000 | E42: 514000 | F42: =SUM(B42:E42) -> 2056000
A43: 2012 CDM Programs | B43: -90000 | C43: 441000 | D43: 440000 | E43: 440000 | F43: =SUM(B43:E43) -> 1231000
A44: 2013 CDM Programs | C44: 10000 | D44: 252000 | E44: 251000 | F44: =SUM(B44:E44) -> 513000
A45: 2014 CDM Programs | D45: 183000 | E45: 626000 | F45: =SUM(B45:E45) -> 809000 | G45: =E45*0.99 -> 619740 | H45: =E45*0.88 -> 550880
A46: Total in Year | B46: =SUM(B42:B45) -> 424000 | C46: =SUM(C42:C45) -> 965000 | D46: =SUM(D42:D45) -> 1389000 | E46: =SUM(E42:E45) -> 1831000 | F46: =SUM(F42:F45) -> 4609000
D48: Persistence Factor
B49: 2011 | D49: =C42/B42 -> 1 | E49: =D42/B42 -> 1 | F49: =E42/B42 -> 1
B50: 2012 | E50: =D43/C43 -> 0.9977324263 | F50: =E43/C43 -> 0.9977324263
B51: 2013 | F51: =E44/D44 -> 0.996031746
A53: 2015-2020 CDM Program - 2016, second year of the current CDM plan
A55: For the first year of the new 2015-2020 CDM plan, it is assumed that each year's program will achieve an equal amount of new CDM savings. The new targets for 2015-2020 do not take into account persistence beyond the first year, but the IESO will encourage distributors to promote and implement CDM plans that will have longer term persistence of savings. This results in each year's program being about 1/6 (18.67%) of the cumulative 2015-2020 CDM target for kWh savings. A distributor may propose an alternative approach but would be expected to document in its application why it believes that its proposal is more reasonable. In its proposal, the distributor should ensure that the sum of the results for each year's CDM program from 2015 to 2020 add up to its 2015-2020 CDM target as established by the IESO.
A57: 6 Year (2015-2020) kWh Target:
A58: 4170000
B59: 2015 | C59: 2016 | D59: 2017 | E59: 2018 | F59: 2019 | G59: 2020 | H59: Total
A60: %
A61: 2015 CDM Programs | B61: =B69/$H$75 -> 0.1666666667 | H61: =SUM(B61:G61) -> 0.1666666667
A62: 2016 CDM Programs | C62: =C70/$H$75 -> 0.1666666667 | H62: =SUM(B62:G62) -> 0.1666666667
A63: 2017 CDM Programs | D63: =D71/$H$75 -> 0.1666666667 | H63: =SUM(B63:G63) -> 0.1666666667
A64: 2018 CDM Programs | E64: =E72/$H$75 -> 0.1666666667 | H64: =SUM(E64:G64) -> 0.1666666667
A65: 2019 CDM Programs | F65: =F73/$H$75 -> 0.1666666667 | H65: =SUM(F65:G65) -> 0.1666666667
A66: 2020 CDM Programs | G66: =G74/$H$75 -> 0.1666666667 | H66: =SUM(B66:G66) -> 0.1666666667
A67: Total in Year | B67: =SUM(B61:B66) -> 0.1666666667 | C67: =SUM(C61:C66) -> 0.1666666667 | D67: =SUM(D61:D66) -> 0.1666666667 | E67: =SUM(E61:E64) -> 0.1666666667 | F67: =SUM(F61:F65) -> 0.1666666667 | G67: =SUM(G61:G66) -> 0.1666666667 | H67: =SUM(B67:G67) -> 1
A68: kWh
A69: =A61 -> 2015 CDM Programs | B69: =1/6*A58 -> 695000 | C69: =B69 -> 695000 | H69: =SUM(B69:G69) -> 1390000
A70: 2016 CDM Programs | C70: =B69 -> 695000 | H70: =SUM(B70:G70) -> 695000
A71: 2017 CDM Programs | D71: =C70 -> 695000 | H71: =SUM(B71:G71) -> 695000
A72: 2018 CDM Programs | E72: =D71 -> 695000 | H72: =SUM(E72:G72) -> 695000
A73: 2019 CDM Programs | F73: =E72 -> 695000 | H73: =SUM(F73:G73) -> 695000
A74: 2020 CDM Programs | G74: =F73 -> 695000 | H74: =SUM(B74:G74) -> 695000
A75: Total in Year | B75: =SUM(B69:B74) -> 695000 | C75: =SUM(C69:C74) -> 1390000 | D75: =SUM(D69:D74) -> 695000 | E75: =SUM(E69:E72) -> 695000 | F75: =SUM(F69:F73) -> 695000 | G75: =SUM(G69:G74) -> 695000 | H75: =A58 -> 4170000
A78: Determination of 2016 Load Forecast Adjustment
A80: The Board has determined that the "net" number should be used in its Decision and Order with respect to Centre Wellington Hydro Ltd.'s 2013 Cost of Service rates (EB-2012-0113). This approach has also been used in Settlement Agreements accepted by the Board in other 2013 and 2-14 applications. The distributor should select whether the adjustment is done on a "net" or "gross" basis, but must support a proposal for the adjustment being done on a "gross" basis. Sheet 2-I defaults to the adjustment being done on a "net" basis consistent with Board policy and practice.
A82: From each of the 2006-2010 CDM Final Report, and the 2011, 2012, 2013 and 2014 CDM Final Reports, issued by the OPA (now IESO) for the distributor, the distributor should input the "gross" and "net" results of the cumulative CDM savings for 2014 into cells D84 to E88. The model will calculate the cumulative savings for all programs from 2006 to 2012 and determine the "net" to "gross" factor "g".
A84: Net-to-Gross Conversion
A86: Is CDM adjustment being done on a "net" or "gross" basis? | F86: net
C88: "Gross" | D88: "Net" | E88: Difference | F88: "Net-to-Gross" Conversion Factor
A89: Persistence of Historical CDM programs to 2014 | C89: kWh | D89: kWh | E89: kWh | F89: ('g')
A90: 2006-2010 CDM programs
A91: 2011 CDM program | C91: 787087 | D91: 514073
A92: 2012 CDM program | C92: 487911 | D92: 440648
A93: 2013 CDM program | C93: 352175 | D93: 252369
A94: 2014 CDM program | C94: 814978 | D94: 626488
A95: 2006 to 2014 OPA CDM programs: Persistence to 2016 | C95: =SUM(C90:C94) -> 2442151 | D95: =SUM(D90:D94) -> 1833578 | E95: =C95-D95 -> 608573 | F95: =IF(D95=0,0,IF(F86="net",0,E95/D95)) -> 0
A97: The default values represent the factor that each year's CDM program is factored into the manual CDM adjustment. Distributors can choose alternative weights of "0", "0.5" or "1" from the drop-down menu for each cell, but must support its alternatives.
A99: These factors do not mean that CDM programs are excluded, but the assumption that impacts of previous year CDM programs are already implicitly reflected in the actual data for the historical years that are the basis for the load forecast prior to any manual CDM adjustment for the 2016 test year.
A101: Weight Factor for Inclusion in CDM Adjustment to 2014 Load Forecast
B102: 2011 | C102: 2012 | D102: 2013 | E102: 2014 | F102: 2015 | G102: 2016
A103: Weight Factor for each year's CDM program impact on 2014 load forecast | B103: 0 | C103: 0 | D103: 0 | E103: 0.5 | F103: 1 | G103: 0.5 | H103: Distributor can select "0", "0.5", or "1" from drop-down list
A104: Default Value selection rationale. | B104: Full year persistence of 2011 CDM programs on 2015 load forecast. Full impact assumed because of 50% impact in 2011 (first year) but full year persistence impact on 2012 and 2013, and thus reflected in base forecast before the CDM adjustment. | C104: Full year persistence of 2012 CDM programs on 2015 load forecast. Full impact assumed because of 50% impact in 2012 (first year) but full year persistence impact on 2013, and thus reflected in base forecast before the CDM adjustment. | D104: Default is 0, but one option is for full year impact of persistence of 2013 CDM programs on 2015 load forecast, but 50% impact in base forecast (first year impact of 2013 CDM programs on 2013 load forecast, which is part of the data for the load forecast. | E104: Default is 0, but one option is for full year impact of persistence of 2014 CDM programs on 2014 load forecast, but 50% impact in base forecast (first year impact of 2014 CDM programs on 2014 actuals, which is part of the data for the load forecast. | F104: Full year impact of persistence of 2015 programs on 2015 load forecast. 2015 CDM program impacts are not in the base forecast. | G104: Only 50% of 2016 CDM programs are assumed to impact the 2016 load forecast based on the "half-year" rule.
A106: 2011-2014 and 2015-2020 LRAMVA and 2015 CDM adjustment to Load Forecast
A108: One manual adjustment for CDM impacts to the 2015 load forecast is made. However, the distributor will have two associated annualized CDM impacts, one for the 2011-2014 CDM program and the second for the 2015-2020 CDM plan. In addition, the distributor needs to reflect the CDM adjustment that was explicitly factored into its 2011 load forecast in its 2011 cost of service application (assuming that it rebased in that year). this amount, and equal persistence for 2012, 2013 and 2014 is used as an offset to determine what the net balance of the 2011-2014 LRAMVA balance should be for disposition.
A110: The Amount used for the CDM threshold of the LRAMVA is the kWh that will be used to determine the base amount for the LRAMVA balance for 2014, for assessing performance against the four-year target. The base amount for 2011-2013 is 0 (zero) for 2014 Cost of Service applications, as the utility rebased prior to the 2011-2014 CDM programs, and there was no adjustment to reflect the impacts of the 2011-2014 programs on the load forecast used to determine their last cost of service-based rates.
A112: The proposed loss factor should correspond with the loss factor calculated in Appendix 2-R
A114: The Manual Adjustment for the 2016 Load Forecast is the amount manually subtracted from the load forecast derived from the base forecast from historical data.
A116: If the distributor has developed their load forecast on a system purchased basis, then the manual adjustment should be on system purchased basis, including the adjustment for losses. If the load forecast has been developed on a billed basis, either on a system basis or on a class-specific basis, the manual adjustment should be on a billed basis, excluding losses.
A118: The distributor should determine the allocation of the savings to all customer classes in a reasonable manner (e.g. taking into account what programs and what OPA-measured impacts were directed at specific customer classes), for both the LRAMVA and for the load forecast adjustment.
B120: 2011 | C120: 2012 | D120: 2013 | E120: 2014 | F120: 2015 | G120: 2016 | H120: Total for 2016
B121: kWh
A122: Amount used for CDM threshold for LRAMVA (2014) | B122: =E42 -> 514000 | C122: =E43 -> 440000 | D122: =E44 -> 251000 | E122: ='[18]LRAMVA Calculations'!$W$164 -> 443111.012
A124: CDM adjustment for test year forecast (per Board Decision in distributor's most recent Cost of Service Application) (enter as negative) | B124: 0 | C124: =B124 -> 0 | D124: =B124 -> 0 | E124: =B124 -> 0
A126: Amount used for CDM threshold for LRAMVA (2016) | E126: 0 | F126: =C69 -> 695000 | G126: =C70 -> 695000 | H126: =SUM(B126:G126) -> 1390000
A128: Manual Adjustment for 2016 Load Forecast (billed basis) | B128: =B122*(1+F95)*B103 -> 0 | C128: =C122*(1+F95)*C103 -> 0 | D128: =D122*(1+F95)*D103 -> 0 | E128: =E122*(1+F95)*E103 -> 221555.506 | F128: =F126*(1+F95)*F103 -> 695000 | G128: =G126*(1+F95)*G103 -> 347500 | H128: =SUM(B128:G128) -> 1264055.506
A130: Proposed Loss Factor (TLF) | B130: 0.081 | C130: Format: X.XX%
A131: Manual Adjustment for 2016 Load Forecast (system purchased basis) | B131: =B128*(1+$B130) -> 0 | C131: 0 | D131: 0 | E131: 239501.502 | F131: 751295 | G131: 375647.5 | H131: =SUM(B131:G131) -> 1366444.002
A133: Manual adjustment uses "gross" versus "net" (i.e. numbers multiplied by (1 + g). The Weight factor is also used calculate the impact of each year's program on the CDM adjustment to the 2016 load forecast.

Sheet App.2-IA_Act_Frcst_Data
I1: File Number: | J1: =EBNUMBER -> 0
I2: Exhibit:
I3: Tab:
I4: Schedule:
I5: Page:
I7: Date:
A9: Appendix 2-IA
A10: Summary and Variances of Actual and Forecast Data
A12: Replace "Rate Class #" with the appropriate rate classification.
B14: =RebaseYear & " Board Approved" -> 0 Board Approved | C14: =TestYear - 6 -> 2010 | D14: =TestYear -5 -> 2011 | E14: =TestYear - 4 -> 2012 | F14: =TestYear - 3 -> 2013 | G14: =TestYear - 2 -> 2014 | H14: 2015 | I14: 2016 | J14: 2017
A15: ='[1]11. Final Load Forecast'!B14 -> Residential
A16: # of Customers | B16: 3635 | C16: ='[1]11. Final Load Forecast'!H14 -> 3654 | D16: ='[1]11. Final Load Forecast'!I14 -> 3687 | E16: ='[1]11. Final Load Forecast'!J14 -> 3707 | F16: ='[1]11. Final Load Forecast'!K14 -> 3730 | G16: ='[1]11. Final Load Forecast'!L14 -> 3760 | H16: ='[1]11. Final Load Forecast'!M14 -> 3779 | I16: ='[1]11. Final Load Forecast'!N14 -> 3806.890883 | J16: ='[1]11. Final Load Forecast'!O14 -> 3834.987615
A17: kWh | B17: 31881465 | C17: ='[1]11. Final Load Forecast'!H15 -> 30305144 | D17: ='[1]11. Final Load Forecast'!I15 -> 30085520 | E17: ='[1]11. Final Load Forecast'!J15 -> 29994156 | F17: ='[1]11. Final Load Forecast'!K15 -> 30486731 | G17: ='[1]11. Final Load Forecast'!L15 -> 30037011 | H17: ='[1]11. Final Load Forecast'!M15 -> 29589162 | I17: ='[1]11. Final Load Forecast'!N15 -> 29593740.41 | J17: ='[1]11. Final Load Forecast'!O15 -> 28929065.91
A18: kW
A19: Variance Analysis
A20: =A16 -> # of Customers | E20: =IF(ISERROR((E16-$B16)/$B16), 0, (E16-$B16)/$B16) -> 0.01980742779 | F20: =IF(ISERROR((F16-$B16)/$B16), 0, (F16-$B16)/$B16) -> 0.02613480055 | G20: 0.03438789546 | H20: 0.03961485557 | I20: 0.04728772576 | J20: 0.05501722552
A21: kWh | E21: =IF(ISERROR((E17-$B17)/$B17), 0, (E17-$B17)/$B17) -> -0.05919768743 | F21: -0.04374748776 | G21: -0.05785348948 | H21: -0.07190080506 | I21: -0.07175719784 | J21: -0.09260550254
A22: kW | E22: 0 | F22: 0 | G22: 0 | H22: 0 | I22: 0 | J22: 0
A24: ='[1]11. Final Load Forecast'!B18 -> General Service < 50 kW
A25: # of Customers | B25: 447 | C25: ='[1]11. Final Load Forecast'!H18 -> 442 | D25: ='[1]11. Final Load Forecast'!I18 -> 437 | E25: ='[1]11. Final Load Forecast'!J18 -> 435 | F25: ='[1]11. Final Load Forecast'!K18 -> 428 | G25: ='[1]11. Final Load Forecast'!L18 -> 428 | H25: ='[1]11. Final Load Forecast'!M18 -> 430 | I25: ='[1]11. Final Load Forecast'!N18 -> 421.7412356 | J25: ='[1]11. Final Load Forecast'!O18 -> 413.6410926
A26: kWh | B26: 12958689 | C26: ='[1]11. Final Load Forecast'!H19 -> 12427065 | D26: ='[1]11. Final Load Forecast'!I19 -> 11962164 | E26: ='[1]11. Final Load Forecast'!J19 -> 11672310 | F26: ='[1]11. Final Load Forecast'!K19 -> 11531242 | G26: ='[1]11. Final Load Forecast'!L19 -> 11294125 | H26: ='[1]11. Final Load Forecast'!M19 -> 10843312 | I26: ='[1]11. Final Load Forecast'!N19 -> 12019249.35 | J26: ='[1]11. Final Load Forecast'!O19 -> 11749297.38
A27: kW
A28: Variance Analysis
A29: =A25 -> # of Customers | E29: =IF(ISERROR((E25-$B25)/$B25), 0, (E25-$B25)/$B25) -> -0.02684563758 | F29: =IF(ISERROR((F25-$B25)/$B25), 0, (F25-$B25)/$B25) -> -0.04250559284 | G29: -0.04250559284 | H29: -0.03803131991 | I29: -0.05650730288 | J29: -0.07462842821
A30: kWh | E30: =IF(ISERROR((E26-$B26)/$B26), 0, (E26-$B26)/$B26) -> -0.09926768055 | F30: -0.1101536583 | G30: -0.1284515741 | H30: -0.1632400469 | I30: -0.07249496104 | J30: -0.0933266956
A31: kW | E31: 0 | F31: 0 | G31: 0 | H31: 0 | I31: 0 | J31: 0
A33: ='[1]11. Final Load Forecast'!B22 -> Unmetered Scattered Load
A34: # of Customers | B34: 30 | C34: ='[1]11. Final Load Forecast'!H22 -> 34 | D34: ='[1]11. Final Load Forecast'!I22 -> 34 | E34: ='[1]11. Final Load Forecast'!J22 -> 34 | F34: ='[1]11. Final Load Forecast'!K22 -> 33 | G34: ='[1]11. Final Load Forecast'!L22 -> 33 | H34: ='[1]11. Final Load Forecast'!M22 -> 33 | I34: ='[1]11. Final Load Forecast'!N22 -> 33.60797722 | J34: ='[1]11. Final Load Forecast'!O22 -> 34.22715554
A35: kWh | B35: 142827 | C35: ='[1]11. Final Load Forecast'!H23 -> 150176 | D35: ='[1]11. Final Load Forecast'!I23 -> 158921 | E35: ='[1]11. Final Load Forecast'!J23 -> 158811 | F35: ='[1]11. Final Load Forecast'!K23 -> 155619 | G35: ='[1]11. Final Load Forecast'!L23 -> 155019 | H35: ='[1]11. Final Load Forecast'!M23 -> 155364 | I35: ='[1]11. Final Load Forecast'!N23 -> 153077.6418 | J35: ='[1]11. Final Load Forecast'!O23 -> 149639.5227
A36: kW
A37: Variance Analysis
A38: =A34 -> # of Customers | E38: =IF(ISERROR((E34-$B34)/$B34), 0, (E34-$B34)/$B34) -> 0.1333333333 | F38: =IF(ISERROR((F34-$B34)/$B34), 0, (F34-$B34)/$B34) -> 0.1 | G38: 0.1 | H38: 0.1 | I38: 0.1202659073 | J38: 0.1409051847
A39: kWh | E39: =IF(ISERROR((E35-$B35)/$B35), 0, (E35-$B35)/$B35) -> 0.1119116134 | F39: 0.08956289777 | G39: 0.08536201138 | H39: 0.08777752106 | I39: 0.07176963626 | J39: 0.04769772329
A40: kW | E40: 0 | F40: 0 | G40: 0 | H40: 0 | I40: 0 | J40: 0
A42: ='[1]11. Final Load Forecast'!B26 -> General Service > 50 kW - 4999 kW
A43: # of Customers | B43: 64 | C43: ='[1]11. Final Load Forecast'!H26 -> 59 | D43: ='[1]11. Final Load Forecast'!I26 -> 59 | E43: ='[1]11. Final Load Forecast'!J26 -> 59 | F43: ='[1]11. Final Load Forecast'!K26 -> 62 | G43: ='[1]11. Final Load Forecast'!L26 -> 62 | H43: ='[1]11. Final Load Forecast'!M26 -> 61 | I43: ='[1]11. Final Load Forecast'!N26 -> 60.8898893 | J43: ='[1]11. Final Load Forecast'!O26 -> 60.77997737
A44: kWh | B44: 52616773 | C44: ='[1]11. Final Load Forecast'!H27 -> 51703213 | D44: ='[1]11. Final Load Forecast'!I27 -> 46521147 | E44: ='[1]11. Final Load Forecast'!J27 -> 44095781 | F44: ='[1]11. Final Load Forecast'!K27 -> 44119354 | G44: ='[1]11. Final Load Forecast'!L27 -> 43640624 | H44: ='[1]11. Final Load Forecast'!M27 -> 45095566 | I44: ='[1]11. Final Load Forecast'!N27 -> 44431933.4 | J44: ='[1]11. Final Load Forecast'!O27 -> 43433993.55
A45: kW | B45: 142778 | C45: ='[1]11. Final Load Forecast'!H28 -> 141797 | D45: ='[1]11. Final Load Forecast'!I28 -> 130980 | E45: ='[1]11. Final Load Forecast'!J28 -> 120379 | F45: ='[1]11. Final Load Forecast'!K28 -> 115813 | G45: ='[1]11. Final Load Forecast'!L28 -> 114180 | H45: ='[1]11. Final Load Forecast'!M28 -> 113922 | I45: ='[1]11. Final Load Forecast'!N28 -> 120735.7175 | J45: ='[1]11. Final Load Forecast'!O28 -> 118023.997
A46: Variance Analysis
A47: =A43 -> # of Customers | E47: =IF(ISERROR((E43-$B43)/$B43), 0, (E43-$B43)/$B43) -> -0.078125 | F47: =IF(ISERROR((F43-$B43)/$B43), 0, (F43-$B43)/$B43) -> -0.03125 | G47: -0.03125 | H47: -0.046875 | I47: -0.04859547964 | J47: -0.05031285366
A48: kWh | E48: =IF(ISERROR((E44-$B44)/$B44), 0, (E44-$B44)/$B44) -> -0.1619444051 | F48: -0.161496392 | G48: -0.1705948215 | H48: -0.1429431448 | I48: -0.1555557123 | J48: -0.1745219049
A49: kW | E49: -0.1568799115 | F49: -0.1888596282 | G49: -0.2002969645 | H49: -0.2021039656 | I49: -0.1543815048 | J49: -0.1733740701
A51: ='[1]11. Final Load Forecast'!B30 -> Streetlighting
A52: # of Customers | B52: 1173 | C52: ='[1]11. Final Load Forecast'!H30 -> 1174 | D52: ='[1]11. Final Load Forecast'!I30 -> 1176 | E52: ='[1]11. Final Load Forecast'!J30 -> 1176 | F52: ='[1]11. Final Load Forecast'!K30 -> 1190 | G52: ='[1]11. Final Load Forecast'!L30 -> 1190 | H52: ='[1]11. Final Load Forecast'!M30 -> 1190 | I52: ='[1]11. Final Load Forecast'!N30 -> 1194.644926 | J52: ='[1]11. Final Load Forecast'!O30 -> 1199.307982
A53: kWh | B53: 1121141 | C53: ='[1]11. Final Load Forecast'!H31 -> 1116726 | D53: ='[1]11. Final Load Forecast'!I31 -> 1118574 | E53: ='[1]11. Final Load Forecast'!J31 -> 1121260 | F53: ='[1]11. Final Load Forecast'!K31 -> 1118710 | G53: ='[1]11. Final Load Forecast'!L31 -> 1121519 | H53: ='[1]11. Final Load Forecast'!M31 -> 1123682 | I53: ='[1]11. Final Load Forecast'!N31 -> 1107145.74 | J53: ='[1]11. Final Load Forecast'!O31 -> 1082279.281
A54: kW | B54: 3110 | C54: ='[1]11. Final Load Forecast'!H32 -> 3098 | D54: ='[1]11. Final Load Forecast'!I32 -> 3099 | E54: ='[1]11. Final Load Forecast'!J32 -> 3100 | F54: ='[1]11. Final Load Forecast'!K32 -> 3104 | G54: ='[1]11. Final Load Forecast'!L32 -> 3110 | H54: ='[1]11. Final Load Forecast'!M32 -> 3117 | I54: ='[1]11. Final Load Forecast'!N32 -> 3076.436486 | J54: ='[1]11. Final Load Forecast'!O32 -> 3007.339818
A55: Variance Analysis
A56: =A52 -> # of Customers | E56: =IF(ISERROR((E52-$B52)/$B52), 0, (E52-$B52)/$B52) -> 0.002557544757 | F56: =IF(ISERROR((F52-$B52)/$B52), 0, (F52-$B52)/$B52) -> 0.01449275362 | G56: 0.01449275362 | H56: 0.01449275362 | I56: 0.0184526222 | J56: 0.02242794732
A57: kWh | E57: =IF(ISERROR((E53-$B53)/$B53), 0, (E53-$B53)/$B53) -> 0.000106141868 | F57: -0.002168326731 | G57: 0.0003371565218 | H57: 0.002266441063 | I57: -0.01248305083 | J57: -0.03466265104
A58: kW | E58: -0.003215434084 | F58: -0.00192926045 | G58: 0 | H58: 0.002250803859 | I58: -0.01079212663 | J58: -0.03300970495
A60: Rate Class 6
A61: # of Customers
A62: kWh
A63: kW
A64: Variance Analysis
A65: =A61 -> # of Customers | E65: =IF(ISERROR((E61-$B61)/$B61), 0, (E61-$B61)/$B61) -> 0 | F65: =IF(ISERROR((F61-$B61)/$B61), 0, (F61-$B61)/$B61) -> 0 | G65: 0 | H65: 0 | I65: 0 | J65: 0
A66: kWh | E66: =IF(ISERROR((E62-$B62)/$B62), 0, (E62-$B62)/$B62) -> 0 | F66: 0 | G66: 0 | H66: 0 | I66: 0 | J66: 0
A67: kW | E67: 0 | F67: 0 | G67: 0 | H67: 0 | I67: 0 | J67: 0
A69: Rate Class 7
A70: # of Customers
A71: kWh
A72: kW
A73: Variance Analysis
A74: =A70 -> # of Customers | E74: =IF(ISERROR((E70-$B70)/$B70), 0, (E70-$B70)/$B70) -> 0 | F74: =IF(ISERROR((F70-$B70)/$B70), 0, (F70-$B70)/$B70) -> 0 | G74: 0 | H74: 0 | I74: 0 | J74: 0
A75: kWh | E75: =IF(ISERROR((E71-$B71)/$B71), 0, (E71-$B71)/$B71) -> 0 | F75: 0 | G75: 0 | H75: 0 | I75: 0 | J75: 0
A76: kW | E76: 0 | F76: 0 | G76: 0 | H76: 0 | I76: 0 | J76: 0
A78: Rate Class 8
A79: # of Customers
A80: kWh
A81: kW
A82: Variance Analysis
A83: =A79 -> # of Customers | E83: =IF(ISERROR((E79-$B79)/$B79), 0, (E79-$B79)/$B79) -> 0 | F83: =IF(ISERROR((F79-$B79)/$B79), 0, (F79-$B79)/$B79) -> 0 | G83: 0 | H83: 0 | I83: 0 | J83: 0
A84: kWh | E84: =IF(ISERROR((E80-$B80)/$B80), 0, (E80-$B80)/$B80) -> 0 | F84: 0 | G84: 0 | H84: 0 | I84: 0 | J84: 0
A85: kW | E85: 0 | F85: 0 | G85: 0 | H85: 0 | I85: 0 | J85: 0
A87: Rate Class 9
A88: # of Customers
A89: kWh
A90: kW
A91: Variance Analysis
A92: =A88 -> # of Customers | E92: =IF(ISERROR((E88-$B88)/$B88), 0, (E88-$B88)/$B88) -> 0 | F92: =IF(ISERROR((F88-$B88)/$B88), 0, (F88-$B88)/$B88) -> 0 | G92: 0 | H92: 0 | I92: 0 | J92: 0
A93: kWh | E93: =IF(ISERROR((E89-$B89)/$B89), 0, (E89-$B89)/$B89) -> 0 | F93: 0 | G93: 0 | H93: 0 | I93: 0 | J93: 0
A94: kW | E94: 0 | F94: 0 | G94: 0 | H94: 0 | I94: 0 | J94: 0
A96: Rate Class 10
A97: # of Customers
A98: kWh
A99: kW
A100: Variance Analysis
A101: =A97 -> # of Customers | E101: =IF(ISERROR((E97-$B97)/$B97), 0, (E97-$B97)/$B97) -> 0 | F101: =IF(ISERROR((F97-$B97)/$B97), 0, (F97-$B97)/$B97) -> 0 | G101: 0 | H101: 0 | I101: 0 | J101: 0
A102: kWh | E102: =IF(ISERROR((E98-$B98)/$B98), 0, (E98-$B98)/$B98) -> 0 | F102: 0 | G102: 0 | H102: 0 | I102: 0 | J102: 0
A103: kW | E103: 0 | F103: 0 | G103: 0 | H103: 0 | I103: 0 | J103: 0
A106: Totals
A107: Customers / Connections | B107: =SUM(B16,B25,B34,B43,B52,B61,B70,B79,B88,B97) -> 5349 | C107: =SUM(C16,C25,C34,C43,C52,C61,C70,C79,C88,C97) -> 5363 | D107: =SUM(D16,D25,D34,D43,D52,D61,D70,D79,D88,D97) -> 5393 | E107: =SUM(E16,E25,E34,E43,E52,E61,E70,E79,E88,E97) -> 5411 | F107: 5443 | G107: 5473 | H107: 5493 | I107: 5517.774911 | J107: 5542.943822
A108: kWh | B108: =SUM(B17,B26,B35,B44,B53,B62,B71,B80,B89,B98) -> 98720895 | C108: 95702324 | D108: 89846326 | E108: 87042318 | F108: 87411656 | G108: 86248298 | H108: 86807086 | I108: 87305146.54 | J108: 85344275.64
A109: kW from applicable classes | B109: 145888 | C109: 144895 | D109: 134079 | E109: 123479 | F109: 118917 | G109: 117290 | H109: 117039 | I109: 123812.154 | J109: 121031.3368
A111: Totals - Variance
A112: Customers / Connections | E112: =IF(ISERROR((E107-$B107)/$B107), 0, (E107-$B107)/$B107) -> 0.01159095158 | F112: 0.0175733782 | G112: 0.02318190316 | H112: 0.0269209198 | I112: 0.03155261004 | J112: 0.03625795896
A113: kWh | E113: -0.1182989376 | F113: -0.1145577033 | G113: -0.1263420171 | H113: -0.1206817361 | I113: -0.1156365982 | J113: -0.1354993729
A114: kW from applicable classes | E114: -0.1536041347 | F114: -0.1848746984 | G114: -0.1960270893 | H114: -0.1977475872 | I114: -0.1513205061 | J114: -0.1703818214

Sheet App.2-JA_OM&A_Summary_Analys
K1: File Number: | L1: =EBNUMBER -> EB-2016-0166
K2: Exhibit:
K3: Tab:
K4: Schedule:
K5: Page:
K7: Date:
A9: Appendix 2-JA
A10: Summary of Recoverable OM&A Expenses
A12: Reporting Basis | B12: CGAAP | C12: CGAAP | D12: CGAAP | E12: CGAAP | F12: NEWGAAP | G12: NEWGAAP | H12: MIFRS | I12: MIFRS | J12: MIFRS
B13: Board Approved | C13: ='[4]0.1 LDC Info'!E27 -> 2010 | D13: ='[4]0.1 LDC Info'!E27+1 -> 2011 | E13: ='[4]0.1 LDC Info'!E27+2 -> 2012 | F13: ='[4]0.1 LDC Info'!E27+3 -> 2013 | G13: ='[4]0.1 LDC Info'!E27+4 -> 2014 | H13: ='[4]0.1 LDC Info'!E27+5 -> 2015 | I13: =Bridge_Year -> 2016 | J13: =Test_Year -> 2017
A14: Operations | B14: ='[4]1.2.TB Historical Balances'!H453 -> 235909 | C14: ='[4]4.1 OM&A_Detailed_Analysis'!C40 -> 207838.36 | D14: ='[4]4.1 OM&A_Detailed_Analysis'!D40 -> 222809.43 | E14: ='[4]4.1 OM&A_Detailed_Analysis'!E40 -> 231656.52 | F14: ='[4]4.1 OM&A_Detailed_Analysis'!F40 -> 228491.36 | G14: ='[4]4.1 OM&A_Detailed_Analysis'!G40 -> 291183.64 | H14: ='[4]4.1 OM&A_Detailed_Analysis'!H40 -> 311428 | I14: ='[4]4.1 OM&A_Detailed_Analysis'!I40 -> 282541.76 | J14: ='[4]4.1 OM&A_Detailed_Analysis'!J40 -> 296946
A15: Maintenance | B15: ='[4]1.2.TB Historical Balances'!H477 -> 171718 | C15: ='[4]4.1 OM&A_Detailed_Analysis'!C65 -> 154106.37 | D15: ='[4]4.1 OM&A_Detailed_Analysis'!D65 -> 147175.55 | E15: ='[4]4.1 OM&A_Detailed_Analysis'!E65 -> 151790.64 | F15: ='[4]4.1 OM&A_Detailed_Analysis'!F65 -> 190005.96 | G15: ='[4]4.1 OM&A_Detailed_Analysis'!G65 -> 171742.67 | H15: ='[4]4.1 OM&A_Detailed_Analysis'!H65 -> 171109.48 | I15: ='[4]4.1 OM&A_Detailed_Analysis'!I65 -> 189934 | J15: ='[4]4.1 OM&A_Detailed_Analysis'!J65 -> 196759
A16: SubTotal | B16: =SUM(B14:B15) -> 407627 | C16: 361944.73 | D16: 369984.98 | E16: 383447.16 | F16: 418497.32 | G16: =SUM(G14:G15) -> 462926.31 | H16: =SUM(H14:H15) -> 482537.48 | I16: =SUM(I14:I15) -> 472475.76 | J16: 493705
A17: %Change (year over year) | C17: =IF(ISERROR((C16-B16)/B16), "", (C16-B16)/B16) -> -0.1120688031 | D17: 0.02221402699 | E17: 0.03638574733 | F17: 0.09140805737 | G17: 0.106163141 | H17: 0.04236348113 | I17: -0.02085168597 | J17: 0.04493191354
A18: %Change (Test Year vs Last Rebasing Year - Actual) | I18: =IF(ISERROR((I16-B16)/B16), "", (I16-B16)/B16) -> 0.1590884804 | J18: =IF(ISERROR((J16-B16)/B16), "", (J16-B16)/B16) -> 0.2111685438
A19: Billing and Collecting | B19: ='[4]1.2.TB Historical Balances'!H493 -> 328238 | C19: ='[4]4.1 OM&A_Detailed_Analysis'!C76 -> 352212.36 | D19: ='[4]4.1 OM&A_Detailed_Analysis'!D76 -> 335087.21 | E19: ='[4]4.1 OM&A_Detailed_Analysis'!E76 -> 359318.88 | F19: ='[4]4.1 OM&A_Detailed_Analysis'!F76 -> 400546.06 | G19: ='[4]4.1 OM&A_Detailed_Analysis'!G76 -> 387607.5 | H19: ='[4]4.1 OM&A_Detailed_Analysis'!H76 -> 417962.52 | I19: ='[4]4.1 OM&A_Detailed_Analysis'!I76 -> 433354.52 | J19: ='[4]4.1 OM&A_Detailed_Analysis'!J76 -> 467660
A20: Community Relations | B20: ='[4]1.2.TB Historical Balances'!H504 -> 1000 | C20: ='[4]4.1 OM&A_Detailed_Analysis'!C88 -> 2022.07 | D20: ='[4]4.1 OM&A_Detailed_Analysis'!D88 -> 3338.75 | E20: ='[4]4.1 OM&A_Detailed_Analysis'!E88 -> 1684.35 | F20: ='[4]4.1 OM&A_Detailed_Analysis'!F88 -> 1285.87 | G20: ='[4]4.1 OM&A_Detailed_Analysis'!G88 -> 2852.87 | H20: ='[4]4.1 OM&A_Detailed_Analysis'!H88 -> 1688.17 | I20: ='[4]4.1 OM&A_Detailed_Analysis'!I88 -> 3000 | J20: ='[4]4.1 OM&A_Detailed_Analysis'!J88 -> 6000
A21: Administrative and General+LEAP | B21: ='[4]1.2.TB Historical Balances'!H528 -> 434729 | C21: ='[4]4.1 OM&A_Detailed_Analysis'!C121 -> 324919.95 | D21: ='[4]4.1 OM&A_Detailed_Analysis'!D121 -> 435301.6 | E21: ='[4]4.1 OM&A_Detailed_Analysis'!E121 -> 457588.53 | F21: ='[4]4.1 OM&A_Detailed_Analysis'!F121 -> 434566.63 | G21: ='[4]4.1 OM&A_Detailed_Analysis'!G121 -> 386772.74 | H21: ='[4]4.1 OM&A_Detailed_Analysis'!H121 -> 427970.03 | I21: ='[4]4.1 OM&A_Detailed_Analysis'!I121 -> 519090.8 | J21: ='[4]4.1 OM&A_Detailed_Analysis'!J121 -> 581915
A22: SubTotal | B22: =SUM(B19:B21) -> 763967 | C22: 679154.38 | D22: 773727.56 | E22: 818591.76 | F22: 836398.56 | G22: =SUM(G19:G21) -> 777233.11 | H22: =SUM(H19:H21) -> 847620.72 | I22: =SUM(I19:I21) -> 955445.32 | J22: 1055575
A23: %Change (year over year) | C23: =IF(ISERROR((C22-B22)/B22), "", (C22-B22)/B22) -> -0.1110160779 | D23: =IF(ISERROR((D22-C22)/C22), "", (D22-C22)/C22) -> 0.1392513732 | E23: 0.05798449263 | F23: 0.02175296756 | G23: -0.07073834513 | H23: 0.09056177496 | I23: 0.1272085468 | J23: 0.1047989643
A24: %Change (Test Year vs Last Rebasing Year - Actual) | I24: =IF(ISERROR((I22-B22)/B22), "", (I22-B22)/B22) -> 0.2506368992 | J24: =IF(ISERROR((J22-B22)/B22), "", (J22-B22)/B22) -> 0.381702351
A25: Total | B25: =SUM(B22,B16) -> 1171594 | C25: 1041099.11 | D25: 1143712.54 | E25: 1202038.92 | F25: 1254895.88 | G25: =SUM(G22,G16) -> 1240159.42 | H25: =SUM(H22,H16) -> 1330158.2 | I25: =SUM(I22,I16) -> 1427921.08 | J25: 1549280
A26: %Change (year over year) | C26: =IF(ISERROR((C25-B25)/B25), "", (C25-B25)/B25) -> -0.1113823475 | D26: 0.09856259506 | E26: 0.05099741234 | F26: 0.04397275256 | G26: -0.01174317347 | H26: 0.07257033132 | I26: 0.07349718252 | J26: 0.08498993516
I27: =IF(ISERROR((I25-B25)/B25), "", (I25-B25)/B25) -> 0.2187849033 | J27: =IF(ISERROR((J25-B25)/B25), "", (J25-B25)/B25) -> 0.3223693532
B29: =B13 -> Board Approved | C29: 2010 | D29: 2011 | E29: 2012 | F29: 2013 | G29: 2014 | H29: 2015 | I29: 2016 | J29: 2017
A30: Operations | B30: 235909 | C30: 207838.36 | D30: 222809.43 | E30: 231656.52 | F30: 228491.36 | G30: 291183.64 | H30: =H14 -> 311428 | I30: 282541.76 | J30: 296946
A31: Maintenance | B31: 171718 | C31: 154106.37 | D31: 147175.55 | E31: 151790.64 | F31: 190005.96 | G31: 171742.67 | H31: =H15 -> 171109.48 | I31: 189934 | J31: 196759
A32: Billing and Collecting | B32: =B19 -> 328238 | C32: 352212.36 | D32: 335087.21 | E32: 359318.88 | F32: 400546.06 | G32: 387607.5 | H32: =H19 -> 417962.52 | I32: 433354.52 | J32: 467660
A33: Community Relations | B33: 1000 | C33: 2022.07 | D33: 3338.75 | E33: 1684.35 | F33: 1285.87 | G33: 2852.87 | H33: =H20 -> 1688.17 | I33: 3000 | J33: 6000
A34: Administrative and General | B34: 434729 | C34: 324919.95 | D34: 435301.6 | E34: 457588.53 | F34: 434566.63 | G34: 386772.74 | H34: =H21 -> 427970.03 | I34: 519090.8 | J34: 581915
A35: Total | B35: =SUM(B30:B34) -> 1171594 | C35: 1041099.11 | D35: 1143712.54 | E35: 1202038.92 | F35: 1254895.88 | G35: =SUM(G30:G34) -> 1240159.42 | H35: =SUM(H30:H34) -> 1330158.2 | I35: =SUM(I30:I34) -> 1427921.08 | J35: 1549280
A36: %Change (year over year) | C36: =IF(ISERROR((C35-B35)/B35), "", (C35-B35)/B35) -> -0.1113823475 | D36: 0.09856259506 | E36: 0.05099741234 | F36: 0.04397275256 | G36: -0.01174317347 | H36: 0.07257033132 | I36: 0.07349718252 | J36: 0.08498993516
A38: Variance
B39: =B13 -> Board Approved | C39: 2010 | E39: =D13 -> 2011 | G39: =E13 -> 2012 | I39: =F13 -> 2013 | K39: =G13 -> 2014 | M39: =H13 -> 2015 | O39: =I13 -> 2016 | Q39: =J13 -> 2017
A40: Operations | B40: 235909 | C40: 207838.36 | D40: =C40-B40 -> -28070.64 | E40: =D14 -> 222809.43 | F40: =E40-C40 -> 14971.07 | G40: =E14 -> 231656.52 | H40: =G40-E40 -> 8847.09 | I40: =F14 -> 228491.36 | J40: =I40-G40 -> -3165.16 | K40: =G14 -> 291183.64 | L40: =K40-I40 -> 62692.28 | M40: =H14 -> 311428 | N40: =M40-K40 -> 20244.36 | O40: =I14 -> 282541.76 | P40: =O40-M40 -> -28886.24 | Q40: =J14 -> 296946
A41: Maintenance | B41: 171718 | C41: 154106.37 | D41: =C41-B41 -> -17611.63 | E41: =D15 -> 147175.55 | F41: =E41-C41 -> -6930.82 | G41: =E15 -> 151790.64 | H41: 4615.09 | I41: =F15 -> 190005.96 | J41: 38215.32 | K41: =G15 -> 171742.67 | L41: -18263.29 | M41: =H15 -> 171109.48 | N41: -633.19 | O41: =I15 -> 189934 | P41: 18824.52 | Q41: =J15 -> 196759
A42: Billing and Collecting | B42: =B19 -> 328238 | C42: 352212.36 | D42: 23974.36 | E42: =D19 -> 335087.21 | F42: -17125.15 | G42: =E19 -> 359318.88 | H42: 24231.67 | I42: =F19 -> 400546.06 | J42: 41227.18 | K42: =G19 -> 387607.5 | L42: -12938.56 | M42: =H19 -> 417962.52 | N42: 30355.02 | O42: =I19 -> 433354.52 | P42: 15392 | Q42: =J19 -> 467660
A43: Community Relations | B43: 1000 | C43: 2022.07 | D43: 1022.07 | E43: =D20 -> 3338.75 | F43: 1316.68 | G43: =E20 -> 1684.35 | H43: -1654.4 | I43: =F20 -> 1285.87 | J43: -398.48 | K43: =G20 -> 2852.87 | L43: 1567 | M43: =H20 -> 1688.17 | N43: -1164.7 | O43: =I20 -> 3000 | P43: 1311.83 | Q43: =J20 -> 6000
A44: Administrative and General | B44: 434729 | C44: 324919.95 | D44: -109809.05 | E44: =D21 -> 435301.6 | F44: 110381.65 | G44: =E21 -> 457588.53 | H44: 22286.93 | I44: =F21 -> 434566.63 | J44: -23021.9 | K44: =G21 -> 386772.74 | L44: -47793.89 | M44: =H21 -> 427970.03 | N44: 41197.29 | O44: =I21 -> 519090.8 | P44: 91120.77 | Q44: =J21 -> 581915
A45: Total | B45: =SUM(B30:B34) -> 1171594 | C45: =SUM(C30:C34) -> 1041099.11 | D45: -130494.89 | E45: =SUM(D30:D34) -> 1143712.54 | F45: 102613.43 | G45: =SUM(E30:E34) -> 1202038.92 | H45: 58326.38 | I45: =SUM(F30:F34) -> 1254895.88 | J45: 52856.96 | K45: =SUM(G30:G34) -> 1240159.42 | L45: -14736.46 | M45: =SUM(H30:H34) -> 1330158.2 | N45: 89998.78 | O45: =SUM(I30:I34) -> 1427921.08 | P45: 97762.88 | Q45: =SUM(J30:J34) -> 1549280
A46: %Change (year over year) | C46: =IF(ISERROR((C35-B35)/B35), "", (C35-B35)/B35) -> -0.1113823475 | D46: -0.1113823475 | E46: =IF(ISERROR((D35-C35)/C35), "", (D35-C35)/C35) -> 0.09856259506 | F46: 0.2099449425 | G46: =IF(ISERROR((E35-D35)/D35), "", (E35-D35)/D35) -> 0.05099741234 | H46: -0.04756518272 | I46: =IF(ISERROR((F35-E35)/E35), "", (F35-E35)/E35) -> 0.04397275256 | J46: -0.007024659777 | K46: =IF(ISERROR((G35-F35)/F35), "", (G35-F35)/F35) -> -0.01174317347 | L46: -0.05571592603 | M46: =IF(ISERROR((H35-G35)/G35), "", (H35-G35)/G35) -> 0.07257033132 | N46: 0.08431350479 | O46: =IF(ISERROR((I35-H35)/H35), "", (I35-H35)/H35) -> 0.07349718252 | P46: 0.0009268511948 | Q46: =IF(ISERROR((J35-I35)/I35), "", (J35-I35)/I35) -> 0.08498993516

Sheet App.2-JB_OM&A_Cost _Drivers
F1: File Number: | G1: =EBNUMBER -> EB-2016-0166
F2: Exhibit:
F3: Tab:
F4: Schedule:
F5: Page:
F7: Date:
A10: Appendix 2-JB
A11: Recoverable OM&A Cost Driver Table
A14: Reporting Basis | B14: CGAAP | C14: CGAAP | D14: CGAAP | E14: NEWGAAP | F14: NEWGAAP | G14: MIFRS | H14: MIFRS | I14: MIFRS
A15: OM&A | B15: 2010 | C15: 2011 | D15: 2012 | E15: 2013 | F15: 2014 | G15: 2015 | H15: 2016 | I15: 2017
A16: Opening Balance | B16: 1149829 | C16: 1041099.32 | D16: 1143712.54 | E16: 1202038.52 | F16: 1254895.94 | G16: 1240158.94 | H16: 1330157.93 | I16: 1427920.93
A18: Operation expenses - increased training and apprenticeship training | C18: 17300 | D18: -17300 | F18: 11800
A19: Operation Supplies - reduced spending in 2015, back to average for 2017 | G19: -20000 | I19: 14500
A20: Transformer PCB Testing, postponed 2010, completed 2015, return to normal 2016 | B20: -12500 | G20: 34500 | H20: -34500
A21: Garage rental increase - new location required, 6 month 2015, 12 month 2016+ | G21: 9500 | H21: 8000
A22: Substation electrical testing, postponed 2010, planned for 2016, back to normal for 2017 | B22: -7500 | H22: 7500 | I22: -7500
A23: Health and Safety - training and courses | F23: 3275
A25: Maintenance of Poles - fluctuations in required maintenance | E25: 7164
A26: Maintenance of Overhead Conductor - fluctuations in required maintenance | B26: -13000 | E26: 9041
A27: Tree trimming - fluctuations in timing/requirements and increased labour/burden rates | C27: -21834.93 | E27: 5110 | I27: 5000
A28: Maintenance of Line Transformers - fluctuations in required maintenance | C28: 8688.73 | D28: -8797 | E28: 7873
A29: Maintenance of Overhead Services - fluctuations in required maintenance | E29: 8928.42
A30: Transformer replacements planned (pcb content) over 4 years | H30: 17300
A32: Customer Billing - postage increases and smart meter operational increased expenses | B32: -23326 | C32: 25000 | D32: 25000
A33: CSR - retiree - overlap | H33: 8000
A34: Bad Debt Expense - large GS>50 customer in 2011,reduced in 2012 but growing annually | B34: 55087.97 | C34: -37901.1 | E34: 5917 | F34: 6400 | G34: -3325.61 | H34: 2600
A35: Customer Billing labour- 3.5 month overlap 2013, reduced back in 2014 | E35: 30000 | F35: -20000
A36: Customer billing - 3 month overlap new software service provider, increased support costs | G36: 30000
A37: Increased postage and billing supplies - change from bi-monthly billing to monthly | I37: 28280
A39: Community Relations - planned increases for customer focus | H39: 1500 | I39: 3000
A41: Admin - training/travel/supplies | B41: -12300 | C41: 12600
A42: Consulting - IFRS/BDO consulting in 2010 rates - start 2011, | B42: -15450 | C42: 12200 | D42: 20000
A43: Regulatory Expenses - COS in 2010 rates - start 2011, ended in 2014 | B43: -48800 | C43: 45476.15 | F43: -32500
A44: Maintenance of General Plant - increased repairs for 2011 and 2012 | B44: -7418.65 | C44: 13680 | E44: -4520
A46: Penalties - Late payment LPP | C46: 14453.29
A47: Management Salaries and Expenses - 3.5 months overlap 2012 - retiree | D47: 30056.46 | E47: -19500
A48: Advertising and recruiting - for two positions (2 retirees) | D48: 8657.52
A49: New office rent 6months 2015, 12 months 2016+ | G49: 7900 | H49: 7900
A50: Labour and expenses required for the move to new location 2015, reduced to R&M for 2016 | G50: 25000 | H50: -11500
A51: New Memberships | F51: 6250 | G51: 6750
A52: Advertising and recruiting costs - president retiring | G52: 11000
A53: Executive salaries - overlap - retirement - Q4 - 2015 | G53: 9600
A54: Post retirement adjustment - actuarial first year 2015 | G54: -23246.4 | H54: 23000
A55: Executive salaries - overlap Q1 2016, increases in burden, allocation change | H55: 50000
A56: Customer Satisfaction Survey | H56: 10000
A57: Safety Survey | H57: 10000
A58: Retiree benefit costs - Increased benefit premiums and additional retirees added | I58: 5000
A59: Increased annual regulatory costs - annual assessments | I59: 10000
A60: Begin 5 year amortization of Cost of Service Regulatory costs | I60: 53200
A61: Half of biennial survey costs - Customer Satisfaction and Safety | I61: 10000
A63: Miscellaneous - remaining small variances | B63: -23523 | C63: 12951.08 | D63: 709 | E63: 2844 | F63: 10038 | G63: 2321 | H63: -2037 | I63: -121
A66: Closing Balance | B66: 1041099.32 | C66: 1143712.54 | D66: 1202038.52 | E66: 1254895.94 | F66: 1240158.94 | G66: 1330157.93 | H66: 1427920.93 | I66: 1549279.93
A67: OM&A Summay Integrity Check | B67: 1041099.11 | C67: 1143712.54 | D67: 1202038.92 | E67: 1254895.88 | F67: 1240159.42 | G67: 1330158.2 | H67: 1427921.08 | I67: 1549280
A68: Difference | B68: 0.2100000002 | C68: 0 | D68: -0.3999999999 | E68: 0.06000000006 | F68: -0.48 | G68: -0.2699999998 | H68: -0.1500000001 | I68: -0.07000000007
A69: Change from prior year | B69: -108729.89 | C69: 102613.43 | D69: 58326.38 | E69: 52856.96 | F69: -14736.46 | G69: 89998.78 | H69: 97762.88 | I69: 121358.92
B70: -0.09456179136 | C70: 0.09856237347 | D70: 0.05099741234 | E70: 0.04397309996 | F70: -0.01174322072 | G70: 0.07257074646 | H70: 0.07349740042 | I70: 0.08499004913
I71: 0.3474003526

Sheet App.2-JC_OMA Programs
H1: File Number: | I1: =EBNUMBER -> EB-2016-0166
H2: Exhibit:
H3: Tab:
H4: Schedule:
H5: Page:
H7: Date:
A9: Appendix 2-JC
A10: OM&A Programs Table
K13: Test Year Versus Last Rebasing | L13: Test Year Versus Most Current Actuals
A14: Reporting Basis | B14: CGAAP | C14: CGAAP | D14: CGAAP | E14: CGAAP | F14: NEWGAAP | G14: NEWGAAP | H14: MIFRS | I14: MIFRS | J14: MIFRS
A15: Programs | B15: 2010 BA | C15: 2010 Actual | D15: 2011 | E15: 2012 | F15: 2013 | G15: 2014 | H15: 2015 | I15: 2016 | J15: 2017 | K15: Variance ($) | L15: Variance ($)
A17: Customer Focus
A18: Community Relations | B18: 1000 | C18: 2022.07 | D18: 3338.75 | E18: 1684.35 | F18: 1285.87 | G18: 2852.87 | H18: 1688.17 | I18: 3000 | J18: 6000 | K18: 5000 | L18: 4311.83
A19: Customer Service, Mailing Costs, Billing and Collections | B19: 303238 | C19: 271915.44 | D19: 292893.49 | E19: 337915.48 | F19: 373283.09 | G19: 354230.24 | H19: 387468.78 | I19: 400354.52 | J19: 433988 | K19: 130750 | L19: 46519.22
A20: Bad Debts | B20: 25000 | C20: 80296.92 | D20: 42193.72 | E20: 21403.4 | F20: 27262.97 | G20: 33377.26 | H20: 30493.74 | I20: 33000 | J20: 33672 | K20: 8672 | L20: 3178.26
A21: Service Locates | B21: 19591 | C21: 18926.3 | D21: 11769.94 | E21: 10765.18 | F21: 21645.72 | G21: 25883.11 | H21: 27971.07 | I21: 29891 | J21: 30612 | K21: 11021 | L21: 2640.93
A22: Low Income Assistance Program | D22: 2500 | E22: 2500 | F22: 5000 | G22: 5000 | H22: 5000 | I22: 5000 | J22: 5000 | K22: 5000 | L22: 0
A23: Sub-Total | B23: 348829 | C23: 373160.73 | D23: 352695.9 | E23: 374268.41 | F23: 428477.65 | G23: 421343.48 | H23: 452621.76 | I23: 471245.52 | J23: 509272 | K23: 160443 | L23: 56650.24
A25: Operational Effectiveness
A26: Municipal Substation -O&M | B26: 41209 | C26: 48148.83 | D26: 37063.75 | E26: 33898.66 | F26: 34007.75 | G26: 36589.94 | H26: 35726.43 | I26: 45566 | J26: 40587 | K26: -622 | L26: 4860.57
A27: Meters - O&M | B27: 31271 | C27: 25291.92 | D27: 35506.78 | E27: 25672.15 | F27: 32640.27 | G27: 26680.81 | H27: 30056.3 | I27: 21421 | J27: 23874 | K27: -7397 | L27: -6182.3
A28: Transformers - O&M | B28: 43863 | C28: 6389.71 | D28: 21067.89 | E28: 11899.9 | F28: 14710.26 | G28: 15281.19 | H28: 51080.45 | I28: 39595 | J28: 38565 | K28: -5298 | L28: -12515.45
A29: Overhead - O&M | B29: 121429 | C29: 96490.58 | D29: 116700.35 | E29: 101102.42 | F29: 113808.48 | G29: 132944.25 | H29: 98778.21 | I29: 96190 | J29: 113058 | K29: -8371 | L29: 14279.79
A30: Underground lines - O&M | B30: 4927 | C30: 643.33 | D30: 1123.87 | E30: 1665.42 | F30: 4779.73 | G30: 3005.01 | H30: 9195.89 | I30: 9598 | J30: 9805 | K30: 4878 | L30: 609.11
A31: Tree trimming | B31: 102455 | C31: 114719.1 | D31: 92884.17 | E31: 119067.95 | F31: 124177.81 | G31: 109371.11 | H31: 106991.16 | I31: 104699 | J31: 109556 | K31: 7101 | L31: 2564.84
A32: Miscellanous distribution operational expenses | B32: 42882 | C32: 35024.96 | D32: 37491.49 | E32: 62928.74 | F32: 56206.98 | G32: 59783.41 | H32: 64545.81 | I32: 60688 | J32: 62090 | K32: 19208 | L32: -2455.81
A33: Health & Safety Costs | G33: 36789.96 | H33: 32095.36 | I33: 30664 | J33: 31346 | K33: 31346 | L33: -749.36
A34: Warehouse and Garage Building Rent | B34: 16000 | C34: 16310 | D34: 16376.74 | E34: 16446.74 | F34: 16520.32 | G34: 16597.52 | H34: 26096.8 | I34: 34163.76 | J34: 34212 | K34: 18212 | L34: 8115.2
A35: Management and Administration | B35: 197929 | C35: 180332.88 | D35: 184471.27 | E35: 218479.62 | F35: 202272.33 | G35: 202430.34 | H35: 225687.14 | I35: 285265 | J35: 292053 | K35: 94124 | L35: 66365.86
A36: Office, Advertising, Memberships, and Miscellaneous | B36: 47685 | C36: 57078.27 | D36: 68858.35 | E36: 78037.54 | F36: 69544.88 | G36: 75970.87 | H36: 80474.52 | I36: 77719 | J36: 77933 | K36: 30248 | L36: -2541.52
A37: Office Building | B37: 10500 | C37: 19081.35 | D37: 45231.43 | E37: 33323.86 | F37: 28803.81 | G37: 21878.33 | H37: 55351.23 | I37: 51789.48 | J37: 42698 | K37: 32198 | L37: -12653.23
A38: Post Employment Benefits | B38: 33500 | C38: 29481.03 | D38: 22599.32 | E38: 26366.72 | F38: 30209.75 | G38: 25714.96 | H38: 2468.56 | I38: 24604 | J38: 29460 | K38: -4040 | L38: 26991.44
A39: Sub-Total | B39: 693650 | C39: 628991.96 | D39: 679375.41 | E39: 728889.72 | F39: 727682.37 | G39: 763037.7 | H39: 818547.86 | I39: 881962.24 | J39: 905237 | K39: 211587 | L39: 86689.14
A41: Public and Regulatory Responsiveness
A42: Insurance | B42: 10000 | C42: 9064.02 | D42: 9643.19 | E42: 7049.71 | F42: 10194.71 | G42: 10642.32 | H42: 8640.84 | I42: 11215 | J42: 11455 | K42: 1455 | L42: 2814.16
A43: Regulatory compliance | B43: 61050 | C43: 12090.05 | D43: 57566.2 | E43: 46106.42 | F43: 44712.1 | G43: 12057.17 | H43: 12201.76 | I43: 32040 | J43: 85200 | K43: 24150 | L43: 72998.24
A44: Legal & Accounting | B44: 36300 | C44: 17792.35 | D44: 29978.55 | E44: 45724.66 | F44: 43829.05 | G44: 33078.75 | H44: 38145.98 | I44: 31458.32 | J44: 38116 | K44: 1816 | L44: -29.98
A45: Penalties - LPP | D45: 14453.29
A46: Sub-Total | B46: 107350 | C46: 38946.42 | D46: 111641.23 | E46: 98880.79 | F46: 98735.86 | G46: 55778.24 | H46: 58988.58 | I46: 74713.32 | J46: 134771 | K46: 27421 | L46: 75782.42
A48: TOTAL OM&A | B48: 1149829 | C48: 1041099.11 | D48: 1143712.54 | E48: 1202038.92 | F48: 1254895.88 | G48: 1240159.42 | H48: 1330158.2 | I48: 1427921.08 | J48: 1549280 | K48: 399451 | L48: 219121.8
A49: Integrity Check | B49: 1149829 | C49: 1041099.11 | D49: 1143712.54 | E49: 1202038.92 | F49: 1254895.88 | G49: 1240159.42 | H49: 1330158.2 | I49: 1427921.08 | J49: 1549280

Sheet App.2-K_Employee Costs
I1: File Number: | J1: =EBNUMBER -> EB-2016-0166
I2: Exhibit:
I3: Tab:
I4: Schedule:
I5: Page:
I7: Date:
A9: Appendix 2-K
A10: Employee Costs
B12: Board Approved | C12: CGAAP | D12: CGAAP | E12: CGAAP | F12: NEWGAAP | G12: NEWGAAP | H12: MIFRS | I12: MIFRS | J12: MIFRS
B13: 2010 | C13: 2010 | D13: 2011 | E13: 2012 | F13: 2013 | G13: 2014 | H13: 2015 | I13: 2016 | J13: 2017
A14: Number of Employees (FTEs including Part-Time)1
A15: Management (including executive) | B15: 2 | C15: 2 | D15: 2 | E15: 2.333333333 | F15: 2 | G15: 2 | H15: 2.083333333 | I15: 2.166666667 | J15: 2
A16: Non-Management (union and non-union) | B16: 8.8 | C16: 8 | D16: 8.166666667 | E16: 8.458333333 | F16: 9 | G16: 8 | H16: 8 | I16: 8.083333333 | J16: 8
A17: Total | B17: 10.8 | C17: 10 | D17: 10.16666667 | E17: 10.79166667 | F17: 11 | G17: 10 | H17: 10.08333333 | I17: 10.25 | J17: 10
A18: Total Salary and Wages including ovetime and incentive pay
A19: Management (including executive) | B19: 0 | C19: 0 | D19: 0 | E19: 0 | F19: 0 | G19: 0 | H19: 0 | I19: 0 | J19: 0
A20: Non-Management (union and non-union) | B20: 669540 | C20: 637006.82 | D20: 681809.4 | E20: 672943.38 | F20: 716509.63 | G20: 740913.94 | H20: 733961.96 | I20: 762324.61 | J20: 774794.4
A21: Total | B21: 669540 | C21: 637006.82 | D21: 681809.4 | E21: 672943.38 | F21: 716509.63 | G21: 740913.94 | H21: 733961.96 | I21: 762324.61 | J21: 774794.4
A22: Total Benefits (Current + Accrued)
A23: Management (including executive) | B23: 0 | C23: 0 | D23: 0 | E23: 0 | F23: 0 | G23: 0 | H23: 0 | I23: 0 | J23: 0
A24: Non-Management (union and non-union) | B24: 198928 | C24: 169265.7 | D24: 188387.01 | E24: 191536.17 | F24: 203144.06 | G24: 206689.56 | H24: 207722.13 | I24: 231847.87 | J24: 233944.34
A25: Total | B25: 198928 | C25: 169265.7 | D25: 188387.01 | E25: 191536.17 | F25: 203144.06 | G25: 206689.56 | H25: 207722.13 | I25: 231847.87 | J25: 233944.34
A26: Total Compensation (Salary, Wages, & Benefits)
A27: Management (including executive) | B27: 0 | C27: 0 | D27: 0 | E27: 0 | F27: 0 | G27: 0 | H27: 0 | I27: 0 | J27: 0
A28: Non-Management (union and non-union) | B28: 868468 | C28: 806272.52 | D28: 870196.41 | E28: 864479.55 | F28: 919653.69 | G28: 947603.5 | H28: 941684.09 | I28: 994172.48 | J28: 1008738.74
A29: Total | B29: 868468 | C29: 806272.52 | D29: 870196.41 | E29: 864479.55 | F29: 919653.69 | G29: 947603.5 | H29: 941684.09 | I29: 994172.48 | J29: 1008738.74

Sheet App.2-L_OM&A_per_Cust_FTEE
G1: File Number: | H1: =EBNUMBER -> EB-2016-0166
G2: Exhibit:
G3: Tab:
G4: Schedule:
G5: Page:
G7: Date:
A9: Appendix 2-L
A10: Recoverable OM&A Cost per Customer and per FTE 1
C12: ='[4]0.1 LDC Info'!E27 -> 2010 | D12: ='[4]0.1 LDC Info'!E27+1 -> 2011 | E12: ='[4]0.1 LDC Info'!E27+2 -> 2012 | F12: ='[4]0.1 LDC Info'!E27+3 -> 2013 | G12: ='[4]0.1 LDC Info'!E27+4 -> 2014 | H12: =Bridge_Year -> 2016 | I12: =Test_Year -> 2017
A13: Reporting Basis
A14: Number of Customers | C14: ='[4]3.10 LoadForecast'!C23 -> 5363 | D14: ='[4]3.10 LoadForecast'!D23 -> 5393 | E14: ='[4]3.10 LoadForecast'!G23 -> 5473 | F14: ='[4]3.10 LoadForecast'!J23 -> 5504.277045 | G14: ='[4]3.10 LoadForecast'!K23 -> 5542.943822 | H14: ='[4]3.10 LoadForecast'!K23 -> 5542.943822 | I14: ='[4]3.10 LoadForecast'!K23 -> 5542.943822
A15: Total Recoverable OM&A | C15: ='[4]4.1 OM&A_Detailed_Analysis'!C129 -> 1041099.11 | D15: ='[4]4.1 OM&A_Detailed_Analysis'!D129 -> 1143712.54 | E15: ='[4]4.1 OM&A_Detailed_Analysis'!E129 -> 1202038.92 | F15: ='[4]4.1 OM&A_Detailed_Analysis'!F129 -> 1254895.88 | G15: ='[4]4.1 OM&A_Detailed_Analysis'!G129 -> 1240159.42 | H15: ='[4]4.1 OM&A_Detailed_Analysis'!I129 -> 1427921.08 | I15: ='[4]4.1 OM&A_Detailed_Analysis'!J129 -> 1549280
A16: OM&A cost per customer | C16: =IF(C14=0,"",C15/C14) -> 194.1262558 | D16: =IF(D14=0,"",D15/D14) -> 212.0735286 | E16: 219.6307181 | F16: 227.9855955 | G16: =IF(G14=0,"",G15/G14) -> 223.7366027 | H16: =IF(H14=0,"",H15/H14) -> 257.6105993 | I16: 279.5049074
A17: Number of FTEs | C17: ='[4]4.7 Employee Costs'!C17 -> 10 | D17: ='[4]4.7 Employee Costs'!D17 -> 10 | E17: ='[4]4.7 Employee Costs'!E17 -> 10 | F17: ='[4]4.7 Employee Costs'!F17 -> 10 | G17: ='[4]4.7 Employee Costs'!G17 -> 10 | H17: ='[4]4.7 Employee Costs'!I17 -> 10 | I17: ='[4]4.7 Employee Costs'!J17 -> 10
A18: Customers/FTEs | C18: =IF(C17=0,"",C14/C17) -> 536.3 | D18: 539.3 | E18: 547.3 | F18: 550.4277045 | G18: 554.2943822 | H18: 554.2943822 | I18: 554.2943822
A19: OM&A Cost per FTE | C19: =IF(C17=0,"",C15/C17) -> 104109.911 | D19: 114371.254 | E19: 120203.892 | F19: 125489.588 | G19: 124015.942 | H19: 142792.108 | I19: 154928

Sheet App.2-M_Regulatory_Costs
J1: File Number: | K1: =EBNUMBER -> EB-2016-0166
J2: Exhibit:
J3: Tab:
J4: Schedule:
J5: Page:
J7: Date:
A9: Appendix 2-M
A10: Regulatory Cost Schedule
E12: On-Going
A13: Regulatory Cost Category | C13: USoA Account | D13: USoA Account Balance | E13: Ongoing or One-time Cost? | F13: Last Rebasing Year Board Approved | G13: ='[4]0.1 LDC Info'!$E$27 -> 2010 | H13: ='[4]0.1 LDC Info'!$E$27+1 -> 2011 | I13: ='[4]0.1 LDC Info'!$E$27+2 -> 2012 | J13: ='[4]0.1 LDC Info'!$E$27+3 -> 2013 | K13: ='[4]0.1 LDC Info'!$E$27+4 -> 2014 | L13: ='[4]0.1 LDC Info'!$E$27+5 -> 2015 | M13: =Bridge_Year -> 2016 | N13: =Test_Year -> 2017
A14: 1 | B14: OEB Annual Assessment | C14: 5655 | D14: 5655 | E14: On-Going | G14: 11616.7 | H14: 12312.76 | I14: 11813.92 | J14: 12212.1 | K14: 12057.17 | L14: 12201.76 | M14: 12040 | N14: 22000
A15: 2 | B15: OEB Section 30 Costs (Applicant-originated) | E15: On-Going
A16: 3 | B16: OEB Section 30 Costs (OEB-initiated) | E16: On-Going
A17: 4 | B17: Expert Witness costs for regulatory matters | E17: On-Going
A18: 5 | B18: Legal costs for regulatory matters | E18: On-Going
A19: 6 | B19: Consultants' costs for regulatory matters | C19: 5655 | E19: On-Going | H19: 33236.44 | I19: 32500 | J19: 32500 | N19: =G45 -> 53200
A20: 7 | B20: Operating expenses associated with staff resources allocated to regulatory matters | E20: On-Going
A21: 8 | B21: Operating expenses associated with other resources allocated to regulatory matters 1 | E21: On-Going
A22: 9 | B22: Other regulatory agency fees or assessments | E22: On-Going
A23: 10 | B23: Regulatory Costs related to IRM | E23: On-Going | G23: 473.35 | H23: 12017 | I23: 1792.5
B24: Safety Survey Costs | C24: 5655 | E24: On-Going | M24: 10000 | N24: 5000
B25: Customer Satisfaction Survey Costs | C25: 5655 | E25: On-Going | M25: 10000 | N25: 5000
A26: 11 | B26: Intervenor costs | E26: On-Going
A27: 12 | B27: Sub-total - Ongoing Costs 3 | D27: =SUMIF($E14:$E26,$E11,D14:D26) -> 0 | F27: =SUMIF($E14:$E26,$E11,F14:F26) -> 0 | G27: 0 | H27: 0 | I27: 0 | J27: 0 | K27: =SUMIF($E14:$E26,$E11,K14:K26) -> 0 | L27: =SUMIF($E14:$E26,$E11,L14:L26) -> 0 | M27: =SUMIF($E14:$E26,$E11,M14:M26) -> 0 | N27: 0
A28: 13 | B28: Sub-total - One-time Costs 4 | D28: =SUMIF($E14:$E26,$E12,D14:D26) -> 5655 | F28: =SUMIF($E14:$E26,$E12,F14:F26) -> 0 | G28: 12090.05 | H28: 57566.2 | I28: 46106.42 | J28: 44712.1 | K28: =SUMIF($E14:$E26,$E12,K14:K26) -> 12057.17 | L28: =SUMIF($E14:$E26,$E12,L14:L26) -> 12201.76 | M28: =SUMIF($E14:$E26,$E12,M14:M26) -> 32040 | N28: 85200
A29: 14 | B29: Total | D29: =D27+D28 -> 5655 | F29: =F27+F28 -> 0 | G29: 12090.05 | H29: 57566.2 | I29: 46106.42 | J29: 44712.1 | K29: =K27+K28 -> 12057.17 | L29: =L27+L28 -> 12201.76 | M29: =M27+M28 -> 32040 | N29: 85200
B32: Breakdown of Expenses related to Cost of Service
C35: =Test_Year -> 2017 | D35: =Test_Year+1 -> 2018 | E35: =Test_Year+2 -> 2019 | F35: =Test_Year+3 -> 2020 | G35: =Test_Year+4 -> 2021
B38: Cost of Service | C38: =($C62)/5 -> 53200 | D38: =($C62)/5 -> 53200 | E38: =($C62)/5 -> 53200 | F38: =($C62)/5 -> 53200 | G38: =($C62)/5 -> 53200
B39: 1/5 per year
B41: IRM | C41: =$C65/5 -> 0 | D41: =$C65/5 -> 0 | E41: =$C65/5 -> 0 | F41: =$C65/5 -> 0 | G41: =$C65/5 -> 0
B43: Other Application | C43: =$C67/5 -> 0 | D43: =$C67/5 -> 0 | E43: =$C67/5 -> 0 | F43: =$C67/5 -> 0 | G43: =$C67/5 -> 0
B45: CoS costs included in 5655 | C45: =SUM(C37:C43) -> 53200 | D45: =SUM(D37:D43) -> 53200 | E45: =SUM(E37:E43) -> 53200 | F45: =SUM(F37:F43) -> 53200 | G45: =SUM(G37:G43) -> 53200
B47: Cost of Service Cost Components
B49: Consultant Application | C49: 50000 | D49: 50000
B50: Consultant IRs | C50: 10000 | D50: 5000
B51: Consultant assistance for CoS (DSP) | C51: 25000 | D51: 25000
B52: Consultant assistance for Irs (DSP) | C52: 10000 | D52: 5000
B53: External Costs - legal | C53: 20000 | D53: 10000
B54: External Costs (consulting fees T.F.) | C54: 20000 | D54: 20000
B55: Production & Submission | C55: 2500 | D55: 2500
B56: Public Notice | C56: 1000 | D56: 1000
B57: Settlement | C57: 20000 | D57: 20000
B58: Oral Hearing | C58: 50000 | D58: 0
B59: Reply submission | C59: 5000 | D59: 5000
B60: Intervenor costs | C60: 50000 | D60: 25000
B61: Rate Order | C61: 2500 | D61: 2500
B62: Total Cost of Service Filing costs | C62: =SUM(C49:C61) -> 266000 | D62: =SUM(D49:D61) -> 171000

Sheet App.2-N_Corp_Cost_Alloc
F1: File Number: | G1: =EBNUMBER -> EB-2016-0166
A2: NOT APPLICABLE | F2: Exhibit:
F3: Tab:
F4: Schedule:
F5: Page:
F7: Date:
A9: Appendix 2-N
A10: Shared Services and Corporate Cost Allocation 1
B12: Year:
A14: Shared Services
A16: Name of Company | C16: Service Offered | D16: Pricing Methodology | E16: Price for the Service | F16: Cost for the Service
A17: From | B17: To
E18: $ | F18: $
A28: Corporate Cost Allocation
A30: Name of Company | C30: Service Offered | D30: Pricing Methodology | E30: % of Corporate Costs Allocated | F30: Amount Allocated
A31: From | B31: To
E32: % | F32: $
A33: eg: parent company | B33: eg: regulated entity
A42: Note:
A43: 1 | B43: This appendix must be completed in relation to each service provided or received for the Historical (actuals), Bridge and Test years. The required information includes:
A46: · Type of Service:
A47: Services such as billing, accounting, payroll, etc. The applicant must identify any costs related to the Board of Directors of the parent company that are allocated to the applicant.
A49: · Pricing Methodology:
A50: Pricing Methodology includes approaches such as cost-base, market-base, tendering, etc. The applicant must provide evidence demonstrating the pricing methodology used. The applicant must also provide a description of why that pricing methodology was chosen, whether or not it is in conformity with ARC, and why it is appropriate.
A52: · % Allocation:
A53: The applicant must provide the percentage of the costs allocated to the entity for the service being offered. The Applicant must also provide a description of the allocator and why it is an appropriate allocator.

Sheet App.2-OA Capital Structure
A1: Data Storage Model version 2.0 © CHEC
C11: Capital Structure and Cost of Capital
A13: This table must be completed for the last Board approved year and the test year. | R13: Perscribed Cost of Capital | Z13: Actual Cost of Capital | AH13: Notional Debt
G15: Year: | H15: =Test_Year -> 2017 | R15: Year: | S15: =Test_Year -> 2017 | Z15: Year: | AA15: =Test_Year -> 2017 | AH15: Year: | AI15: =Test_Year -> 2017
A17: Line No.
C18: Particulars | E18: Capitalization Ratio | K18: Cost Rate | O18: Return | R18: Particulars | T18: Capitalization Ratio | Z18: Particulars | AB18: Capitalization Ratio | AH18: Particulars | AJ18: Capitalization Ratio
E20: (%) | I20: ($) | K20: (%) | O20: ($) | T20: (%) | X20: ($) | AB20: (%) | AF20: ($) | AJ20: (%) | AN20: ($)
C21: Debt | R21: Debt | Z21: Debt | AH21: Debt
A22: 1 | C22: Long-term Debt | E22: 0.56 | I22: =I31*E22 -> 3883037.469 | K22: 0.0454 | O22: =K22*I22 -> 176289.9011 | R22: Long-term Debt | T22: =E22 -> 0.56 | X22: =I22 -> 3883037.469 | Z22: Long-term Debt | AB22: =(AF22/AF31) -> 0.3915892962 | AF22: ='[4]5.2 Debt Instruments'!H21 -> 2715278.41 | AH22: Long-term Debt | AJ22: =AB22-T22 -> -0.1684107038 | AN22: =AF22-X22 -> -1167759.059
A23: 2 | C23: Short-term Debt | E23: 0.04 | G23: (1) | I23: =I31*E23 -> 277359.8192 | K23: 0.0165 | O23: =K23*I23 -> 4576.437017 | R23: Short-term Debt | T23: =E23 -> 0.04 | V23: (1) | X23: =I23 -> 277359.8192 | Z23: Short-term Debt | AB23: =(AF23/AF31) -> 0 | AD23: (1) | AF23: 0 | AH23: Short-term Debt | AJ23: =AB23-T23 -> -0.04 | AL23: (1) | AN23: =AF23-X23 -> -277359.8192
A24: 3 | C24: Total Debt | E24: =SUM(E22:E23) -> 0.6 | I24: =SUM(I22:I23) -> 4160397.288 | K24: =IF(E24=0,0,SUMPRODUCT(E22:E23,K22:K23)/E24) -> 0.04347333333 | O24: =SUM(O22:O23) -> 180866.3381 | R24: Total Debt | T24: =SUM(T22:T23) -> 0.6 | X24: =SUM(X22:X23) -> 4160397.288 | Z24: Total Debt | AB24: =SUM(AB22:AB23) -> 0.3915892962 | AF24: =SUM(AF22:AF23) -> 2715278.41 | AH24: Total Debt | AJ24: =SUM(AJ22:AJ23) -> -0.2084107038 | AN24: =SUM(AN22:AN23) -> -1445118.878
C26: Equity | R26: Equity | Z26: Equity | AH26: Equity
A27: 4 | C27: Common Equity | E27: 0.4 | I27: =I31*E27 -> 2773598.192 | K27: 0.0919 | O27: =K27*I27 -> 254893.6738 | R27: Common Equity | T27: =T31-T24 -> 0.4 | X27: =I27 -> 2773598.192 | Z27: Common Equity | AB27: =AB31-AB24 -> 0.6084107038 | AF27: =AB27*AF31 -> 4218717.07 | AH27: Common Equity | AJ27: =AB27-T27 -> 0.2084107038 | AN27: =AF27-X27 -> 1445118.878
A28: 5 | C28: Preferred Shares | I28: =I31*E28 -> 0 | O28: =K28*I28 -> 0 | R28: Preferred Shares | T28: =T32-T25 -> 0 | X28: =I28 -> 0 | Z28: Preferred Shares | AF28: 0 | AH28: Preferred Shares | AJ28: =AB28-T28 -> 0 | AN28: =AF28-X28 -> 0
A29: 6 | C29: Total Equity | E29: =SUM(E27:E28) -> 0.4 | I29: =SUM(I27:I28) -> 2773598.192 | K29: =IF(E29=0,0,SUMPRODUCT(E27:E28,K27:K28)/E29) -> 0.0919 | O29: =SUM(O27:O28) -> 254893.6738 | R29: Total Equity | T29: =SUM(T27:T28) -> 0.4 | X29: =SUM(X27:X28) -> 2773598.192 | Z29: Total Equity | AB29: =SUM(AB27:AB28) -> 0.6084107038 | AF29: =SUM(AF27:AF28) -> 4218717.07 | AH29: Total Equity | AJ29: =SUM(AJ27:AJ28) -> 0.2084107038 | AN29: =SUM(AN27:AN28) -> 1445118.878
A31: 7 | C31: Total | E31: 1 | I31: ='[4]2.1. Rate Base Trend '!J18 -> 6933995.48 | K31: =(K24*E24)+(K29*E29) -> 0.062844 | O31: =O24+O29 -> 435760.012 | R31: Total | T31: 1 | X31: =I31 -> 6933995.48 | Z31: Total | AB31: 1 | AF31: =I31 -> 6933995.48 | AH31: Total | AJ31: 1
G34: Year: | H34: =Bridge_Year -> 2016
A36: Line No.
C37: Particulars | E37: Capitalization Ratio | K37: Cost Rate | O37: Return
E39: (%) | I39: ($) | K39: (%) | O39: ($)
C40: Debt
A41: 1 | C41: Long-term Debt | E41: 0.56 | I41: =I50*E41 -> 3840132.567 | K41: 0.0576 | O41: =K41*I41 -> 221191.6358
A42: 2 | C42: Short-term Debt | E42: 0.04 | G42: (1) | I42: =I50*E42 -> 274295.1833 | K42: 0.0207 | O42: =K42*I42 -> 5677.910295
A43: 3 | C43: Total Debt | E43: =SUM(E41:E42) -> 0.6 | I43: =SUM(I41:I42) -> 4114427.75 | K43: =IF(E43=0,0,SUMPRODUCT(E41:E42,K41:K42)/E43) -> 0.05514 | O43: =SUM(O41:O42) -> 226869.5461
C45: Equity
A46: 4 | C46: Common Equity | E46: 0.4 | I46: =I50*E46 -> 2742951.833 | K46: 0.0985 | O46: =K46*I46 -> 270180.7556
A47: 5 | C47: Preferred Shares | I47: =I71*E47 -> 0 | O47: =K47*I47 -> 0
A48: 6 | C48: Total Equity | E48: =SUM(E46:E47) -> 0.4 | I48: =SUM(I46:I47) -> 2742951.833 | K48: =IF(E48=0,0,SUMPRODUCT(E46:E47,K46:K47)/E48) -> 0.0985 | O48: =SUM(O46:O47) -> 270180.7556
A50: 7 | C50: Total | E50: 1 | I50: ='[4]2.1. Rate Base Trend '!I18 -> 6857379.583 | K50: =(K43*E43)+(K48*E48) -> 0.072484 | O50: =O43+O48 -> 497050.3017
G53: Year: | H53: ='[4]0.1 LDC Info'!$E$27+5 -> 2015
A55: Line No.
C56: Particulars | E56: Capitalization Ratio | K56: Cost Rate | O56: Return
E58: (%) | I58: ($) | K58: (%) | O58: ($)
C59: Debt
A60: 1 | C60: Long-term Debt | E60: 0.56 | I60: =I69*E60 -> 3858006.202 | K60: 0.0576 | O60: =K60*I60 -> 222221.1572
A61: 2 | C61: Short-term Debt | E61: 0.04 | G61: (1) | I61: =I69*E61 -> 275571.8715 | K61: 0.0207 | O61: =K61*I61 -> 5704.337741
A62: 3 | C62: Total Debt | E62: =SUM(E60:E61) -> 0.6 | I62: =SUM(I60:I61) -> 4133578.073 | K62: =IF(E62=0,0,SUMPRODUCT(E60:E61,K60:K61)/E62) -> 0.05514 | O62: =SUM(O60:O61) -> 227925.495
C64: Equity
A65: 4 | C65: Common Equity | E65: 0.4 | I65: =I69*E65 -> 2755718.715 | K65: 0.0985 | O65: =K65*I65 -> 271438.2935
A66: 5 | C66: Preferred Shares | I66: =I90*E66 -> 0 | O66: =K66*I66 -> 0
A67: 6 | C67: Total Equity | E67: =SUM(E65:E66) -> 0.4 | I67: =SUM(I65:I66) -> 2755718.715 | K67: =IF(E67=0,0,SUMPRODUCT(E65:E66,K65:K66)/E67) -> 0.0985 | O67: =SUM(O65:O66) -> 271438.2935
A69: 7 | C69: Total | E69: 1 | I69: ='[4]2.1. Rate Base Trend '!H18 -> 6889296.788 | K69: =(K62*E62)+(K67*E67) -> 0.072484 | O69: =O62+O67 -> 499363.7884
G71: Year: | H71: ='[4]0.1 LDC Info'!$E$27+4 -> 2014
A73: Line No.
C74: Particulars | E74: Capitalization Ratio | K74: Cost Rate | O74: Return
E76: (%) | I76: ($) | K76: (%) | O76: ($)
C77: Debt
A78: 1 | C78: Long-term Debt | E78: 0.56 | I78: =I87*E78 -> 3649803.55 | K78: 0.0576 | O78: =K78*I78 -> 210228.6845
A79: 2 | C79: Short-term Debt | E79: 0.04 | G79: (1) | I79: =I87*E79 -> 260700.2536 | K79: 0.0207 | O79: =K79*I79 -> 5396.495249
A80: 3 | C80: Total Debt | E80: =SUM(E78:E79) -> 0.6 | I80: =SUM(I78:I79) -> 3910503.803 | K80: =IF(E80=0,0,SUMPRODUCT(E78:E79,K78:K79)/E80) -> 0.05514 | O80: =SUM(O78:O79) -> 215625.1797
C82: Equity
A83: 4 | C83: Common Equity | E83: 0.4 | I83: =I87*E83 -> 2607002.536 | K83: 0.0985 | O83: =K83*I83 -> 256789.7498
A84: 5 | C84: Preferred Shares | I84: =I108*E84 -> 0 | O84: =K84*I84 -> 0
A85: 6 | C85: Total Equity | E85: =SUM(E83:E84) -> 0.4 | I85: =SUM(I83:I84) -> 2607002.536 | K85: =IF(E85=0,0,SUMPRODUCT(E83:E84,K83:K84)/E85) -> 0.0985 | O85: =SUM(O83:O84) -> 256789.7498
A87: 7 | C87: Total | E87: 1 | I87: ='[4]2.1. Rate Base Trend '!G18 -> 6517506.339 | K87: =(K80*E80)+(K85*E85) -> 0.072484 | O87: =O80+O85 -> 472414.9295
G89: Year: | H89: ='[4]0.1 LDC Info'!$E$27+3 -> 2013
E93: (%) | I93: ($) | K93: (%) | O93: ($)
C94: Debt
A95: 1 | C95: Long-term Debt | E95: 0.56 | I95: =I104*E95 -> 3545111.482 | K95: 0.0576 | O95: =K95*I95 -> 204198.4213
A96: 2 | C96: Short-term Debt | E96: 0.04 | G96: (1) | I96: =I104*E96 -> 253222.2487 | K96: 0.0207 | O96: =K96*I96 -> 5241.700548
A97: 3 | C97: Total Debt | E97: =SUM(E95:E96) -> 0.6 | I97: =SUM(I95:I96) -> 3798333.73 | K97: =IF(E97=0,0,SUMPRODUCT(E95:E96,K95:K96)/E97) -> 0.05514 | O97: =SUM(O95:O96) -> 209440.1219
C99: Equity
A100: 4 | C100: Common Equity | E100: 0.4 | I100: =I104*E100 -> 2532222.487 | K100: 0.0985 | O100: =K100*I100 -> 249423.9149
A101: 5 | C101: Preferred Shares | I101: =I125*E101 -> 0 | O101: =K101*I101 -> 0
A102: 6 | C102: Total Equity | E102: =SUM(E100:E101) -> 0.4 | I102: =SUM(I100:I101) -> 2532222.487 | K102: =IF(E102=0,0,SUMPRODUCT(E100:E101,K100:K101)/E102) -> 0.0985 | O102: =SUM(O100:O101) -> 249423.9149
A104: 7 | C104: Total | E104: 1 | I104: ='[4]2.1. Rate Base Trend '!F18 -> 6330556.217 | K104: =(K97*E97)+(K102*E102) -> 0.072484 | O104: =O97+O102 -> 458864.0368
G107: Year: | H107: ='[4]0.1 LDC Info'!$E$27+2 -> 2012
A109: Line No.
C110: Particulars | E110: Capitalization Ratio | K110: Cost Rate | O110: Return
E112: (%) | I112: ($) | K112: (%) | O112: ($)
C113: Debt
A114: 1 | C114: Long-term Debt | E114: 0.56 | I114: =I123*E114 -> 3413977.143 | K114: 0.0576 | O114: =K114*I114 -> 196645.0834
A115: 2 | C115: Short-term Debt | E115: 0.04 | G115: (1) | I115: =I123*E115 -> 243855.5102 | K115: 0.0207 | O115: =K115*I115 -> 5047.809062
A116: 3 | C116: Total Debt | E116: =SUM(E114:E115) -> 0.6 | I116: =SUM(I114:I115) -> 3657832.653 | K116: =IF(E116=0,0,SUMPRODUCT(E114:E115,K114:K115)/E116) -> 0.05514 | O116: =SUM(O114:O115) -> 201692.8925
C118: Equity
A119: 4 | C119: Common Equity | E119: 0.4 | I119: =I123*E119 -> 2438555.102 | K119: 0.0985 | O119: =K119*I119 -> 240197.6776
A120: 5 | C120: Preferred Shares | I120: =I144*E120 -> 0 | O120: =K120*I120 -> 0
A121: 6 | C121: Total Equity | E121: =SUM(E119:E120) -> 0.4 | I121: =SUM(I119:I120) -> 2438555.102 | K121: =IF(E121=0,0,SUMPRODUCT(E119:E120,K119:K120)/E121) -> 0.0985 | O121: =SUM(O119:O120) -> 240197.6776
A123: 7 | C123: Total | E123: 1 | I123: ='[4]2.1. Rate Base Trend '!E18 -> 6096387.756 | K123: =(K116*E116)+(K121*E121) -> 0.072484 | O123: =O116+O121 -> 441890.5701
G126: Year: | H126: ='[4]0.1 LDC Info'!$E$27+1 -> 2011
A128: Line No.
C129: Particulars | E129: Capitalization Ratio | K129: Cost Rate | O129: Return
E131: (%) | I131: ($) | K131: (%) | O131: ($)
C132: Debt
A133: 1 | C133: Long-term Debt | E133: 0.56 | I133: =I142*E133 -> 3343222.603 | K133: 0.0576 | O133: =K133*I133 -> 192569.6219
A134: 2 | C134: Short-term Debt | E134: 0.04 | G134: (1) | I134: =I142*E134 -> 238801.6145 | K134: 0.0207 | O134: =K134*I134 -> 4943.19342
A135: 3 | C135: Total Debt | E135: =SUM(E133:E134) -> 0.6 | I135: =SUM(I133:I134) -> 3582024.218 | K135: =IF(E135=0,0,SUMPRODUCT(E133:E134,K133:K134)/E135) -> 0.05514 | O135: =SUM(O133:O134) -> 197512.8154
C137: Equity
A138: 4 | C138: Common Equity | E138: 0.4 | I138: =I142*E138 -> 2388016.145 | K138: 0.0985 | O138: =K138*I138 -> 235219.5903
A139: 5 | C139: Preferred Shares | I139: =I163*E139 -> 0 | O139: =K139*I139 -> 0
A140: 6 | C140: Total Equity | E140: =SUM(E138:E139) -> 0.4 | I140: =SUM(I138:I139) -> 2388016.145 | K140: =IF(E140=0,0,SUMPRODUCT(E138:E139,K138:K139)/E140) -> 0.0985 | O140: =SUM(O138:O139) -> 235219.5903
A142: 7 | C142: Total | E142: 1 | I142: ='[4]2.1. Rate Base Trend '!D18 -> 5970040.363 | K142: =(K135*E135)+(K140*E140) -> 0.072484 | O142: =O135+O140 -> 432732.4056
G145: Year: | H145: ='[4]0.1 LDC Info'!$E$27 -> 2010
A147: Line No.
C148: Particulars | E148: Capitalization Ratio | K148: Cost Rate | O148: Return
E150: (%) | I150: ($) | K150: (%) | O150: ($)
C151: Debt
A152: 1 | C152: Long-term Debt | E152: 0.56 | I152: =I161*E152 -> 3272289.699 | K152: 0.0576 | O152: =K152*I152 -> 188483.8867
A153: 2 | C153: Short-term Debt | E153: 0.04 | G153: (1) | I153: =I161*E153 -> 233734.9785 | K153: 0.0207 | O153: =K153*I153 -> 4838.314055
A154: 3 | C154: Total Debt | E154: =SUM(E152:E153) -> 0.6 | I154: =SUM(I152:I153) -> 3506024.678 | K154: =IF(E154=0,0,SUMPRODUCT(E152:E153,K152:K153)/E154) -> 0.05514 | O154: =SUM(O152:O153) -> 193322.2007
C156: Equity
A157: 4 | C157: Common Equity | E157: 0.4 | I157: =I161*E157 -> 2337349.785 | K157: 0.0985 | O157: =K157*I157 -> 230228.9538
A158: 5 | C158: Preferred Shares | I158: =I182*E158 -> 0 | O158: =K158*I158 -> 0
A159: 6 | C159: Total Equity | E159: =SUM(E157:E158) -> 0.4 | I159: =SUM(I157:I158) -> 2337349.785 | K159: =IF(E159=0,0,SUMPRODUCT(E157:E158,K157:K158)/E159) -> 0.0985 | O159: =SUM(O157:O158) -> 230228.9538
A161: 7 | C161: Total | E161: 1 | I161: ='[4]2.1. Rate Base Trend '!C18 -> 5843374.463 | K161: =(K154*E154)+(K159*E159) -> 0.072484 | O161: =O154+O159 -> 423551.1546
G166: Board Approved | H166: ='[4]0.1 LDC Info'!$E$27 -> 2010
A168: Line No.
C169: Particulars | E169: Capitalization Ratio | K169: Cost Rate | O169: Return
E171: (%) | I171: ($) | K171: (%) | O171: ($)
C172: Debt
A173: 1 | C173: Long-term Debt | E173: 0.56 | I173: =$I$182*E173 -> 3369328.032 | K173: 0.0576 | O173: =K173*I173 -> 194073.2946
A174: 2 | C174: Short-term Debt | E174: 0.04 | G174: (1) | I174: =$I$182*E174 -> 240666.288 | K174: 0.0207 | O174: =K174*I174 -> 4981.792162
A175: 3 | C175: Total Debt | E175: =SUM(E173:E174) -> 0.6 | I175: =SUM(I173:I174) -> 3609994.32 | K175: =IF(E175=0,0,SUMPRODUCT(E173:E174,K173:K174)/E175) -> 0.05514 | O175: =SUM(O173:O174) -> 199055.0868
C177: Equity
A178: 4 | C178: Common Equity | E178: 0.4 | I178: =$I$182*E178 -> 2406662.88 | K178: 0.0985 | O178: =K178*I178 -> 237056.2937
A179: 5 | C179: Preferred Shares | I179: =$I$182*E179 -> 0 | O179: =K179*I179 -> 0
A180: 6 | C180: Total Equity | E180: =SUM(E178:E179) -> 0.4 | I180: =SUM(I178:I179) -> 2406662.88 | K180: =IF(E180=0,0,SUMPRODUCT(E178:E179,K178:K179)/E180) -> 0.0985 | O180: =SUM(O178:O179) -> 237056.2937
A182: 7 | C182: Total | E182: 1 | I182: ='[4]2.1. Rate Base Trend '!B18 -> 6016657.2 | K182: =(K175*E175)+(K180*E180) -> 0.072484 | O182: =O175+O180 -> 436111.3805

Sheet App.2-OB_Debt Instruments
J1: File Number: | K1: =EBNUMBER -> EB-2016-0166
J2: Exhibit:
J3: Tab:
J4: Schedule:
J5: Page:
J7: Date:
A10: Appendix 2-OB
A11: Debt Instruments
A13: This table must be completed for all required historical years, the bridge year and the test year.
D15: Year | E15: =Test_Year -> 2017
A17: Row | B17: Description | C17: Lender | D17: Affiliated or Third-Party Debt? | E17: Fixed or Variable-Rate? | F17: Start Date | G17: Term (years) | H17: Principal ($) | I17: Rate (%) (Note 2) | J17: Interest ($) (Note 1) | K17: Additional Comments, if any
A18: 1 | B18: Affiliated Debt - from Shareholder | C18: Corp. Town of Renfrew | D18: Affiliated | E18: Fixed Rate | F18: 2001-01-01 | G18: Demand | H18: 2705168 | I18: 0.0725 | J18: =H18*I18 -> 196124.68
A19: 2 | B19: Truck Loan (#31) - 2009 International | C19: Royal Bank of Canada | D19: Third-Party | E19: Fixed Rate | F19: 2009-02-18 | G19: 18 | H19: 0 | I19: 0.0318 | J19: =H19*I19 -> 0 | K19: Paid in full
A20: 3 | B20: Truck Loan (#33) - 2015 Dodge | C20: Royal Bank of Canada | D20: Third-Party | E20: Fixed Rate | F20: 2014-12-29 | G20: 5 | H20: 10110.41 | I20: 0.0353 | J20: =H20*I20 -> 356.897473
A22: Total | H22: =SUM(H18:H20) -> 2715278.41 | I22: =IF(H22=0,"",J22/H22) -> 0.07236148483 | J22: =SUM(J18:J20) -> 196481.5775
D25: Year | E25: =Bridge_Year -> 2016
A27: Row | B27: Description | C27: Lender | D27: Affiliated or Third-Party Debt? | E27: Fixed or Variable-Rate? | F27: Start Date | G27: Term (years) | H27: Principal ($) | I27: Rate (%) (Note 2) | J27: Interest ($) (Note 1) | K27: Additional Comments, if any
A28: 1 | B28: Affiliated Debt - from Shareholder | C28: Corp. Town of Renfrew | D28: Affiliated | E28: Fixed Rate | F28: 2001-01-01 | G28: Demand | H28: 2705168 | I28: 0.0725 | J28: =H28*I28 -> 196124.68
A29: 2 | B29: Truck Loan (#31) - 2009 International | C29: Royal Bank of Canada | D29: Third-Party | E29: Fixed Rate | F29: 2009-02-18 | G29: 18 | H29: 5873.78 | I29: 0.0318 | J29: =H29*I29 -> 186.786204
A30: 3 | B30: Truck Loan (#33) - 2015 Dodge | C30: Royal Bank of Canada | D30: Third-Party | E30: Fixed Rate | F30: 2014-12-29 | G30: 5 | H30: 14904.39 | I30: 0.0353 | J30: =H30*I30 -> 526.124967
A32: Total | H32: =SUM(H28:H30) -> 2725946.17 | I32: =IF(H32=0,"",J32/H32) -> 0.07220890615 | J32: =SUM(J28:J30) -> 196837.5912
D35: Year | E35: =Last_Rebasing_Year+5 -> 2015
A37: Row | B37: Description | C37: Lender | D37: Affiliated or Third-Party Debt? | E37: Fixed or Variable-Rate? | F37: Start Date | G37: Term (years) | H37: Principal ($) | I37: Rate (%) (Note 2) | J37: Interest ($) (Note 1) | K37: Additional Comments, if any
A38: 1 | B38: Affiliated Debt - from Shareholder | C38: Corp. Town of Renfrew | D38: Affiliated | E38: Fixed Rate | F38: 2001-01-01 | G38: Demand | H38: 2705168 | I38: 0.0725 | J38: =H38*I38 -> 196124.68
A39: 2 | B39: Truck Loan (#31) - 2009 International | C39: Royal Bank of Canada | D39: Third-Party | E39: Fixed Rate | F39: 2009-02-18 | G39: 18 | H39: 39076.53 | I39: 0.0318 | J39: =H39*I39 -> 1242.633654
A40: 3 | B40: Truck Loan (#33) - 2015 Dodge | C40: Royal Bank of Canada | D40: Third-Party | E40: Fixed Rate | F40: 2014-12-29 | G40: 5 | H40: 19532.08 | I40: 0.0353 | J40: =H40*I40 -> 689.482424
A42: Total | H42: =SUM(H38:H40) -> 2763776.61 | I42: =IF(H42=0,"",J42/H42) -> 0.07166165144 | J42: =SUM(J38:J40) -> 198056.7961
D45: Year | E45: =Last_Rebasing_Year+4 -> 2014
A47: Row | B47: Description | C47: Lender | D47: Affiliated or Third-Party Debt? | E47: Fixed or Variable-Rate? | F47: Start Date | G47: Term (years) | H47: Principal ($) | I47: Rate (%) (Note 2) | J47: Interest ($) (Note 1) | K47: Additional Comments, if any
A48: 1 | B48: Affiliated Debt - from Shareholder | C48: Corp. Town of Renfrew | D48: Affiliated | E48: Fixed Rate | F48: 2001-01-01 | G48: Demand | H48: 2705168 | I48: 0.0725 | J48: =H48*I48 -> 196124.68
A49: 2 | B49: Truck Loan (#31) - 2009 International | C49: Royal Bank of Canada | D49: Third-Party | E49: Fixed Rate | F49: 2009-02-18 | G49: 18 | H49: 73358.29 | I49: 0.0318 | J49: =H49*I49 -> 2332.793622 | K49: New Rate - Mar 2014
A50: 3 | B50: Truck Loan (#33) - 2015 Dodge | C50: Royal Bank of Canada | D50: Third-Party | E50: Fixed Rate | F50: 2014-12-29 | G50: 5 | J50: =H50*I50 -> 0 | K50: First pmt Jan 2015
A52: Total | H52: =SUM(H48:H50) -> 2778526.29 | I52: =IF(H52=0,"",J52/H52) -> 0.07142544389 | J52: =SUM(J48:J50) -> 198457.4736
D55: Year | E55: =Last_Rebasing_Year+3 -> 2013
A57: Row | B57: Description | C57: Lender | D57: Affiliated or Third-Party Debt? | E57: Fixed or Variable-Rate? | F57: Start Date | G57: Term (years) | H57: Principal ($) | I57: Rate (%) (Note 2) | J57: Interest ($) (Note 1) | K57: Additional Comments, if any
A58: 1 | B58: Affiliated Debt - from Shareholder | C58: Corp. Town of Renfrew | D58: Affiliated | E58: Fixed Rate | F58: 2001-01-01 | G58: Demand | H58: 2705168 | I58: 0.0725 | J58: =H58*I58 -> 196124.68
A59: 2 | B59: Truck Loan (#31) - 2009 International | C59: Royal Bank of Canada | D59: Third-Party | E59: Fixed Rate | F59: 2009-02-18 | G59: 18 | H59: 106334.25 | I59: 0.044 | J59: =H59*I59 -> 4678.707
A61: Total | H61: =SUM(H58:H59) -> 2811502.25 | I61: =IF(H61=0,"",J61/H61) -> 0.07142209721 | J61: =SUM(J58:J59) -> 200803.387
D64: Year | E64: =Last_Rebasing_Year+2 -> 2012
A66: Row | B66: Description | C66: Lender | D66: Affiliated or Third-Party Debt? | E66: Fixed or Variable-Rate? | F66: Start Date | G66: Term (years) | H66: Principal ($) | I66: Rate (%) (Note 2) | J66: Interest ($) (Note 1) | K66: Additional Comments, if any
A67: 1 | B67: Affiliated Debt - from Shareholder | C67: Corp. Town of Renfrew | D67: Affiliated | E67: Fixed Rate | F67: 2001-01-01 | G67: Demand | H67: 2705168 | I67: 0.0725 | J67: =H67*I67 -> 196124.68
A68: 2 | B68: Truck Loan (#31) - 2009 International | C68: Royal Bank of Canada | D68: Third-Party | E68: Fixed Rate | F68: 2009-02-18 | G68: 18 | H68: 136931.22 | I68: 0.044 | J68: =H68*I68 -> 6024.97368
A69: 3 | J69: =H69*I69 -> 0
A71: Total | H71: =SUM(H67:H69) -> 2842099.22 | I71: =IF(H71=0,"",J71/H71) -> 0.07112688124 | J71: =SUM(J67:J69) -> 202149.6537
D74: Year | E74: =Last_Rebasing_Year+1 -> 2011
A76: Row | B76: Description | C76: Lender | D76: Affiliated or Third-Party Debt? | E76: Fixed or Variable-Rate? | F76: Start Date | G76: Term (years) | H76: Principal ($) | I76: Rate (%) (Note 2) | J76: Interest ($) (Note 1) | K76: Additional Comments, if any
A77: 1 | B77: Affiliated Debt - from Shareholder | C77: Corp. Town of Renfrew | D77: Affiliated | E77: Fixed Rate | F77: 2001-01-01 | G77: Demand | H77: 2705168 | I77: 0.0725 | J77: =H77*I77 -> 196124.68
A78: 2 | B78: Truck Loan (#31) - 2009 International | C78: Royal Bank of Canada | D78: Third-Party | E78: Fixed Rate | F78: 2009-02-18 | G78: 18 | H78: 166234.16 | I78: 0.044 | J78: =H78*I78 -> 7314.30304
A80: Total | H80: =SUM(H77:H78) -> 2871402.16 | I80: =IF(H80=0,"",J80/H80) -> 0.07085004876 | J80: =SUM(J77:J78) -> 203438.983
D83: Year | E83: =Last_Rebasing_Year -> 2010
A85: Row | B85: Description | C85: Lender | D85: Affiliated or Third-Party Debt? | E85: Fixed or Variable-Rate? | F85: Start Date | G85: Term (years) | H85: Principal ($) | I85: Rate (%) (Note 2) | J85: Interest ($) (Note 1) | K85: Additional Comments, if any
A86: 1 | B86: Promissory Note - from Shareholder | C86: Corp. Town of Renfrew | D86: Affiliated | E86: Fixed Rate | F86: 2001-01-01 | G86: Demand | H86: 2705168 | I86: 0.0725 | J86: =H86*I86 -> 196124.68
A87: 2 | B87: Truck Loan (#30) - 2000 Freightliner | C87: Royal Bank of Canada | D87: Third-Party | E87: Variable Rate | F87: 2002-05-31 | G87: 8 | H87: 0 | I87: 0 | J87: =H87*I87 -> 0 | K87: Last pmt Nov 2010
A88: 3 | B88: Truck Loan (#31) - 2009 International | C88: Royal Bank of Canada | D88: Third-Party | E88: Fixed Rate | F88: 2009-02-18 | G88: 18 | H88: 194218.76 | I88: 0.044 | J88: =H88*I88 -> 8545.62544
A90: Total | H90: =SUM(H86:H88) -> 2899386.76 | I90: =IF(H90=0,"",J90/H90) -> 0.07059089469 | J90: =SUM(J86:J88) -> 204670.3054

Sheet App.2-P_Cost_Allocation
E1: File Number: | F1: =EBNUMBER -> EB-2016-0166
E2: Exhibit:
E3: Tab:
E4: Schedule:
E5: Page:
E7: Date:
A9: Appendix 2-P
A10: Cost Allocation
A13: A) Allocated Costs
A15: Classes | B15: Costs Allocated from Previous Study | C15: % | D15: Costs Allocated in Test Year Study (Column 7A) | E15: %
A16: Residential | B16: 1061717.535 | C16: 0.5717969266 | D16: 1340506.669 | E16: 0.5941782328
A17: General Service < 50 kW | B17: 315830.8794 | C17: 0.1700933819 | D17: 316636.6339 | E17: 0.1403488695
A18: General Service > 50 to 4999 kW | B18: 395641.4707 | C18: 0.2130760485 | D18: 548868.732 | E18: 0.2432855135
A19: Unmetered Scattered Load | B19: 19399.10086 | C19: 0.01044754926 | D19: 8140.753576 | E19: 0.003608380836
A20: Street Lighting | B20: 64219.76145 | C20: 0.03458609377 | D20: 41915.50034 | E20: 0.01857900337
C21: 0 | E21: 0
A22: Total | B22: 1856808.748 | C22: 1 | D22: 2256068.288 | E22: 1
A26: B) Calculated Class Revenues
C27: (from CA - O1 row 18)
C28: Column 7B | D28: Column 7C | E28: Column 7D | F28: Column 7E
A29: Classes (same as previous table) | C29: Load Forecast (LF) X current approved rates | D29: L.F. X current approved rates X (1 + d) | E29: LF X proposed rates | F29: Miscellaneous Revenue
A31: Residential | C31: 1061717.535 | D31: 1228342.508 | E31: 1228548.102 | F31: 64906.68526
A32: General Service < 50 kW | C32: 315830.8794 | D32: 365462.0412 | E32: 367075.5653 | F32: 14439.886
A33: General Service > 50 to 4999 kW | C33: 395641.4707 | D33: 457989.1546 | E33: 473884.6348 | F33: 21993.5169
A34: Unmetered Scattered Load | C34: 19399.10086 | D34: 22432.47902 | E34: 17600.12252 | F34: 349.4236797
A35: Street Lighting | C35: 64219.76145 | D35: 74291.93547 | E35: 61409.69375 | F35: 5860.488161
A37: Total | C37: 1856808.748 | D37: 2148518.118 | E37: 2148518.118 | F37: 107550
A40: C) Rebalancing Revenue-to-Cost (R/C) Ratios
A42: Class | C42: Previously Approved Ratios | D42: Status Quo Ratios | E42: Proposed Ratios | F42: Policy Range
C43: Most Recent Year: | D43: (7C + 7E) / (7A) | E43: (7D + 7E) / (7A)
C44: 2010
C45: % | D45: % | E45: % | F45: %
A46: Residential | C46: 107 | D46: 96.47465571 | E46: 96.48999273 | F46: 85 - 115
A47: General Service < 50 kW | C47: 88 | D47: 119.9804086 | E47: 120.4899909 | F47: 80 - 120
A48: General Service > 50 to 4999 kW | C48: 103 | D48: 87.44944711 | E48: 90.34549117 | F48: 80 - 120
A49: Unmetered Scattered Load | C49: 70 | D49: 279.8500469 | E49: 220.4899833 | F49: 80 - 120
A50: Street Lighting | C50: 70 | D50: 191.2238265 | E50: 160.4899891 | F50: 85 - 115
A54: D) Proposed Revenue-to-Cost Ratios
A56: Class | C56: Proposed Revenue-to-Cost Ratios | F56: Policy Range
C57: 2017 | D57: 2018 | E57: 2019
C58: % | D58: % | E58: % | F58: %
A59: Residential | C59: 96.48999273 | F59: 85 - 115
A60: General Service < 50 kW | C60: 120.4899909 | F60: 80 - 120
A61: General Service > 50 to 4999 kW | C61: 90.34549117 | F61: 80 - 120
A62: Unmetered Scattered Load | C62: 220.4899833 | D62: 1.6 | E62: 1.2 | F62: 80 - 120
A63: Street Lighting | C63: 160.4899891 | D63: 1.2 | F63: 85 - 115

Sheet App.2-PA_Res_Rate_Design
E1: File Number: | F1: 0
E2: Exhibit:
E3: Tab:
E4: Schedule:
E5: Page:
E7: Date:
A9: Appendix 2-PA
A10: New Rate Design Policy For Residential Customers
A12: Please complete the following tables.
A14: A) Data Inputs
A16: Test Year Billing Determinants for Residential Class
A17: Customers | B17: ='[4]3.10 LoadForecast'!$K$14 -> 3834.987615
A18: kWh | B18: ='[4]3.10 LoadForecast'!$M$28 -> 28929065.91
A20: Proposed Residential Class Specific Revenue Requirement1 | B20: ='[19]F. Cost Allocation & RevAllocn'!G30 -> 1228548.102
A22: Residential Base Rates on Current Tariff
A23: Monthly Fixed Charge ($) | B23: ='[19]C. Revenues at Curr Rates'!B26 -> 13.97
A24: Distribution Volumetric Rate ($/kWh) | B24: ='[19]C. Revenues at Curr Rates'!B15 -> 0.0145
A26: B) Current Fixed/Variable Split
B28: Base Rates | C28: Billing Determinants | D28: Revenue | E28: % of Total Revenue
A29: Fixed | B29: =IF(B23="","",B23) -> 13.97 | C29: =IF(B17="","",B17) -> 3834.987615 | D29: =IF(ISERROR(B29*C29*12),"",B29*C29*12) -> 642897.3237 | E29: =IF(ISERROR(D29/D31),"",D29/D31) -> 0.6051545717
A30: Variable | B30: =IF(B24="","",B24) -> 0.0145 | C30: =IF(B18="","",B18) -> 28929065.91 | D30: =IF(ISERROR(B30*C30),"",B30*C30) -> 419471.4557 | E30: =IF(ISERROR(D30/D31),"",D30/D31) -> 0.3948454283
A31: TOTAL | B31: - | C31: - | D31: =IF(ISERROR(D29+D30),"",D29+D30) -> 1062368.779 | E31: -
A33: C) Calculating Test Year Base Rates
A35: Number of Required Rate Design Policy Transition Years2 | B35: 6
B37: Test Year Revenue @ Current F/V Split | C37: Test Year Base Rates @ Current F/V Split | D37: Reconciliation - Test Year Base Rates @ Current F/V Split
A38: Fixed | B38: =IF(ISERROR(B$20*E29),"",B$20*E29) -> 743461.5004 | C38: =IF(ISERROR(ROUND(B38/B17/12,2)),"",ROUND(B38/B17/12,2)) -> 16.16 | D38: =IF(ISERROR(C38*B17*12),"",C38*B17*12) -> 743680.7983
A39: Variable | B39: =IF(ISERROR(B$20*E30),"",B$20*E30) -> 485086.6014 | C39: =IF(ISERROR(ROUND(B39/B18,4)),"",ROUND(B39/B18,4)) -> 0.0168 | D39: =IF(ISERROR(C39*B18),"",C39*B18) -> 486008.3073
A40: TOTAL | B40: =IF(ISERROR(B38+B39),"",B38+B39) -> 1228548.102 | C40: - | D40: =IF(ISERROR(D38+D39),"",D38+D39) -> 1229689.106
B42: New F/V Split | C42: Revenue @ new F/V Split | D42: Final Adjusted Base Rates | E42: Revenue Reconciliation @ Adjusted Rates
A43: Fixed | B43: =IF(ISERROR(((1-E29)/B35)+E29),"",((1-E29)/B35)+E29) -> 0.6709621431 | C43: =IF(ISERROR(B43*B$20),"",B43*B$20) -> 824309.2673 | D43: =IF(ISERROR(ROUND(C43/B17/12,2)),"",ROUND(C43/B17/12,2)) -> 17.91 | E43: =IF(ISERROR(D43*12*B17),"",D43*12*B17) -> 824215.5382
A44: Variable | B44: =IF(ISERROR(1-B43),"",1-B43) -> 0.3290378569 | C44: =IF(ISERROR(B44*B$20),"",B44*B$20) -> 404238.8345 | D44: =IF(ISERROR(ROUND(C44/B18,4)),"",ROUND(C44/B18,4)) -> 0.014 | E44: =IF(ISERROR(D44*B18),"",D44*B18) -> 405006.9228
A45: TOTAL | B45: - | C45: =IF(ISERROR(SUM(C43:C44)),"",SUM(C43:C44)) -> 1228548.102 | D45: - | E45: =IF(ISERROR(E43+E44),"",E43+E44) -> 1229222.461
A47: Checks3
A48: Change in Fixed Rate | B48: =IF(ISERROR(D43-C38),"",D43-C38) -> 1.75
A49: Difference Between Revenues @ Proposed Rates and Class Specific Revenue Requirement | B49: =IF(ISERROR((D43*12*B17)+(D44*B18)-B20),"",(D43*12*B17)+(D44*B18)-B20) -> 674.3590721
B50: =IF(ISERROR(B49/B20), "", B49/B20) -> 0.0005489073412
A52: Notes:
A54: 1 The final residential class specific revenue requirement, as shown in Appendix 2-P, should be used (i.e. the revenue requirement after any proposed adjustments to R/C ratios).
A57: 2 Default number of transition years for rate design policy change is 4. Where the change in the residential rate design will result in the fixed charge increasing by more than $4/year, a distributor may propose an additional transition year.
A60: 3 Change in fixed rate due to rate design policy should be less than $4. The difference between the proposed class revenue requirement and the revenue at calculated base rates should be minimal (i.e. should be reasonably considered as a rounding error)

Sheet App.2-Q_Cost of Serv. Emb. Dx
F1: File Number: | G1: =EBNUMBER -> EB-2016-0166
A2: NOT APPLICABLE | F2: Exhibit:
F3: Tab:
F4: Schedule:
F5: Page:
F7: Date:
A9: Appendix 2-Q
A10: Cost of Serving Embedded Distributor(s)
A12: To be completed by Host Distributors ONLY
A13: (Not required if Host Distributor has an Embedded Distributor rate class, i.e. a separate row in Appendix 2-P.)
A16: Proposed Rate Class for Billing Embedded Distributor(s)
A18: Host's Distribution Facilities used by Embedded Distributor(s)
A20: (1) | B20: (2) | C20: (3) | D20: (4) | E20: (5) | F20: (6) = '(3) + (4)
A21: Asset Class | B21: Total OM&A costs asociated with asset class | C21: Original cost of asset class | D21: Accumulated amortization of asset class | E21: Annual amortization of asset class | F21: Net Book Value of asset class
A22: Totals for Host Distributor: | B22: ($) | C22: ($) | D22: ($) | E22: ($)
A23: Distribution Stations | F23: =C23+D23 -> 0
A24: Low Voltage Line | F24: 0
A25: LV Line category # 2 (if applcable) | F25: 0
A26: TS (owned by host) | F26: 0
A27: add rows if necessary... | F27: 0
F28: 0
F29: 0
A31: (1) | B31: (7) | C31: (8) | D31: (9) | E31: (10) | F31: (11)
A32: =A21 -> Asset Class | B32: Total line length or station capacity in asset class | C32: Line length or capacity required to provide LV service to Embedded Distributor(s) | D32: Annual total demand on station/line providing LV services (sum of 12 monthly peaks) | E32: Annual billed Embedded Distributor demand on station/line providing LV services | F32: Embedded Distributor(s)' Responsibility Share
A33: Embedded Distributor's share: | B33: kW or kVa; km | C33: kW or kVA; km | D33: kW or kVA | E33: kW or kVA | F33: percent
A34: Distribution Stations | F34: =IF(D34=0,0,(C34/B34)*(E34/D34)) -> 0
A35: Low Voltage Line | F35: =IF(D35=0,0,(C35/B35)*(E35/D35)) -> 0
A36: LV Line # 2 (if applicable) | F36: =IF(D36=0,0,(C36/B36)*(E36/D36)) -> 0
A37: TS (owned by host) | F37: =IF(D37=0,0,(C37/B37)*(E37/D37)) -> 0
A38: add rows if necessary | F38: =IF(D38=0,0,(C38/B38)*(E38/D38)) -> 0
A40: (1) | B40: (12) | C40: (12a) | D40: (13) | E40: (14) | F40: (15) | G40: (16)
A41: =A32 -> Asset Class | B41: Return on Assets used to Provide LV services | C41: Taxes/PILs | D41: Annual amortization on assets used to provide LV services | E41: OM&A costs with burden associated with assets used to provide LV services | F41: Total annual cost associated with assets used to provide LV services | G41: Monthly cost associated with the delivery of LV services
B42: ($) | C42: ($) | D42: ($) | E42: ($) | F42: ($) | G42: $/kW or $/kVA
A43: Distribution Stations | B43: =E$54*(F23+B23*E$59)*F34 -> 0 | C43: =(B43-(B$54*C$54*F34*(F23+B23*E57)+B$55*C$55*F34*(F23+B23*E$57)))*E$57/(1-E$57) -> 0 | D43: =E23*F34 -> 0 | E43: =B23*F34 -> 0 | F43: =SUM(B43:E43) -> 0 | G43: =IF(E34=0,0,(D43/E34)) -> 0
A44: Low Voltage Line | B44: =E$54*(F24+B24*E$59)*F35 -> 0 | C44: =(B44-(B$54*C$54*F35*(F24+B24*E58)+B$55*C$55*F35*(F24+B24*E58)))*E$57/(1-E$57) -> 0 | D44: =E24*F35 -> 0 | E44: =B24*F35 -> 0 | F44: =SUM(B44:E44) -> 0 | G44: =IF(E35=0,0,(D44/E35)) -> 0
A45: LV Line # 2 (if applicable) | B45: =E$54*(F25+B25*E$59)*F36 -> 0 | C45: =(B45-(B$54*C$54*F36*(F25+B25*E59)+B$55*C$55*F36*(F25+B25*E$59)))*E$57/(1-E$57) -> 0 | D45: =E25*F36 -> 0 | E45: =B25*F36 -> 0 | F45: =SUM(B45:E45) -> 0 | G45: =IF(E36=0,0,(D45/E36)) -> 0
A46: TS (owned by host) | B46: =E$54*(F26+B26*E$59)*F37 -> 0 | C46: =(B46-(B$54*C$54*F37*(F26+B26*E60)+B$55*C$55*F37*(F26+B26*E60)))*E$57/(1-E$57) -> 0 | D46: =E26*F37 -> 0 | E46: =B26*F37 -> 0 | F46: =SUM(B46:E46) -> 0 | G46: =IF(E37=0,0,(D46/E37)) -> 0
A47: add rows if necessary | B47: =E$54*(F27+B27*E$59)*F38 -> 0 | C47: =(B47-(B$54*C$54*F38*(F27+B27*I61)+B$55*C$55*F38*(F27+B27*I61)))*E$57/(1-E$57) -> 0 | D47: =E27*F38 -> 0 | E47: =B27*F38 -> 0 | F47: =SUM(B47:E47) -> 0 | G47: =IF(E38=0,0,(D47/E38)) -> 0
A49: Total | F49: =SUM(F43:F47) -> 0 | G49: =SUM(G43:G47) -> 0
A51: (17) | B51: (18) | C51: (19) | D51: (20) | E51: (21)
B52: Capital Structure | C52: Cost Rate
B53: (%) | C53: (%) | E53: (%)
A54: Long-Term Debt | D54: Weighted Average Cost of Capital | E54: =IF(B60=0%,0,SUMPRODUCT(B54:B58,C54:C58)/B60) -> 0
A55: Short-term Debt
A57: Common Equity | D57: Tax/PILs Rate
A58: Preferred Shares
D59: Working Capital Allowance Factor
A60: Total | B60: =SUM(B54:B58) -> 0

Sheet App.2-R_Loss Factors
G1: File Number: | H1: =EBNUMBER -> EB-2016-0166
G2: Exhibit:
G3: Tab:
G4: Schedule:
G5: Page:
G7: Date:
A9: Appendix 2-R
A10: Loss Factors
C13: Historical Years | H13: 5-Year Average
C14: =IF(ISBLANK('LDC Info'!E26-5), "Year 5", 'LDC Info'!E26-5) -> 2011 | D14: =IF(ISBLANK('LDC Info'!E26-4), "Year 5", 'LDC Info'!E26-4) -> 2012 | E14: =IF(ISBLANK('LDC Info'!E26-3), "Year 5", 'LDC Info'!E26-3) -> 2013 | F14: =IF(ISBLANK('LDC Info'!E26-2), "Year 5", 'LDC Info'!E26-2) -> 2014 | G14: =IF(ISBLANK('LDC Info'!E26-1), "Year 5", 'LDC Info'!E26-1) -> 2015
B15: Losses Within Distributor's System
A16: A(1) | B16: "Wholesale" kWh delivered to distributor (higher value) | C16: 97168135 | D16: 93937810 | E16: 94718251 | F16: 93018274 | G16: 93414526 | H16: =IF(SUM(C16:G16)=0,0,AVERAGE(C16:G16)) -> 94451399.2
A17: A(2) | B17: "Wholesale" kWh delivered to distributor (lower value) | C17: 94383901 | D17: 91191997 | E17: 90454439 | F17: 90306673 | G17: 90913494 | H17: =IF(SUM(C17:G17)=0,0,AVERAGE(C17:G17)) -> 91450100.8
A18: B | B18: Portion of "Wholesale" kWh delivered to distributor for its Large Use Customer(s) | H18: =IF(SUM(C18:G18)=0,0,AVERAGE(C18:G18)) -> 0
A19: C | B19: Net "Wholesale" kWh delivered to distributor = A(2) - B | C19: =C17-C18 -> 94383901 | D19: 91191997 | E19: 90454439 | F19: 90306673 | G19: 90913494 | H19: 91450100.8
A20: D | B20: "Retail" kWh delivered by distributor | C20: 89846326 | D20: 87042361 | E20: 87411656 | F20: 86248298 | G20: 86807085 | H20: =IF(SUM(C20:G20)=0,0,AVERAGE(C20:G20)) -> 87471145.2
A21: E | B21: Portion of "Retail" kWh delivered by distributor to its Large Use Customer(s) | H21: =IF(SUM(C21:G21)=0,0,AVERAGE(C21:G21)) -> 0
A22: F | B22: Net "Retail" kWh delivered by distributor = D - E | C22: =C20-C21 -> 89846326 | D22: 87042361 | E22: 87411656 | F22: 86248298 | G22: 86807085 | H22: 87471145.2
A23: G | B23: Loss Factor in Distributor's system = C / F | C23: =IF(C22=0,"",C19/C22) -> 1.050503735 | D23: 1.047673753 | E23: 1.034809808 | F23: 1.047054552 | G23: 1.047304998 | H23: 1.045488779
B24: Losses Upstream of Distributor's System
A25: H | B25: Supply Facilities Loss Factor | C25: 1.034 | D25: 1.034 | E25: 1.034 | F25: 1.034 | G25: 1.034 | H25: =IF(SUM(C25:G25)=0,0,AVERAGE(C25:G25)) -> 1.034
B26: Total Losses
A27: I | B27: Total Loss Factor = G x H | C27: =IF(C23="","",C23*C25) -> 1.086220862 | D27: 1.08329466 | E27: 1.069993342 | F27: 1.082654406 | G27: 1.082913368 | H27: 1.081035398
A29: Notes:
A32: A(1) | B32: If directly connected to the IESO-controlled grid, kWh pertains to the virtual meter on the primary or high voltage side of the transformer at the interface with the transmission grid. This corresponds to the "With Losses" kWh value provided by the IESO's MV-WEB. It is the higher of the two values provided by MV-WEB.
B36: If fully embedded within a host distributor, kWh pertains to the virtual meter on the primary or high voltage side of the transformer, at the interface between the host distributor and the transmission grid. For example, if the host distributor is Hydro One Networks Inc., kWh from the Hydro One Networks' invoice corresponding to "Total kWh w Losses" should be reported. This corresponds to the higher of the two kWh values provided in Hydro One Networks' invoice.
B41: If partially embedded, kWh pertains to the sum of the above.
A43: A(2) | B43: If directly connected to the IESO-controlled grid, kWh pertains to a metering installation on the secondary or low voltage side of the transformer at the interface with the transmission grid. This corresponds to the "Without Losses" kWh value provided by the IESO's MV-WEB. It is the lower of the two kWh values provided by MV-WEB.
B47: If fully embedded with the host distributor, kWh pertains to a metering installation on the secondary or low voltage side of the transformer at the interface between the embedded distributor and the host distributor. For example, if the host distributor is Hydro One Networks Inc., kWh from the Hydro One Networks' invoice corresponding to "Total kWh" should be reported. This corresponds to the lower of the two kWh values provided in Hydro One Networks' invoice.
B52: If partially embedded, kWh pertains to the sum of the above.
B54: Additionally, kWh pertaining to distributed generation directly connected to the distributor's own distribution network should be included in A(2).
A57: B | B57: If a Large Use Customer is metered on the secondary or low voltage side of the transformer, the default loss is 1% (i.e., B = 1.01 X E).
A60: D | B60: kWh corresponding to D should equal metered or estimated kWh at the customer’s delivery point.
A62: G and I | B62: These loss factors pertain to secondary-metered customers with demand less than 5,000 kW.
A64: H | B64: If directly connected to the IESO-controlled grid, SFLF = 1.0045.
B66: If fully embedded within a host distributor, SFLF = loss factor re losses in transformer at grid interface X loss factor re losses in host distributor's system. If the host distributor is Hydro One Networks Inc., SFLF = 1.0060 X 1.0278 = 1.0340. If partially embedded, SFLF should be calculated as the weighted average of above.
B70: Distributors that wish to propose a different SFLF should provide appropriate justification for any such proposal including supporting
B71: calculations and any other relevant material.

Sheet App.2-S_Stranded Meters
G1: File Number: | H1: =EBNUMBER -> EB-2016-0166
G2: Exhibit:
G3: Tab:
G4: Schedule:
G5: Page:
G7: Date:
A9: Appendix 2-S
A10: Stranded Meter Treatment
A12: Year | B12: Notes | C12: Gross Asset Value | D12: Accumulated Amortization | E12: Contributed Capital (Net of Amortization) | F12: Net Asset | G12: Proceeds on Disposition | H12: Residual Net Book Value
C13: (A) | D13: (B) | E13: (C) | F13: (D ) = (A) - (B) - (C) | G13: (E) | H13: (F) = (D) - (E)
A14: 2006 | C14: 551801 | D14: 380925 | E14: 0 | F14: =C14-D14-E14 -> 170876 | H14: =F14-G14 -> 170876
A15: 2007 | C15: 557746 | D15: 396901 | E15: 0 | F15: 160845 | H15: 160845
A16: 2008 | C16: 557746 | D16: 412878 | E16: 0 | F16: 144868 | H16: 144868
A17: 2009 | C17: 557746 | D17: 428867 | E17: 0 | F17: 128879 | H17: 128879
A18: 2010 | C18: 557746 | D18: 443324 | E18: 0 | F18: 114422 | H18: 114422
A19: 2011 | C19: 557746 | D19: 457047 | F19: 100699 | H19: 100699
A20: 2012 | C20: 557746 | D20: 469317 | F20: 88429 | H20: 88429
A21: 2013 | C21: 557746 | D21: 481222 | F21: =C21-D21-E21 -> 76524 | H21: =F21-G21 -> 76524
A22: 2014 | C22: 557746 | D22: 492556 | F22: 65190 | H22: 65190
A23: 2015 | B23: (1) | C23: 557746 | D23: 502792 | F23: 54954 | H23: 54954
A25: Notes:
A27: (1) | B27: For 2015, please indicate whether the amounts provided are on a forecast or actual basis.
A29: Some distributors have transferred the cost of stranded meters from Account 1860 - Meters to "Sub-account Stranded Meter Costs of Account 1555", while in some cases distributors have left these costs in Account 1860. Depending on which treatment the applicant has chosen. please provide the information under either of the two scenarios (A and B below), as applicable.
A34: Scenario A: If the stranded meter costs were transferred to "Sub-account Stranded Meter Costs" of Account 1555, the above table should be completed and the following information should be provided in Exhibit 9.
A37: 1 | B37: A description of the accounting treatment followed by the applicant on stranded meter costs for financial accounting and reporting purposes.
A40: 2 | B40: The amount of the pooled residual net book value of the removed from service stranded meters, less any contributed capital (net of accumulated amortization), and less any net proceeds from sales, which were transferred to this sub-account as of December 31, 2010.
A44: 3 | B44: A statement as to whether or not, since transferring the removed stranded meter costs to the sub-account, the recording of depreciation expenses was continued in order to reduce the net book value through accumulated depreciation. If so, the total depreciation expense amount for the period from the time the costs for the stranded meters were transferred to the sub-account to December 31, 2010 should be provided.
B49: If no depreciation expenses were recorded to reduce the net book value of stranded meter costs through accumulated depreciation, the total depreciation expense amount that would have been applicable from the time that the stranded meter costs were transferred to the sub-account of Account 1555 to December 31, 2010 should be provided. In addition, the following information should be provided:
B54: a) | C54: Whether or not carrying charges were recorded for the stranded meter cost balances in the sub-account, and if so, the total carrying charges recorded to December 31, 2010.
B57: b) | C57: The estimated amount of the pooled residual net book value of the removed from service meters, less any net proceeds from sales and contributed capital, at the time when the smart meters will have been fully deployed (e.g., as of December 31, 2010). If the smart meters have been fully deployed, the actual amount should be provided.
B62: c) | C62: A description as to how the applicant intends to recover in rates the remaining costs for stranded meters, including the proposed accounting treatment, the proposed disposition period, and the associated bill impacts.
A66: Scenario B: If the stranded meter costs remained recorded in Account 1860, the above table should be completed and the following information should be provided in Exhibit 9:
A69: 1 | B69: A description of the accounting treatment followed by the applicant on stranded meter costs for financial accounting and reporting purposes.
A72: 2 | B72: The amount of the pooled residual net book value of the removed from service stranded meters, less any contributed capital (net of accumulated amortization), and less any net proceeds from sales, as of December 31, 2010.
A76: 3 | B76: A statement as to whether or not the recording of depreciation expenses continued in order to reduce the net book value through accumulated depreciation. If so, provision of the total (cumulative) depreciation expense for the period from the time that the meters became stranded to December 31, 2010.
A80: 4 | B80: If no depreciation expenses were recorded to reduce the net book value of stranded meters through accumulated depreciation, the total (cumulative) depreciation expense amount that would have been applicable for the period from the time that the meters became stranded to December 31, 2010.
A84: 5 | B84: The estimated amount of the pooled residual net book value of the removed from service meters, less any net proceeds from sales and contributed capital, at the time when smart meters will have been fully deployed. If the smart meters have been fully deployed, please provide the actual amount.
A88: 6 | B88: A description as to how the applicant intends to recover in rates the costs for stranded meters, including the proposed accounting treatment, the proposed disposition period and the associated bill impacts.
A91: Distributors should also provide the Net Book Value per class of meter as of December 31, 2010 as well as the number of meters that were removed / stranded. In preparing this information, distributors should review the Board's letter of January 16, 2007 Stranded Meter Costs Related to the Installation of Smart Meters which stated that records were to be kept of the type and number of each meter to support the stranded meter costs.

Sheet App.2-TA_1592_Tax_Variance
C1: File Number: | E1: =EBNUMBER -> EB-2016-0166
B2: NOT APPLICABLE | C2: Exhibit:
C3: Tab:
C4: Schedule:
C5: Page:
C7: Date:
A9: Appendix 2-TA
A10: Account 1592, PILs and Tax Variances for 2006 and Subsequent Years and Subsequent Years
A12: The following table should be completed based on the information requested below, in accordance with the notes following the table. An explanation should be provided for any blank entries.
A14: Tax Item | E14: Principal as of
E15: December 31,
E16: 20XX
A17: Large Corporation Tax grossed-up proxy from 2006 EDR application PILs model for the period from May 1, 2006 to April 30, 2007
A18: Large Corporation Tax grossed-up proxy from 2006 EDR application PILs model for the period from January 1, 2006 to April 30, 2006 (4/12ths of the approved grossed-up proxy), if not recorded in PILs account 1562
A19: Ontario Capital Tax rate decrease and increase in capital deduction for 2007
A20: Ontario Capital Tax rate decrease and increase in capital deduction for 2008
A21: Ontario Capital Tax rate decrease and increase in capital deduction for 2009
A22: Ontario Capital Tax rate decrease and increase in capital deduction for 2010
A23: Ontario Capital Tax rate decrease and increase in capital deduction for 2011
A24: Ontario Capital Tax rate decrease and increase in capital deduction for 2012
A25: Ontario Capital Tax rate decrease and increase in capital deduction for 2013
A26: Capital Cost Allowance class changes from 2006 EDR application for 2006
A27: Capital Cost Allowance class changes from 2006 EDR application for 2007
A28: Capital Cost Allowance class changes from 2006 EDR application for 2008
A29: Capital Cost Allowance class changes from 2006 EDR application for 2009
A30: Capital Cost Allowance class changes from 2006 EDR application for 2010
A31: Capital Cost Allowance class changes from 2006 EDR application for 2011
A32: Capital Cost Allowance class changes from 2006 EDR application for 2012
A33: Capital Cost Allowance class changes from 2006 EDR application for 2013
A34: Capital Cost Allowance class changes from any prior application not recorded above. Please provide details and explanation separately.
A35: Insert description of additional item(s) and new rows if needed.
A36: Total | E36: =SUM(E17:E35) -> 0
A38: Notes:
A40: 1 | B40: Revise the deferral and variance account continuity schedule to include account 1592 as a group 2 account and enter all relevant information for transactions, adjustments, etc., for all relevant years.
A43: 2 | B43: Describe each type of tax item that has been recorded in account 1592.
A45: 3 | B45: Provide the calculations that show how each item was determined and provide any pertinent supporting evidence and documentation.
A48: 4 | B48: Please state whether or not the applicant followed the guidance provided in the FAQ of July 2007. If not, please provide an explanation.
A51: 5 | B51: Identify the account balance as of December 31, 2012 as per the 2012 Audited Financial Statements. Identify the account balance as of December 31, 2012 as per the April 2013 2.1.7 RRR filing to the Board. Provide a reconciliation if the balances provided are not identical to each other and to the total shown on the continuity schedule.
A56: 6 | B56: Complete the above table based on the answers to the previous. Add rows as required to complete the analysis in an informative manner. Please provide the completed table as a working Excel spreadsheet.

Sheet App.2-TB_1592_HST-OVAT
G1: File Number: | J1: =EBNUMBER -> EB-2016-0166
B2: NOT APPLICABLE | G2: Exhibit:
G3: Tab:
J4: Schedule:
J5: Page:
J7: Date:
A9: Appendix 2-TB
A10: Account 1592, PILs and Tax Variances for 2006 and Subsequent Years, and Subsequent Years
A11: Sub-account HST/OVAT Input Tax Credits (ITCs)
A13: The following table should be completed based on the information requested below. An explanation should be provided for any blank entries.
A14: 100% of the balance in Account 1592, PILs and Tax Variances for 2006 and Subsequent Years, Sub-account HST/OVAT Input Tax Credits (ITCs), should be recorded in this table.
A17: Summary of PST Savings from 2009 Historic Year Analysis
C19: Principal 2010 | D19: Principal 2011 | E19: Principal 2012 | F19: Principal 2013 | G19: Principal 2014 | H19: Principal 2015 | I19: Principal Jan-April 2016 1 | J19: Carrying Charges to April 30, 2016 | K19: Total Account 1592, sub-account HST/OVAT Balance
A23: OM&A Expenses PST Savings | K23: =SUM(C23:J23) -> 0
A24: Capital Items PST Savings | K24: =SUM(C24:J24) -> 0
A25: Total Annual PST Savings 2 | C25: =SUM(C23:C24) -> 0 | D25: 0 | E25: 0 | F25: 0 | I25: 0 | J25: 0 | K25: 0
A27: Notes:
A29: 1 Include January to April 30, 2016 PST savings if the rate year begins May 1, 2016. If the rate year begins Jan 1, 2016, include PST savings to December 31, 2015.
A30: 2 Derived PST savings proxy for each year per 2009 historical year analysis
A32: Note: Assumes level OM&A and Capital Spending year over year. An alternative detailed transactional analysis may also be performed using actual expenditures from 2010 to the start of the rate year.

Sheet App.2-U_IFRS Transition Costs
B2: NOT APPLICABLE | P2: File Number: | Q2: =EBNUMBER -> EB-2016-0166
P3: Exhibit:
P4: Tab:
P5: Schedule:
P6: Page:
P8: Date:
A9: Appendix 2-U
A10: One-Time Incremental IFRS Transition Costs
A12: The following table should be completed based on the information requested below. An explanation should be provided for any blank entries. The entries should include one-time incremental IFRS transition costs that are currently included in Account 1508, Other Regulatory Assets, sub-account Deferred IFRS Transition Costs Account, or Account 1508, Other Regulatory Assets, sub-account IFRS Transition Costs Variance Account.
A14: Nature of One-Time Incremental IFRS Transition Costs 1 | E14: Audited Actual | F14: Audited Actual | G14: Audited Actual | H14: Audited Actual | I14: Audited Actual | J14: Audited Actual | K14: Audited Carrying | L14: Forecasted Costs | M14: Forecasted Costs | N14: Total Costs Including Carrying Charges | O14: Carrying Charges January 1, 2015 to December 31,2015/April 30, 2016 (As appropriate) | P14: Total Costs and Carrying Charges | Q14: Reasons why the costs recorded meet the criteria of one-time IFRS administrative incremental costs
E15: Costs Incurred | F15: Costs Incurred | G15: Costs Incurred | H15: Costs Incurred | I15: Costs Incurred | J15: Costs Incurred | K15: Charges
E16: 2010 | F16: 2011 | G16: 2012 | H16: 2013 | I16: 2014 | J16: 2015 | K16: to Dec 31, 2015 | L16: 2016 | M16: 2017 3
A17: professional accounting fees | N17: =SUM(E17:M17) -> 0 | P17: =SUM(N17,O17) -> 0
A18: professional legal fees | N18: =SUM(E18:M18) -> 0 | P18: 0
A19: salaries, wages and benefits of staff added to support the transition to IFRS | N19: 0 | P19: 0
A20: associated staff training and development costs | N20: 0 | P20: 0
A21: costs related to system upgrades, or replacements or changes where IFRS was the major reason for conversion | N21: 0 | P21: 0
N22: 0 | P22: 0
N23: 0 | P23: 0
N24: 0 | P24: 0
N25: 0 | P25: 0
A26: Amounts, if any, included in previous Board approved rates (amounts should be negative) 3 | N26: 0 | P26: 0
N27: 0 | P27: 0
A28: Insert description of additional item(s) and new rows if needed. | N28: 0 | P28: 0
A29: Total | E29: =SUM(E17:E28) -> 0 | F29: =SUM(F17:F28) -> 0 | G29: 0 | H29: 0 | I29: 0 | K29: =SUM(K17:K28) -> 0 | L29: 0 | M29: 0 | N29: =SUM(N17:N28) -> 0 | P29: =SUM(P17:P28) -> 0
A32: Note:
A33: 1 | B33: The Deferred IFRS Transition Costs Account and the IFRS Transition Costs Variance Account are exclusively for necessary, incremental transition costs and shall not include ongoing IFRS compliance costs or impacts arising from adopting accounting policy changes that reflect changes in the timing of the recognition of income. The incremental costs in these accounts shall not include costs related to system upgrades, or replacements or changes where IFRS was not the major reason for conversion. In addition, incremental IFRS costs shall not include capital assets or expenditures.
A34: 2 | B34: If there were any amounts approved in previous Board approved rates, please state the EB #:
A35: 3 | B35: Any forecasted One-time costs past 2015 should be fully explained in the application, since distributors were required to adopt IFRS or an alternative accounting standard by January 1, 2015.

Sheet App.2-V_Rev_Reconciliation
O1: File Number: | P1: =EBNUMBER -> EB-2016-0166
O2: Exhibit:
O3: Tab:
O4: Schedule:
O5: Page:
O7: Date:
A9: Appendix 2-V
A10: Revenue Reconciliation
B12: Customers/ Connections | C12: Number of Customers/Connections | F12: Test Year Consumption | H12: Proposed Rates | K12: Revenues at Proposed Rates (Fixed) | L12: Revenues at Proposed Rates (Var) | M12: Total | O12: Class Specific Revenue Requirement | P12: Transformer Allowance Credit | Q12: Total | R12: Difference
C13: Start of Test Year | D13: End of Test Year | E13: Average | F13: kWh | G13: kW | H13: Monthly Service Charge | I13: Volumetric
I14: kWh | J14: kW
A15: ='[19]B. CurrentTariff'!$A$13 -> Residential | B15: kWh | C15: 3834.987615 | D15: 3834.987615 | E15: =IF(SUM(C15:D15)=0,0,AVERAGE(C15:D15)) -> 3834.987615 | F15: ='[4]3.10 LoadForecast'!M28 -> 28929065.91 | G15: ='[4]3.10 LoadForecast'!M43 -> 0 | H15: 17.91 | I15: 0.01397668922 | K15: =H15*E15*12 -> 824215.5382 | L15: =I15*F15+J15*G15 -> 404332.5637 | M15: =K15+L15 -> 1228548.102 | O15: 1228548.102 | Q15: =SUM(O15:P15) -> 1228548.102 | R15: =Q15-M15 -> 0
A16: ='[19]B. CurrentTariff'!$A$14 -> General Service < 50 kW | B16: kWh | C16: 413.6410926 | D16: 413.6410926 | E16: 413.6410926 | F16: ='[4]3.10 LoadForecast'!M29 -> 11749297.38 | G16: ='[4]3.10 LoadForecast'!M44 -> 0 | H16: 31.25 | I16: 0.01804024095 | K16: 155115.4097 | L16: 211960.1556 | M16: 367075.5653 | O16: 367075.5653 | Q16: 367075.5653 | R16: 0
A17: ='[19]B. CurrentTariff'!$A$15 -> General Service > 50 to 4999 kW | B17: kW | C17: 61 | D17: 61 | E17: 61 | F17: ='[4]3.10 LoadForecast'!M30 -> 43433993.55 | G17: ='[4]3.10 LoadForecast'!M45 -> 118023.997 | H17: 189.27 | J17: 3.192110116 | K17: 138545.64 | L17: 376745.5948 | M17: 515291.2348 | O17: 473884.6348 | P17: 41406.6 | Q17: 515291.2348 | R17: 0
A18: ='[19]B. CurrentTariff'!$A$16 -> Unmetered Scattered Load | B18: kWh | C18: 34.22715554 | D18: 34.22715554 | E18: 34.22715554 | F18: ='[4]3.10 LoadForecast'!M31 -> 149639.5227 | G18: ='[4]3.10 LoadForecast'!M46 -> 0 | H18: 39.62 | I18: 0.008869071931 | K18: 16272.95883 | L18: 1327.163691 | M18: 17600.12252 | O18: 17600.12252 | Q18: 17600.12252 | R18: 0
A19: ='[19]B. CurrentTariff'!$A$17 -> Street Lighting | B19: kW | C19: 1199.307982 | D19: 1199.307982 | E19: 1199.307982 | F19: ='[4]3.10 LoadForecast'!M32 -> 1082279.281 | G19: ='[4]3.10 LoadForecast'!M47 -> 3007.339818 | H19: 2.82 | J19: 6.924761714 | K19: 40584.58212 | L19: 20825.11163 | M19: 61409.69375 | O19: 61409.69375 | Q19: 61409.69375 | R19: 0
A21: Total | K21: =SUM(K15:K19) -> 1174734.129 | L21: =SUM(L15:L19) -> 1015190.589 | M21: =SUM(M15:M19) -> 2189924.718 | O21: =SUM(O15:O19) -> 2148518.118 | P21: =SUM(P15:P19) -> 41406.6 | Q21: =O21+P21 -> 2189924.718 | R21: 0
A23: Note
A25: 1 The class specific revenue requirements in column N must be the amounts used in the final rate design process. The total of column N should equate to the proposed base revenue requirement.
A27: 2 Rates should be entered with the number of decimal places that will show on the Tariff of Rates and Charges.

Sheet App.2-W_Bill Impacts
L1: File Number: | M1: =EBNUMBER -> EB-2016-0166 | T1: 1
L2: Exhibit:
L3: Tab:
L4: Schedule:
L5: Page:
L7: Date:
D10: Appendix 2-W
D11: Bill Impacts
D12: The bill comparisons below must be provided for typical customers and consumption levels. Bill impacts must be provided for residential customers consuming 800 kWh per month and general service customers consuming 2,000 kWh per month and having a monthly demand of less than 50 kW. In addition, distributors must provide a range that is relevant to their service territory, class by class. A general guideline of consumption is provided below: Residential (kWh) - 100, 250, 500, 800, 1000, 1500, 2000 (for customers on TOU and customers on retailer contracts) GS<50kW (kWh) - 1000, 2000, 5000, 10000, 15000 (for customers on TOU and customers on retailer contracts) GS>50kW (kW) - 60, 100, 500, 1000 Large User - range appropriate for utility Lighting Classes and USL - 150 kWh and 1 kW, range appropriate for utility. For certain classes where one or more customers have unique consumption and demand patterns and which may be significantly impacted by the proposed rate changes, the distributor must show a typical comparison, and provide an explanation. Note: The Ontario Clean Energy Benefit is applicable to eligible customers only. Refer to the Ontario Clean Energy Benefit Act, 2010. Effective until December 31, 2015.
D13: Note that cells with the highlighted color shown to the left indicate quantities that are loss adjusted.
D28: Table 1
D29: RATE CLASSES / CATEGORIES (eg: Residential TOU, Residential Retailer) | G29: Units | H29: RPP? Non-RPP Retailer? Non-RPP Other? | I29: OCEB Applicable? | J29: Current Loss Factor (eg: 1.0351) | K29: Proposed/ Approved Loss Factor (eg: 1.0351) | L29: Consumption (kWh) | M29: Demand kW (if applicable)
C30: 1 | D30: Rate Class 1 | T30: =SUM(J30:M30) -> 0 | U30: 78
C31: 2 | D31: Rate Class 2 | T31: =SUM(J31:M31) -> 0 | U31: =U30+68 -> 146
C32: 3 | D32: Rate Class 3 | T32: 0 | U32: =U31+68 -> 214
C33: 4 | D33: Rate Class 4 | T33: 0 | U33: 282
C34: 5 | D34: Rate Class 5 | T34: 0 | U34: 350
C35: 6 | D35: Rate Class 6 | T35: 0 | U35: 418
C36: 7 | D36: Rate Class 7 | T36: 0 | U36: 486
C37: 8 | D37: Rate Class 8 | T37: 0 | U37: 554
C38: 9 | D38: Rate Class 9 | T38: 0 | U38: 622
C39: 10 | D39: Rate Class 10 | T39: 0 | U39: 690
C40: 11 | D40: Rate Class 11 | T40: 0 | U40: 758
C41: 12 | D41: Rate Class 12 | T41: 0 | U41: 826
C42: 13 | D42: Rate Class 13 | T42: 0 | U42: 894
C43: 14 | D43: Rate Class 14 | T43: 0 | U43: 962
C44: 15 | D44: Rate Class 15 | T44: 0 | U44: 1030
C45: 16 | D45: Rate Class 16 | T45: 0 | U45: 1098
C46: 17 | D46: Rate Class 17 | T46: 0 | U46: 1166
C47: 18 | D47: Rate Class 18 | T47: 0 | U47: 1234
C48: 19 | D48: Rate Class 19 | T48: 0 | U48: 1302
C49: 20 | D49: Rate Class 20 | T49: 0 | U49: 1370
D51: Table 2
D52: RATE CLASSES / CATEGORIES (eg: Residential TOU, Residential Retailer) | G52: Units | H52: Sub-Total | N52: Total
H53: A | J53: B | L53: C | N53: A + B + C
H54: $ | I54: % | J54: $ | K54: % | L54: $ | M54: % | N54: $ | O54: %
B55: =H30 -> 0 | C55: 1 | D55: =IF(ISBLANK(D30), "", D30) -> Rate Class 1 | G55: =IF(ISBLANK(G30), "", G30) ->  | H55: =IF(LEN($G55)>1, (SUMPRODUCT(--($C$78:$C$1000=$C55), --($A$78:$A$1000=$D55), --($B$78:$B$1000="ST_A"), $L$78:$L$1000)), "") ->  | I55: =IF(LEN($G55)>1, (SUMPRODUCT(--($C$78:$C$1000=$C55),--($A$78:$A$1000=$D55), --($B$78:$B$1000="ST_A"), $M$78:$M$1000)), "") ->  | J55: =IF(LEN($G55)>1, (SUMPRODUCT(--($C$78:$C$1000=$C55),--($A$78:$A$1000=$D55), --($B$78:$B$1000="ST_B"), $L$78:$L$1000)), "") ->  | K55: =IF(LEN($G55)>1, (SUMPRODUCT(--($C$78:$C$1000=$C55),--($A$78:$A$1000=$D55), --($B$78:$B$1000="ST_B"), $M$78:$M$1000)), "") ->  | L55: =IF(LEN($G55)>1, (SUMPRODUCT(--($C$78:$C$1000=$C55),--($A$78:$A$1000=$D55), --($B$78:$B$1000="ST_C"), $L$78:$L$1000)), "") ->  | M55: =IF(LEN($G55)>1, (SUMPRODUCT(--($C$78:$C$1000=$C55),--($A$78:$A$1000=$D55), --($B$78:$B$1000="ST_C"), $M$78:$M$1000)), "") ->  | N55: =IF(LEN($G55)>1, (SUMPRODUCT(--($C$78:$C$1000=$C55),--($A$78:$A$1000=$D55), --($B$78:$B$1000=$B55&"_TOTAL"), $L$78:$L$1000)), "") ->  | O55: =IF(LEN($G55)>1, (SUMPRODUCT(--($C$78:$C$1000=$C55),--($A$78:$A$1000=$D55), --($B$78:$B$1000=$B55&"_TOTAL"), $M$78:$M$1000)), "") -> 
B56: =H31 -> 0 | C56: 2 | D56: Rate Class 2 | H56: =IF(LEN($G56)>1, (SUMPRODUCT(--($C$78:$C$1000=$C56), --($A$78:$A$1000=$D56), --($B$78:$B$1000="ST_A"), $L$78:$L$1000)), "") ->  | I56: =IF(LEN($G56)>1, (SUMPRODUCT(--($C$78:$C$1000=$C56),--($A$78:$A$1000=$D56), --($B$78:$B$1000="ST_A"), $M$78:$M$1000)), "") ->  | J56: =IF(LEN($G56)>1, (SUMPRODUCT(--($C$78:$C$1000=$C56),--($A$78:$A$1000=$D56), --($B$78:$B$1000="ST_B"), $L$78:$L$1000)), "") ->  | K56: =IF(LEN($G56)>1, (SUMPRODUCT(--($C$78:$C$1000=$C56),--($A$78:$A$1000=$D56), --($B$78:$B$1000="ST_B"), $M$78:$M$1000)), "") ->  | L56: =IF(LEN($G56)>1, (SUMPRODUCT(--($C$78:$C$1000=$C56),--($A$78:$A$1000=$D56), --($B$78:$B$1000="ST_C"), $L$78:$L$1000)), "") ->  | M56: =IF(LEN($G56)>1, (SUMPRODUCT(--($C$78:$C$1000=$C56),--($A$78:$A$1000=$D56), --($B$78:$B$1000="ST_C"), $M$78:$M$1000)), "") ->  | N56: =IF(LEN($G56)>1, (SUMPRODUCT(--($C$78:$C$1000=$C56),--($A$78:$A$1000=$D56), --($B$78:$B$1000=$B56&"_TOTAL"), $L$78:$L$1000)), "") ->  | O56: =IF(LEN($G56)>1, (SUMPRODUCT(--($C$78:$C$1000=$C56),--($A$78:$A$1000=$D56), --($B$78:$B$1000=$B56&"_TOTAL"), $M$78:$M$1000)), "") -> 
B57: 0 | C57: 3 | D57: Rate Class 3
B58: 0 | C58: 4 | D58: Rate Class 4
B59: 0 | C59: 5 | D59: Rate Class 5
B60: 0 | C60: 6 | D60: Rate Class 6
B61: 0 | C61: 7 | D61: Rate Class 7
B62: 0 | C62: 8 | D62: Rate Class 8
B63: 0 | C63: 9 | D63: Rate Class 9
B64: 0 | C64: 10 | D64: Rate Class 10
B65: 0 | C65: 11 | D65: Rate Class 11
B66: 0 | C66: 12 | D66: Rate Class 12
B67: 0 | C67: 13 | D67: Rate Class 13
B68: 0 | C68: 14 | D68: Rate Class 14
B69: 0 | C69: 15 | D69: Rate Class 15
B70: 0 | C70: 16 | D70: Rate Class 16 | G70: =IF(ISBLANK(G45), "", G45) -> 
B71: 0 | C71: 17 | D71: Rate Class 17 | G71: =IF(ISBLANK(G46), "", G46) -> 
B72: 0 | C72: 18 | D72: Rate Class 18 | G72: =IF(ISBLANK(G47), "", G47) -> 
B73: 0 | C73: 19 | D73: Rate Class 19 | G73: =IF(ISBLANK(G48), "", G48) -> 
B74: 0 | C74: 20 | D74: Rate Class 20 | G74: =IF(ISBLANK(G49), "", G49) -> 

Sheet App.2-Y_MIFRS Summary Impacts
H1: File Number: | I1: =EBNUMBER -> EB-2016-0166
H2: Exhibit:
H3: Tab:
H4: Schedule:
H5: Page:
H7: Date:
A9: Appendix 2-Y
A10: Summary of Impacts to Revenue Requirement
A11: from Transition to MIFRS
D15: CGAAP | E15: NEWGAAP
C16: Particular | D16: 2010 | E16: 2017 | F16: Diff
C18: Long Term Debt | D18: 0.0576 | E18: 0.0454 | F18: -0.0122
C19: Short Term Debt | D19: 0.0207 | E19: 0.0165 | F19: -0.0042
C20: Return on Equity | D20: 0.0985 | E20: 0.0919 | F20: -0.0066
C21: Weighted Debt Rate | D21: 0.05514 | E21: 0.04347333333 | F21: -0.01166666667
C22: Regulated Rate of Return | D22: 0.072484 | E22: 0.062844 | F22: -0.00964
C24: Controlable Expenses | D24: 1149829 | E24: 1549280 | F24: 399451
C25: Power Supply Expense | D25: 8674639 | E25: 11715807.34 | F25: 3041168.335
C26: Total Eligible Distribution Expenses | D26: 9824468 | E26: 13265087.34 | F26: 3440619.335
C27: Working Capital Allowance Rate | D27: 0.15 | E27: 0.075 | F27: -0.075
C28: Total Working Capital Allowance ("WCA") | D28: 1473670.2 | E28: 994881.5501 | F28: -478788.6499
C30: Fixed Asset Opening Bal Bridge Year | D30: 12436805 | E30: 15495708.98 | F30: 3058903.98
C31: Fixed Asset Opening Bal Test Year | D31: -7893818 | E31: -9556595.05 | F31: -1662777.05
C32: Average Fixed Asset | D32: 4542987 | E32: 5939113.93 | F32: 1396126.93
C33: Working Capital Allowance | D33: 1473670.2 | E33: 994881.5501 | F33: -478788.6499
C34: Rate Base | D34: 6016657.2 | E34: 6933995.48 | F34: 917338.2801
C36: Regulated Rate of Return | D36: 0.072484 | E36: 0.062844 | F36: -0.00964
C37: Regulated Return on Capital | D37: 436111.3805 | E37: 435760.012 | F37: -351.3685317
C38: Deemed Interest Expense | D38: 199055.0868 | E38: 180866.3381 | F38: -18188.7487
C39: Deemed Return on Equity | D39: 237056.2937 | E39: 254893.6738 | F39: 17837.38017
C41: OM&A | D41: 1149829 | E41: 1549280 | F41: 399451
C42: Depreciation Expense | D42: 389051 | E42: 247980.96 | F42: -141070.04
C43: PILs | D43: 57156 | E43: 23047.14634 | F43: -34108.85366
C44: Revenue Offset | D44: -139777 | E44: -107550 | F44: 32227
C45: Revenue Requirement | D45: 1877960 | E45: 2148518.118 | F45: 270558.1183

Sheet App. 2-Z_Tariff
B1: File Number: | C1: =EBNUMBER -> EB-2016-0166
B2: Exhibit:
B3: Tab:
B4: Schedule:
B5: Page:
B7: Date:
A8: Appendix 2-Z Proposed Tariff of Rates and Charges
A10: For each class, Applicants are required to copy and paste the class descriptions (located directly under the class name) and the description of the applicability of those rates (description is found under the class name and directly under the word "APPLICATION"). By using the drop-down lists located under the column labeled "Rate Description", please select the descriptions of the rates and charges that BEST MATCHES the descriptions on your most recent Board-Approved Tariff of Rates and Charges. If the description is not found in the drop-down list, please enter the description in the green shaded cells under the correct class exactly as it appears on the tariff. Please do not enter more than one "Service Charge" for each class for which a base monthly fixed charge applies. All rate rider descriptions should begin with "Rate Rider for...".
A11: Select the appropriate rate classes as they appear on your most recent Board-Approved Tariff of Rates and Charges, including the MicroFit Class.
A13: How many classes are listed on your most recent Board-Approved Tariff of Rates and Charges? | C13: 2
A15: Identify Your Rate Classes in the Blue Cells below. Rate class names can be selected from the pull-dwon menu. Please ensure that a rate class is assigned to each shaded cell.
A18: List of Rate Classes
A35: Once all blue shaded cells above are filled out, press the following button to create your tariff template
A37: ='LDC Info'!E14 -> Renfrew Hydro Inc.
A38: TARIFF OF RATES AND CHARGES
A39: ="Effective and Implementation Date May 1, 2014" -> Effective and Implementation Date May 1, 2014
A41: This schedule supersedes and replaces all previously
A42: approved schedules of Rates, Charges and Loss Factors
A43: =EBNUMBER -> EB-2016-0166
A45: SERVICE CLASSIFICATION
A48: APPLICATION
A55: MONTHLY RATES AND CHARGES - Delivery Component
A88: MONTHLY RATES AND CHARGES - Regulatory Component
A90: Wholesale Market Service Rate | C90: $/kWh | D90: 0.0044
A91: Rural Rate Protection Charge | C91: $/kWh | D91: 0.0013
A92: Standard Supply Service - Administrative Charge (if applicable) | C92: $ | D92: 0.25
A93: SERVICE CLASSIFICATION
A96: APPLICATION
A103: MONTHLY RATES AND CHARGES - Delivery Component
A136: MONTHLY RATES AND CHARGES - Regulatory Component
A138: Wholesale Market Service Rate | C138: $/kWh | D138: 0.0044
A139: Rural Rate Protection Charge | C139: $/kWh | D139: 0.0013
A140: Standard Supply Service - Administrative Charge (if applicable) | C140: $ | D140: 0.25
A142: ALLOWANCES
A144: Transformer Allowance for Ownership - per kW of billing demand/month
A147: Primary Metering Allowance for transformer losses – applied to measured demand and energy
A149: SPECIFIC SERVICE CHARGES
A151: APPLICATION
A153: The application of these rates and charges shall be in accordance with the Licence of the Distributor and any Code or Order of the Board, and amendments thereto as approved by the Board, which may be applicable to the administration of this schedule.
A155: No charges to meet the costs of any work or service done or furnished for the purpose of the distribution of electricity shall be made except as permitted by this schedule, unless required by the Distributor’s Licence or a Code or Order of the Board, and amendments thereto as approved by the Board, or as specified herein.
A157: It should be noted that this schedule does not list any charges, assessments or credits that are required by law to be invoiced by a distributor and that are not subject to Board approval, such as the Debt Retirement Charge, the Global Adjustment, the Ontario Clean Energy Benefit and the HST.
A159: Customer Administration
A197: Non-Payment of Account
A248: RETAIL SERVICE CHARGES (if applicable)
A250: The application of these rates and charges shall be in accordance with the Licence of the Distributor and any Code or Order of the Board, and amendments thereto as approved by the Board, which may be applicable to the administration of this schedule.
A252: No rates and charges for the distribution of electricity and charges to meet the costs of any work or service done or furnished for the purpose of the distribution of electricity shall be made except as permitted by this schedule, unless required by the Distributor’s Licence or a Code or Order of the Board, and amendments thereto as approved by the Board, or as specified herein.
A254: Unless specifically noted, this schedule does not contain any charges for the electricity commodity, be it under the Regulated Price Plan, a contract with a retailer or the wholesale market price, as applicable.
A256: It should be noted that this schedule does not list any charges, assessments or credits that are required by law to be invoiced by a distributor and that are not subject to Board approval, such as the Debt Retirement Charge, the Global Adjustment, the Ontario Clean Energy Benefit and the HST.
A258: Retail Service Charges refer to services provided by a distributor to retailers or customers related to the supply of competitive electricity.
A260: One-time charge, per retailer, to establish the service agreement between the distributor and the retailer | C260: $ | D260: 100
A261: Monthly Fixed Charge, per retailer | C261: $ | D261: 20
A262: Monthly Variable Charge, per customer, per retailer | C262: $/cust. | D262: 0.5
A263: Distributor-consolidated billing monthly charge, per customer, per retailer | C263: $/cust. | D263: 0.3
A264: Retailer-consolidated billing monthly credit, per customer, per retailer | C264: $/cust. | D264: -0.3
A265: Service Transaction Requests (STR)
A266: Request fee, per request, applied to the requesting party | C266: $ | D266: 0.25
A267: Processing fee, per request, applied to the requesting party | C267: $ | D267: 0.5
A268: Request for customer information as outlined in Section 10.6.3 and Chapter 11 of the Retail
A269: Settlement Code directly to retailers and customers, if not delivered electronically through the
A270: Electronic Business Transaction (EBT) system, applied to the requesting party
A271: Up to twice a year | C271: $ | D271: no charge
A272: More than twice a year, per request (plus incremental delivery costs) | C272: $ | D272: 2
A274: LOSS FACTORS
A276: If the distributor is not capable of prorating changed loss factors jointly with distribution rates, the revised loss factors will be implemented upon the first subsequent billing for each billing cycle.

Sheet 2017 Proposed Tariff Sheet
A1: hidden column | B1: ='[20]1. Information Sheet'!F14 -> Renfrew Hydro Inc. | F1: hidden column | Z1: 3
A2: for rate classes | B2: DRAFT TARIFF OF RATES AND CHARGES | F2: for proposed
B3: Effective and Implementation Date January 1, 2017 | F3: labeliing
B5: This schedule supersedes and replaces all previously
B6: approved schedules of Rates, Charges and Loss Factors | L6: =ROUND(LEN(B6), -2) / 100 -> 1
B7: EB-2016-0166
B9: RESIDENTIAL SERVICE CLASSIFICATION
B11: This classification applies to an account taking electricity at 750 volts or less where the electricity is used exclusively in a separate metered living accommodation. Customers shall be residing in single-dwelling units that consist of a detached house or one unit of a semi-detached, duplex, triplex or quadruplex house, with a residential zoning. Separately metered dwellings within a town house complex or apartment building also qualify as residential customers. Further servicing details are available in the distributor's Conditions of Service. | L11: =ROUND(LEN(B11), -2) / 100 -> 6
B13: APPLICATION
B15: The application of these rates and charges shall be in accordance with the Licence of the Distributor and any Code or Order of the Board, and amendments thereto as approved by the Board, which may be applicable to the administration of this schedule. | L15: =ROUND(LEN(B15), -2) / 100 -> 3
B17: No rates and charges for the distribution of electricity and charges to meet the costs of any work or service done or furnished for the purpose of the distribution of electricity shall be made except as permitted by this schedule, unless required by the Distributor's Licence or a Code or Order of the Board, and amendments thereto as approved by the Board, or as specified herein. | L17: =ROUND(LEN(B17), -2) / 100 -> 4
B19: Unless specifically noted, this schedule does not contain any charges for the electricty commodity, be it under the Regulated Price Plan, a contract with a retailer or the wholesale market price, as applicable. | L19: =ROUND(LEN(B19), -2) / 100 -> 2
B21: It should be noted that this schedule does not list any charges, assessments or credits that are required by law to be invoiced by a distributor and that are not subject to Board approval, such as the Debt Retirement Charge, the Global Adjustment, the Ontario Clean Energy Benefit and the HST. | L21: =ROUND(LEN(B21), -2) / 100 -> 3
B23: MONTHLY RATES AND CHARGES - Delivery Component
A25: RESIDENTIAL | B25: Service Charge | D25: $ | E25: 17.91 | K25: 1_P_MSC
A26: RESIDENTIAL | B26: Rate Rider for Smart Metering Entity Charge | D26: $ | E26: 0.79 | K26: 1_P_SMEC
B27: Rate Rider for Disposition of Residual Historical Smart Meter Costs – effective until December 31, 2020 | D27: $ | E27: 1.42
B28: Rate Rider for Recovery of Stranded Meter Assets – effective until December 31, 2021 | D28: $ | E28: 0.14
A29: RESIDENTIAL | B29: Distribution Volumetric Rate | D29: $/kWh | E29: 0.014 | K29: 1_P_VC_1
A30: RESIDENTIAL | B30: Low Voltage Service Rate | D30: $/kWh | E30: 0.0011 | K30: 1_P_LVrate
A31: RESIDENTIAL | B31: Rate Rider for Disposition of Deferral/Variance Accounts (2016) – effective until December 31, 2020 (1550,1551,1584,1586,1595) | D31: $/kWh | E31: 0.0003 | K31: 1_P_VC_DEFVAR_kWh_1
A32: RESIDENTIAL | B32: Rate Rider for Disposition of Deferral/Variance Accounts (2016) – effective until December 31, 2020 (1580,1588) Applicable only for Non RPP Customers | D32: $/kWh | E32: -0.0002 | K32: 1_P_VC_GA_Rate_Rider_kWh_1
B33: Rate Rider for Disposition of Deferral/Variance Accounts (2016) – effective until December 31, 2020 (Balance of Account 1589 Allocated to Non-WMPs) Applicable only for Non RPP Customers | D33: $/kWh | E33: 0.0009
B34: Rate Rider for Disposition of Deferral/Variance Accounts (2016) – effective until December 31, 2020 (Group 2) | D34: $/kWh | E34: 0.1017256732
B35: Rate Rider for Disposition of Account 1576 – effective until December 31, 2020 | D35: $/kWh | E35: -0.0025
B36: Rate Rider for Recovery of LRAM Variance Account – effective until December 31, 2020 | D36: $/kWh | E36: 0.0001857443386
A37: RESIDENTIAL | B37: Retail Transmission Rate - Network Service Rate | D37: $/kWh | E37: 0.006386334776 | K37: 1_P_RTSR_Network
A38: RESIDENTIAL | B38: Retail Transmission Rate - Line and Transformation Connection Service Rate | D38: $/kWh | E38: 0.003255939452 | K38: 1_P_RTSR_Connection
A39: RESIDENTIAL
A40: RESIDENTIAL | B40: MONTHLY RATES AND CHARGES - Regulatory Component
A41: RESIDENTIAL
A42: RESIDENTIAL | B42: Wholesale Market Service Rate | D42: $/kWh | E42: 0.0036 | K42: 1_P_WMSR
A43: RESIDENTIAL | B43: Rural or Remote Electricity Rate Protection Charge (RRRP) | D43: $/kWh | E43: 0.0013 | K43: 1_P_RRPC
A44: RESIDENTIAL | B44: Standard Supply Service - Administrative Charge (if applicable) | D44: $ | E44: 0.25 | K44: 1_P_SSS
B46: GENERAL SERVICE LESS THAN 50 KW SERVICE CLASSIFICATION
B48: This classification applies to a non residential account taking electricity at 750 volts or less whose average monthly maximum demand is less than, or is forecast to be less than, 50 kW. Further servicing details are available in the distributor’s Conditions of Service. | L48: =ROUND(LEN(B48), -2) / 100 -> 3
B50: APPLICATION
B52: The application of these rates and charges shall be in accordance with the Licence of the Distributor and any Code or Order of the Board, and amendments thereto as approved by the Board, which may be applicable to the administration of this schedule. | L52: =ROUND(LEN(B52), -2) / 100 -> 3
B54: No rates and charges for the distribution of electricity and charges to meet the costs of any work or service done or furnished for the purpose of the distribution of electricity shall be made except as permitted by this schedule, unless required by the Distributor’s Licence or a Code or Order of the Board, and amendments thereto as approved by the Board, or as specified herein. | L54: =ROUND(LEN(B54), -2) / 100 -> 4
B56: Unless specifically noted, this schedule does not contain any charges for the electricity commodity, be it under the Regulated Price Plan, a contract with a retailer or the wholesale market price, as applicable. | L56: =ROUND(LEN(B56), -2) / 100 -> 2
B58: It should be noted that this schedule does not list any charges, assessments or credits that are required by law to be invoiced by a distributor and that are not subject to Board approval, such as the Debt Retirement Charge, the Global Adjustment, the Ontario Clean Energy Benefit and the HST. | L58: =ROUND(LEN(B58), -2) / 100 -> 3
B60: MONTHLY RATES AND CHARGES - Delivery Component
B62: Service Charge | D62: $ | E62: 31.25
B63: Rate Rider for Smart Metering Entity Charge | D63: $ | E63: 0.79
B64: Rate Rider for Disposition of Residual Historical Smart Meter Costs – effective until December 31, 2020 | D64: $ | E64: 3.1
B65: Rate Rider for Recovery of Stranded Meter Assets – effective until December 31, 2021 | D65: $ | E65: 0.24
B66: Distribution Volumetric Rate | D66: $/kWh | E66: 0.018
B67: Low Voltage Service Rate | D67: $/kWh | E67: 0.001
B68: Rate Rider for Disposition of Deferral/Variance Accounts (2016) – effective until December 31, 2020 (1550,1551,1584,1586,1595) | D68: $/kWh | E68: 0.0003403019952
B69: Rate Rider for Disposition of Deferral/Variance Accounts (2016) – effective until December 31, 2020 (1580,1588) Applicable only for Non RPP Customers | D69: $/kWh | E69: -0.0001611198572
B70: Rate Rider for Disposition of Deferral/Variance Accounts (2016) – effective until December 31, 2020 (Balance of Account 1589 Allocated to Non-WMPs) Applicable only for Non RPP Customers | E70: 0.0009406535504
B71: Rate Rider for Disposition of Deferral/Variance Accounts (2016) – effective until December 31, 2020 (Group 2) | D71: $/kWh | E71: 0.0001618234193
B72: Rate Rider for Disposition of Account 1576 – effective until December 31, 2020 | D72: $/kWh | E72: -0.002549576061
B73: Rate Rider for Recovery of LRAM Variance Account – effective until December 31, 2020 | D73: $/kWh | E73: 0.0001857443386
B74: Retail Transmission Rate - Network Service Rate | D74: $/kWh | E74: 0.0058
B75: Retail Transmission Rate - Line and Transformation Connection Service Rate | D75: $/kWh | E75: 0.0033
A76: GENERAL SERVICE LESS THAN 50 KW
A77: GENERAL SERVICE LESS THAN 50 KW | B77: MONTHLY RATES AND CHARGES - Regulatory Component
A78: GENERAL SERVICE LESS THAN 50 KW
A79: GENERAL SERVICE LESS THAN 50 KW | B79: Wholesale Market Service Rate | D79: $/kWh | E79: 0.0036 | K79: 2_P_WMSR
A80: GENERAL SERVICE LESS THAN 50 KW | B80: Rural or Remote Electricity Rate Protection Charge (RRRP) | D80: $/kWh | E80: 0.0013 | K80: 2_P_RRPC
A81: GENERAL SERVICE LESS THAN 50 KW | B81: Standard Supply Service - Administrative Charge (if applicable) | D81: $ | E81: 0.25 | K81: 2_P_SSS
B83: GENERAL SERVICE 50 TO 4,999 KW SERVICE CLASSIFICATION
B85: This classification applies to a non residential account whose average monthly maximum demand used for billing purposes is equal to or greater than, or is forecast to be equal to or greater than, 50 kW but less than 5,000 kW. Further servicing details are available in the distributor’s Conditions of Service. | L85: =ROUND(LEN(B85), -2) / 100 -> 3
B87: APPLICATION
B89: The application of these rates and charges shall be in accordance with the Licence of the Distributor and any Code or Order of the Board, and amendments thereto as approved by the Board, which may be applicable to the administration of this schedule. | L89: =ROUND(LEN(B89), -2) / 100 -> 3
B91: No rates and charges for the distribution of electricity and charges to meet the costs of any work or service done or furnished for the purpose of the distribution of electricity shall be made except as permitted by this schedule, unless required by the Distributor’s Licence or a Code or Order of the Board, and amendments thereto as approved by the Board, or as specified herein. | L91: =ROUND(LEN(B91), -2) / 100 -> 4
B93: Unless specifically noted, this schedule does not contain any charges for the electricity commodity, be it under the Regulated Price Plan, a contract with a retailer or the wholesale market price, as applicable. | L93: =ROUND(LEN(B93), -2) / 100 -> 2
B95: It should be noted that this schedule does not list any charges, assessments or credits that are required by law to be invoiced by a distributor and that are not subject to Board approval, such as the Debt Retirement Charge, the Global Adjustment, the Ontario Clean Energy Benefit and the HST. | L95: =ROUND(LEN(B95), -2) / 100 -> 3
B97: MONTHLY RATES AND CHARGES - Delivery Component
B99: Service Charge | D99: $ | E99: 189.27
B100: Rate Rider for Smart Metering Entity Charge | D100: $ | E100: 0.79
B101: Rate Rider for Disposition of Residual Historical Smart Meter Costs – effective until December 31, 2020 | D101: $ | E101: 11.6
B102: Rate Rider for Recovery of Stranded Meter Assets – effective until December 31, 2020 | D102: $ | E102: 4.82
B103: Distribution Volumetric Rate | D103: $/kW | E103: 3.1921
B104: Low Voltage Service Rate | D104: $/kW | E104: 0.3733
B105: Rate Rider for Disposition of Deferral/Variance Accounts (2016) – effective until December 31, 2020 (1550,1551,1584,1586,1595) | D105: $/kW | E105: 0.129486429
B106: Rate Rider for Disposition of Deferral/Variance Accounts (2016) – effective until December 31, 2020, 2018 (1580,1588) Applicable only for Non RPP Customers | D106: $/kW | E106: -0.05929369461
B107: Rate Rider for Disposition of Deferral/Variance Accounts (2016) – effective until December 31, 2020 (Balance of Account 1589 Allocated to Non-WMPs) Applicable only for Non RPP Customers | D107: $/kW | E107: 0.3461697728
B108: Rate Rider for Disposition of Deferral/Variance Accounts (2016) – effective until December 31, 2020 (Group 2) | D108: $/kW | E108: 0.0595526124
B109: Rate Rider for Disposition of Account 1576 – effective until December 31, 2020 | D109: $/kW | E109: -0.9382691059
B110: Rate Rider for Recovery of LRAM Variance Account – effective until December 31, 2020 | D110: $/kW | E110: 0.06835574636
B111: Retail Transmission Rate - Network Service Rate | D111: $/kW | E111: 2.368744446
B112: Retail Transmission Rate - Line and Transformation Connection Service Rate | D112: $/kW | E112: 1.215665252
A113: GENERAL SERVICE 50 TO 4,999 KW
A114: GENERAL SERVICE 50 TO 4,999 KW | B114: MONTHLY RATES AND CHARGES - Regulatory Component
A115: GENERAL SERVICE 50 TO 4,999 KW
A116: GENERAL SERVICE 50 TO 4,999 KW | B116: Wholesale Market Service Rate | D116: $/kWh | E116: 0.0036 | K116: 3_P_WMSR
A117: GENERAL SERVICE 50 TO 4,999 KW | B117: Rural or Remote Electricity Rate Protection Charge (RRRP) | D117: $/kWh | E117: 0.0013 | K117: 3_P_RRPC
A118: GENERAL SERVICE 50 TO 4,999 KW | B118: Standard Supply Service - Administrative Charge (if applicable) | D118: $ | E118: 0.25 | K118: 3_P_SSS
B120: UNMETERED SCATTERED LOAD SERVICE CLASSIFICATION
B122: This classification applies to an account taking electricity at 750 volts or less whose average monthly maximum demand is less than, or is forecast to be less than, 50 kW and the consumption is unmetered. Such connections include cable TV power packs, bus shelters, telephone booths, traffic lights, railway crossings, etc. The customer will provide detailed manufacturer information/documentation with regard to electrical consumption of the unmetered load. Further servicing details are available in the distributor’s Conditions of Service. | L122: =ROUND(LEN(B122), -2) / 100 -> 5
B124: APPLICATION
B126: The application of these rates and charges shall be in accordance with the Licence of the Distributor and any Code or Order of the Board, and amendments thereto as approved by the Board, which may be applicable to the administration of this schedule. | L126: =ROUND(LEN(B126), -2) / 100 -> 3
B128: No rates and charges for the distribution of electricity and charges to meet the costs of any work or service done or furnished for the purpose of the distribution of electricity shall be made except as permitted by this schedule, unless required by the Distributor’s Licence or a Code or Order of the Board, and amendments thereto as approved by the Board, or as specified herein. | L128: =ROUND(LEN(B128), -2) / 100 -> 4
B130: Unless specifically noted, this schedule does not contain any charges for the electricity commodity, be it under the Regulated Price Plan, a contract with a retailer or the wholesale market price, as applicable. | L130: =ROUND(LEN(B130), -2) / 100 -> 2
B132: It should be noted that this schedule does not list any charges, assessments or credits that are required by law to be invoiced by a distributor and that are not subject to Board approval, such as the Debt Retirement Charge, the Global Adjustment, the Ontario Clean Energy Benefit and the HST | L132: =ROUND(LEN(B132), -2) / 100 -> 3
B134: MONTHLY RATES AND CHARGES - Delivery Component
A136: UNMETERED SCATTERED LOAD | B136: Service Charge | D136: $ | E136: 39.62 | K136: 4_P_MSC
A137: UNMETERED SCATTERED LOAD | B137: Distribution Volumetric Rate | D137: $/kWh | E137: 0.0089 | K137: 4_P_VC_1
A138: UNMETERED SCATTERED LOAD | B138: Low Voltage Service Charge | D138: $/kWh | E138: 0.001 | K138: 4_P_LVrate
B139: Rate Rider for Disposition of Deferral/Variance Accounts (2016) – effective until December 31, 2020 (1550,1551,1584,1586,1595) | D139: $/kWh | E139: 0.0003518558776
B140: Rate Rider for Disposition of Deferral/Variance Accounts (2016) – effective until December 31, 2020 (1580,1588) Applicable only for Non RPP Customers | D140: $/kWh | E140: -0.0001611198572
B141: Rate Rider for Disposition of Deferral/Variance Accounts (2016) – effective until December 31, 2020 (Balance of Account 1589 Allocated to Non-WMPs) Applicable only for Non RPP Customers | D141: $/kWh | E141: 0.0009406535504
B142: Rate Rider for Disposition of Deferral/Variance Accounts (2016) – effective until December 31, 2020 (Group 2) | D142: $/kWh | E142: 0.0001618234193
B143: Rate Rider for Disposition of Account 1576 – effective until December 31, 2020 | D143: $/kW | E143: -0.002549576061
B144: Rate Rider for Recovery of LRAM Variance Account – effective until December 31, 2020 | D144: $/kW | E144: 0.0001857443386
A145: UNMETERED SCATTERED LOAD | B145: Retail Transmission Rate - Network Service Rate | D145: $/kWh | E145: 0.005814424199 | K145: 4_P_RTSR_Network
A146: UNMETERED SCATTERED LOAD | B146: Retail Transmission Rate - Line and Transformation Connection Service Rate | D146: $/kWh | E146: 0.0033 | K146: 4_P_RTSR_Connection
A147: UNMETERED SCATTERED LOAD
A148: UNMETERED SCATTERED LOAD | B148: MONTHLY RATES AND CHARGES - Regulatory Component
A149: UNMETERED SCATTERED LOAD
A150: UNMETERED SCATTERED LOAD | B150: Wholesale Market Service Rate | D150: $/kWh | E150: 0.0036 | K150: 4_P_WMSR
A151: UNMETERED SCATTERED LOAD | B151: Rural or Remote Electricity Rate Protection Charge (RRRP) | D151: $/kWh | E151: 0.0013 | K151: 4_P_RRPC
A152: UNMETERED SCATTERED LOAD | B152: Standard Supply Service - Administrative Charge (if applicable) | D152: $ | E152: 0.25 | K152: 4_P_SSS
B154: STREET LIGHTING SERVICE CLASSIFICATION
B156: This classification applies to an account for roadway lighting with a Municipality, Regional Municipality, Ministry of Transportation and private roadway lighting, controlled by photo cells. The consumption for these customers will be based on the calculated connected load times the required lighting times established in the approved OEB street lighting load shape template. Further servicing details are available in the distributor’s Conditions of Service. | L156: =ROUND(LEN(B156), -2) / 100 -> 5
B158: APPLICATION
B160: The application of these rates and charges shall be in accordance with the Licence of the Distributor and any Code or Order of the Board, and amendments thereto as approved by the Board, which may be applicable to the administration of this schedule. | L160: =ROUND(LEN(B160), -2) / 100 -> 3
B162: No rates and charges for the distribution of electricity and charges to meet the costs of any work or service done or furnished for the purpose of the distribution of electricity shall be made except as permitted by this schedule, unless required by the Distributor’s Licence or a Code or Order of the Board, and amendments thereto as approved by the Board, or as specified herein. | L162: =ROUND(LEN(B162), -2) / 100 -> 4
B164: Unless specifically noted, this schedule does not contain any charges for the electricity commodity, be it under the Regulated Price Plan, a contract with a retailer or the wholesale market price, as applicable. | L164: =ROUND(LEN(B164), -2) / 100 -> 2
B166: It should be noted that this schedule does not list any charges, assessments or credits that are required by law to be invoiced by a distributor and that are not subject to Board approval, such as the Debt Retirement Charge, the Global Adjustment, the Ontario Clean Energy Benefit and the HST. | L166: =ROUND(LEN(B166), -2) / 100 -> 3
B168: MONTHLY RATES AND CHARGES - Delivery Component
A170: STREET LIGHTING | B170: Service Charge (per connection) | D170: $ | E170: 2.82 | K170: 5_P_MSC
A171: STREET LIGHTING | B171: Distribution Volumetric Rate | D171: $/kW | E171: 6.9248 | K171: 5_P_VC_1
A172: STREET LIGHTING | B172: Low Voltage Service Rate | D172: $/kW | E172: 0.2885 | K172: 5_P_LVrate
B173: Rate Rider for Disposition of Deferral/Variance Accounts (2016) – effective until December 31, 2020 (1550,1551,1584,1586,1595) | D173: $/kWh | E173: 0.126625639
B174: Rate Rider for Disposition of Deferral/Variance Accounts (2016) – effective until December 31, 2020 (1580,1588) Applicable only for Non RPP Customers | D174: $/kWh | E174: -0.05798369778
B175: Rate Rider for Disposition of Deferral/Variance Accounts (2016) – effective untilDecember 31, 2020 (Balance of Account 1589 Allocated to Non-WMPs) Applicable only for Non RPP Customers | D175: $/kWh | E175: 0.3385217201
B176: Rate Rider for Disposition of Deferral/Variance Accounts (2016) – effective until December 31, 2020 (Group 2) | D176: $/kWh | E176: 0.05823689521
B177: Rate Rider for Disposition of Account 1576 – effective until December 31, 2020 | D177: $/kW | E177: -0.9175395907
B178: Rate Rider for Recovery of LRAM Variance Account – effective until December 31, 2020 | D178: $/kW | E178: 0.06684553838
A179: STREET LIGHTING | B179: Retail Transmission Rate - Network Service Rate | D179: $/kW | E179: 1.786368025 | K179: 5_P_RTSR_Network
A180: STREET LIGHTING | B180: Retail Transmission Rate - Line and Transformation Connection Service Rate | D180: $/kW | E180: 0.9397608098 | K180: 5_P_RTSR_Connection
A181: STREET LIGHTING
A182: STREET LIGHTING | B182: MONTHLY RATES AND CHARGES - Regulatory Component
A183: STREET LIGHTING
A184: STREET LIGHTING | B184: Wholesale Market Service Rate | D184: $/kWh | E184: 0.0036 | K184: 5_P_WMSR
A185: STREET LIGHTING | B185: Rural or Remote Electricity Rate Protection Charge (RRRP) | D185: $/kWh | E185: 0.0013 | K185: 5_P_RRPC
A186: STREET LIGHTING | B186: Standard Supply Service - Administrative Charge (if applicable) | D186: $ | E186: 0.25 | K186: 5_P_SSS
B188: MICROFIT SERVICE CLASSIFICATION
B190: This classification applies to an electricity generation facility contracted under the Ontario Power Authority’s microFIT program and connected to the distributor’s distribution system. Further servicing details are available in the distributor’s Conditions of Service. | L190: =ROUND(LEN(B190), -2) / 100 -> 3
B192: APPLICATION
B194: The application of these rates and charges shall be in accordance with the Licence of the Distributor and any Code or Order of the Board, and amendments thereto as approved by the Board, which may be applicable to the administration of this schedule. | L194: =ROUND(LEN(B194), -2) / 100 -> 3
B196: No rates and charges for the distribution of electricity and charges to meet the costs of any work or service done or furnished for the purpose of the distribution of electricity shall be made except as permitted by this schedule, unless required by the Distributor’s Licence or a Code or Order of the Board, and amendments thereto as approved by the Board, or as specified herein. | L196: =ROUND(LEN(B196), -2) / 100 -> 4
B198: Unless specifically noted, this schedule does not contain any charges for the electricity commodity, be it under the Regulated Price Plan, a contract with a retailer or the wholesale market price, as applicable. | L198: =ROUND(LEN(B198), -2) / 100 -> 2
B200: It should be noted that this schedule does not list any charges, assessments or credits that are required by law to be invoiced by a distributor and that are not subject to Board approval, such as the Debt Retirement Charge, the Global Adjustment, the Ontario Clean Energy Benefit and the HST. | L200: =ROUND(LEN(B200), -2) / 100 -> 3
B202: MONTHLY RATES AND CHARGES - Delivery Component
A204: MICROFIT | B204: Service Charge | D204: $ | E204: 5.4 | K204: 6_P_MSC
A205: MICROFIT
B206: ALLOWANCES
A207: MICROFIT
B208: Transformer Allowance for Ownership - per kW of billing demand/month | D208: $/kW | E208: -0.6
B209: Primary Metering Allowance for transformer losses – applied to measured demand and energy | D209: % | E209: -1
B211: SPECIFIC SERVICE CHARGES
B213: The application of these rates and charges shall be in accordance with the Licence of the Distributor and any Code or Order of the Board, and amendments thereto as approved by the Board, which may be applicable to the administration of this schedule.
B215: No charges to meet the costs of any work or service done or furnished for the purpose of the distribution of electricity shall be made except as permitted by this schedule, unless required by the Distributor’s Licence or a Code or Order of the Board, and amendments thereto as approved by the Board, or as specified herein.
B217: It should be noted that this schedule does not list any charges, assessments, or credits that are required by law to be invoiced by a distributor and that are not subject to Board approval, such as the Debt Retirement Charge, the Global Adjustment, the Ontario Clean Energy Benefit and the HST.
B219: Customer Administration
B220: Easement Letter | D220: $ | E220: 15
B221: Account History | D221: $ | E221: 15
B222: Arrears certificate | D222: $ | E222: 15
B223: Account set up charge/change of occupancy charge (plus credit agency costs if applicable) | D223: $ | E223: 30
B224: Returned cheque (plus bank charges) | D224: $ | E224: 15
B227: Non-Payment of Account
B228: Late Payment – per month | D228: % | E228: 1.5
B229: Late Payment – per annum | D229: % | E229: 19.56
B230: Collection of account charge – no disconnection | D230: $ | E230: 30
B231: Disconnect/Reconnect at meter – during regular hours | D231: $ | E231: 65
B232: Specific Charge for Access to the Power Poles - $/pole/year | D232: $ | E232: 22.35
B235: RETAIL SERVICE CHARGES (if applicable)
B237: The application of these rates and charges shall be in accordance with the Licence of the Distributor and any Code or Order of the Board, and amendments thereto as approved by the Board, which may be applicable to the administration of this schedule.
B239: No rates and charges for the distribution of electricity and charges to meet the costs of any work or service done or furnished for the purpose of the distribution of electricity shall be made except as permitted by this schedule, unless required by the Distributor’s Licence or a Code or Order of the Board, and amendments thereto as approved by the Board, or as specified herein.
B241: Unless specifically noted, this schedule does not contain any charges for the electricity commodity, be it under the Regulated Price Plan, a contract with a retailer or the wholesale market price, as applicable.
B243: It should be noted that this schedule does not list any charges, assessments, or credits that are required by law to be invoiced by a distributor and that are not subject to Board approval, such as the Debt Retirement Charge, the Global Adjustment, the Ontario Clean Energy Benefit and the HST.
B245: Retail Service Charges refer to services provided by a distributor to retailers or customers related to the supply of competitive electricity.
B247: One-time charge, per retailer, to establish the service agreement between the distributor and the retailer | D247: $ | E247: 100
B248: Monthly Fixed Charge, per retailer | D248: $ | E248: 20
B249: Monthly Variable Charge, per customer, per retailer | D249: $/cust. | E249: 0.5
B250: Distributor-consolidated billing monthly charge, per customer, per retailer | D250: $/cust. | E250: 0.3
B251: Retailer-consolidated billing monthly credit, per customer, per retailer | D251: $/cust. | E251: -0.3
B252: Service Transaction Requests (STR)
B253: Request fee, per request, applied to the requesting party | D253: $ | E253: 0.25
B254: Processing fee, per request, applied to the requesting party | D254: $ | E254: 0.5
B255: Request for customer information as outlined in Section 10.6.3 and Chapter 11 of the Retail
B256: Settlement Code directly to retailers and customers, if not delivered electronically through the
B257: Electronic Business Transaction (EBT) system, applied to the requesting party
B258: Up to twice a year | D258: $ | E258: no charge
B259: More than twice a year, per request (plus incremental delivery costs) | D259: $ | E259: 2
B261: LOSS FACTORS
B263: If the distributor is not capable of prorating changed loss factors jointly with distribution rates, the revised loss factors will be implemented upon the first subsequent billing for each billing cycle.
B265: Total Loss Factor – Secondary Metered Customer < 5,000 kW | E265: 1.081 | K265: TLF_Secondary_LT_5000kW
B266: Total Loss Factor – Primary Metered Customer < 5,000 kW | E266: 1.0702 | K266: TLF_Primary_LT_5000kW

Sheet Bill Impact - Res 10 Pct
T1: 1
B10: Appendix 2-W
B11: Bill Impacts
B14: Customer Class: | D14: Residential
B16: TOU / non-TOU: | D16: TOU
D18: Consumption | F18: 286 | G18: kWh
F20: Current Board-Approved | J20: Proposed | N20: Impact
D21: Charge Unit | F21: Rate | G21: Volume | H21: Charge | J21: Rate | K21: Volume | L21: Charge | N21: $ Change | O21: % Change
F22: ($) | H22: ($) | J22: ($) | L22: ($)
B23: Monthly Service Charge | D23: Monthly | F23: ='[19]B. CurrentTariff'!C32 -> 13.97 | G23: 1 | H23: =G23*F23 -> 13.97 | J23: ='[19]G. RateDesign'!B46 -> 17.91 | K23: 1 | L23: =K23*J23 -> 17.91 | N23: =L23-H23 -> 3.94 | O23: =IF((H23)=0,"",(N23/H23)) -> 0.2820329277
B24: Smart Meter Rate Adder | G24: 1 | H24: =G24*F24 -> 0 | K24: 1 | L24: =K24*J24 -> 0 | N24: =L24-H24 -> 0 | O24: =IF((H24)=0,"",(N24/H24)) -> 
B25: Stranded Meter Rate Rider | D25: Monthly | G25: 1 | H25: 0 | J25: ='[19]I. SMRR'!G13 -> 0.1361316 | K25: 1 | L25: =K25*J25 -> 0.1361316 | N25: =L25-H25 -> 0.1361316 | O25: =IF((H25)=0,"",(N25/H25)) -> 
B26: Smart Meter Disposition Rider | G26: 1 | H26: 0 | J26: ='[21]10A. Cost_Alloc_SMDR'!$AB$61 -> 1.42 | K26: 1 | L26: 1.42 | N26: 1.42
G27: 1 | H27: 0 | K27: 1 | L27: 0 | N27: 0
G28: 1 | H28: 0 | K28: 1 | L28: 0 | N28: 0
B29: Distribution Volumetric Rate | D29: per kWh | F29: ='[19]B. CurrentTariff'!C33 -> 0.0145 | G29: =$F$18 -> 286 | H29: 4.147 | J29: ='[19]G. RateDesign'!G46 -> 0.01397668922 | K29: =$F$18 -> 286 | L29: 3.997333117 | N29: -0.1496668829 | O29: -0.03609039858
B30: Smart Meter Disposition Rider | D30: per kWh | G30: 286 | H30: 0 | K30: =$F$18 -> 286 | L30: 0 | N30: 0
B31: LRAM & SSM Rate Rider | D31: per kWh | G31: 286 | H31: 0 | K31: 286 | L31: 0 | N31: 0
B32: ='[19]J. DVA'!$B$147 -> Rate Rider Calculation for Accounts 1575 and 1576 | D32: per kWh | G32: =$F$18 -> 286 | H32: =G32*F32 -> 0 | J32: ='[19]J. DVA'!F153 -> -0.002549576061 | K32: =$F$18 -> 286 | L32: =K32*J32 -> -0.7291787534 | N32: =L32-H32 -> -0.7291787534 | O32: =IF((H32)=0,"",(N32/H32)) -> 
G33: 286 | H33: =G33*F33 -> 0 | K33: 286 | L33: =K33*J33 -> 0 | N33: =L33-H33 -> 0 | O33: =IF((H33)=0,"",(N33/H33)) -> 
G34: 286 | H34: =G34*F34 -> 0 | K34: 286 | L34: =K34*J34 -> 0 | N34: =L34-H34 -> 0 | O34: =IF((H34)=0,"",(N34/H34)) -> 
G35: 286 | H35: 0 | K35: 286 | L35: 0 | N35: 0
G36: 286 | H36: 0 | K36: 286 | L36: 0 | N36: 0
G37: 286 | H37: 0 | K37: 286 | L37: 0 | N37: 0
G38: 286 | H38: 0 | K38: 286 | L38: 0 | N38: 0
B39: Sub-Total A (excluding pass through) | H39: =SUM(H23:H38) -> 18.117 | L39: =SUM(L23:L38) -> 22.73428596 | N39: 4.617285964 | O39: 0.2548593014
B40: ='[19]J. DVA'!$B$16 -> Rate Rider Calculation for Deferral / Variance Accounts Balances (excluding Global Adj.) | D40: per kWh | G40: 286 | H40: =G40*F40 -> 0 | J40: ='[19]J. DVA'!F20 -> 0.0003403795305 | K40: 286 | L40: =K40*J40 -> 0.09734854573 | N40: 0.09734854573
B41: ='[19]J. DVA'!$B$42 -> Rate Rider Calculation for Deferral / Variance Accounts Balances (excluding Global Adj.) - NON-WMP | D41: per kWh | G41: 286 | H41: 0 | J41: ='[19]J. DVA'!F46 -> -0.0001611198572 | K41: 286 | L41: -0.04608027915 | N41: -0.04608027915
B42: ='[19]J. DVA'!$B$68 -> Rate Rider Calculation for RSVA - Power - Global Adjustment | D42: per kWh | G42: 286 | K42: 286 | L42: 0 | N42: 0
B43: ='[19]J. DVA'!$B$121 -> Rate Rider Calculation for Group 2 Accounts | D43: Monthly | G43: 286 | J43: ='[19]J. DVA'!F125 -> 0.1017256732 | K43: 1 | L43: 0.1017256732 | N43: 0.1017256732
B44: ='[19]J. DVA'!$B$175 -> Rate Rider Calculation for Accounts 1568 | D44: per kWh | G44: 286 | H44: 0 | J44: ='[19]J. DVA'!F181 -> 0.0001857443386 | K44: 286 | L44: 0.05312288084 | N44: 0.05312288084
B45: Low Voltage Charges | D45: per kWh | F45: 0.0011 | G45: 286 | H45: 0.3146 | J45: ='[4]4.12 PowerSupplExp'!$J$185 -> 0.0011 | K45: 286 | L45: 0.3146 | N45: 0 | O45: =IF((H45)=0,"",(N45/H45)) -> 0
B46: Line Losses on Cost of Power | D46: per kWh | F46: =IF(ISBLANK(D16)=1, 0, IF(D16="TOU", 0.64*$F$56+0.18*$F$57+0.18*$F$58, IF(AND(D16="non-TOU", G60>0), F60,F59))) -> 0.10766 | G46: =$F$18*(1+$F$75)-$F$18 -> 23.166 | H46: 2.49405156 | J46: =0.64*$F$56+0.18*$F$57+0.18*$F$58 -> 0.10766 | K46: =$F$18*(1+$J$75)-$F$18 -> 23.166 | L46: 2.49405156 | N46: 0 | O46: 0
B47: Smart Meter Entity Charge | D47: per kWh | F47: 0.79 | G47: 1 | H47: 0.79 | J47: 0.79 | K47: 1 | L47: 0.79 | N47: 0
B48: Sub-Total B - Distribution (includes Sub-Total A) | H48: =SUM(H40:H47)+H39 -> 21.71565156 | L48: =SUM(L40:L47)+L39 -> 26.53905434 | N48: 4.823402784 | O48: =IF((H48)=0,"",(N48/H48)) -> 0.2221164201
B49: RTSR - Network | D49: per kWh | F49: ='[19]B. CurrentTariff'!C45 -> 0.0064 | G49: =F18*(1+F75) -> 309.166 | H49: =G49*F49 -> 1.9786624 | J49: ='[4]4.12 PowerSupplExp'!$O$58 -> 0.00640525801 | K49: =F18*(1+J75) -> 309.166 | L49: =K49*J49 -> 1.980287998 | N49: 0.001625597969 | O49: 0.0008215640873
B50: RTSR - Line and Transformation Connection | D50: per kWh | F50: ='[19]B. CurrentTariff'!C46 -> 0.0033 | G50: =G49 -> 309.166 | H50: =G50*F50 -> 1.0202478 | J50: ='[4]4.12 PowerSupplExp'!$O$74 -> 0.003468524144 | K50: =K49 -> 309.166 | L50: =K50*J50 -> 1.072349735 | N50: 0.05210193548 | O50: 0.0510679224
B51: Sub-Total C - Delivery (including Sub-Total B) | H51: =SUM(H48:H50) -> 24.71456176 | L51: =SUM(L48:L50) -> 29.59169208 | N51: 4.877130318 | O51: 0.1973383289
B52: Wholesale Market Service Charge (WMSC) | D52: per kWh | F52: 0.0036 | G52: =G50 -> 309.166 | H52: =G52*F52 -> 1.1129976 | J52: 0.0036 | K52: =K50 -> 309.166 | L52: =K52*J52 -> 1.1129976 | N52: 0 | O52: 0
B53: Rural and Remote Rate Protection (RRRP) | D53: per kWh | F53: 0.0013 | G53: =G50 -> 309.166 | H53: 0.4019158 | J53: 0.0013 | K53: =K50 -> 309.166 | L53: 0.4019158 | N53: 0 | O53: 0
B54: Standard Supply Service Charge | D54: Monthly | F54: 0.25 | G54: 1 | H54: 0.25 | J54: 0.25 | K54: 1 | L54: 0.25 | N54: 0 | O54: 0
B55: OEAP | D55: per kWh | F55: 0.0011 | G55: =F18 -> 286 | H55: 0.3146 | J55: 0.0011 | K55: =F18 -> 286 | L55: 0.3146 | N55: 0 | O55: 0
B56: TOU - Off Peak | D56: per kWh | F56: 0.083 | G56: =0.64*$F$18 -> 183.04 | H56: 15.19232 | J56: 0.083 | K56: =G56 -> 183.04 | L56: 15.19232 | N56: 0 | O56: 0
B57: TOU - Mid Peak | D57: per kWh | F57: 0.128 | G57: =0.18*$F$18 -> 51.48 | H57: 6.58944 | J57: 0.128 | K57: =G57 -> 51.48 | L57: 6.58944 | N57: 0 | O57: 0
B58: TOU - On Peak | D58: per kWh | F58: 0.175 | G58: =0.18*$F$18 -> 51.48 | H58: 9.009 | J58: 0.175 | K58: =G58 -> 51.48 | L58: 9.009 | N58: 0 | O58: 0
B59: Energy - RPP - Tier 1 | D59: per kWh | F59: 0.099 | G59: =IF(AND($T$1=1, F18>=600), 600, IF(AND($T$1=1, AND(F18<600, F18>=0)), F18, IF(AND($T$1=2, F18>=1000), 1000, IF(AND($T$1=2, AND(F18<1000, F18>=0)), F18)))) -> 286 | H59: =G59*F59 -> 28.314 | J59: 0.099 | K59: =G59 -> 286 | L59: =K59*J59 -> 28.314 | N59: 0 | O59: 0
B60: Energy - RPP - Tier 2 | D60: per kWh | F60: 0.116 | G60: =IF(AND($T$1=1, F18>=600), F18-600, IF(AND($T$1=1, AND(F18<600, F18>=0)), 0, IF(AND($T$1=2, F18>=1000), F18-1000, IF(AND($T$1=2, AND(F18<1000, F18>=0)), 0)))) -> 0 | H60: =G60*F60 -> 0 | J60: 0.116 | K60: =G60 -> 0 | L60: =K60*J60 -> 0 | N60: 0
B62: Total Bill on TOU (before Taxes) | H62: =SUM(H52:H58,H51) -> 57.58483516 | L62: =SUM(L52:L58,L51) -> 62.46196548 | N62: =L62-H62 -> 4.877130318 | O62: =IF((H62)=0,"",(N62/H62)) -> 0.08469469964
B63: HST | F63: 0.13 | H63: =H62*F63 -> 7.486028571 | J63: 0.13 | L63: =L62*J63 -> 8.120055512 | N63: 0.6340269413 | O63: 0.08469469964
B64: Total Bill (including HST) | H64: =H62+H63 -> 65.07086373 | L64: =L62+L63 -> 70.58202099 | N64: 5.511157259 | O64: 0.08469469964
B65: Ontario Clean Energy Benefit 1 | H65: =ROUND(-H64*0.1,2) -> -6.51 | L65: =ROUND(-L64*0.1,2) -> -7.06 | N65: -0.55 | O65: 0.08448540707
B66: Total Bill on TOU (including OCEB) | H66: =H64+H65 -> 58.56086373 | L66: =L64+L65 -> 63.52202099 | N66: 4.961157259 | O66: 0.08471796594
B68: Total Bill on RPP (before Taxes) | H68: =SUM(H59:H60,H51,H52:H55) -> 55.10807516 | L68: =SUM(L59:L60,L51,L52:L55) -> 59.98520548 | N68: =L68-H68 -> 4.877130318 | O68: =IF((H68)=0,"",(N68/H68)) -> 0.08850119159
B69: HST | F69: 0.13 | H69: =H68*F69 -> 7.164049771 | J69: 0.13 | L69: =L68*J69 -> 7.798076712 | N69: =L69-H69 -> 0.6340269413 | O69: =IF((H69)=0,"",(N69/H69)) -> 0.08850119159
B70: Total Bill (including HST) | H70: =H68+H69 -> 62.27212493 | L70: =L68+L69 -> 67.78328219 | N70: =L70-H70 -> 5.511157259 | O70: =IF((H70)=0,"",(N70/H70)) -> 0.08850119159
B71: Ontario Clean Energy Benefit 1 | H71: =ROUND(-H70*0.1,2) -> -6.23 | L71: =ROUND(-L70*0.1,2) -> -6.78 | N71: =L71-H71 -> -0.55 | O71: =IF((H71)=0,"",(N71/H71)) -> 0.08828250401
B72: Total Bill on RPP (including OCEB) | H72: =SUM(H70:H71) -> 56.04212493 | L72: =SUM(L70:L71) -> 61.00328219 | N72: =L72-H72 -> 4.961157259 | O72: =IF((H72)=0,"",(N72/H72)) -> 0.08852550229
B75: Loss Factor (%) | F75: 0.081 | J75: 0.081

Sheet Bill Impact - Residential
T1: 1
B10: Appendix 2-W
B11: Bill Impacts
B14: Customer Class: | D14: Residential
B16: TOU / non-TOU: | D16: TOU
D18: Consumption | F18: 750 | G18: kWh
F20: Current Board-Approved | J20: Proposed | N20: Impact
D21: Charge Unit | F21: Rate | G21: Volume | H21: Charge | J21: Rate | K21: Volume | L21: Charge | N21: $ Change | O21: % Change
F22: ($) | H22: ($) | J22: ($) | L22: ($)
B23: Monthly Service Charge | D23: Monthly | F23: ='[19]B. CurrentTariff'!C32 -> 13.97 | G23: 1 | H23: =G23*F23 -> 13.97 | J23: ='[19]G. RateDesign'!B46 -> 17.91 | K23: 1 | L23: =K23*J23 -> 17.91 | N23: =L23-H23 -> 3.94 | O23: =IF((H23)=0,"",(N23/H23)) -> 0.2820329277
B24: Smart Meter Rate Adder | G24: 1 | H24: =G24*F24 -> 0 | K24: 1 | L24: =K24*J24 -> 0 | N24: =L24-H24 -> 0 | O24: =IF((H24)=0,"",(N24/H24)) -> 
B25: Stranded Meter Rate Rider | D25: Monthly | G25: 1 | H25: 0 | J25: ='[19]I. SMRR'!G13 -> 0.1361316 | K25: 1 | L25: =K25*J25 -> 0.1361316 | N25: =L25-H25 -> 0.1361316 | O25: =IF((H25)=0,"",(N25/H25)) -> 
B26: Smart Meter Disposition Rider | G26: 1 | H26: 0 | J26: ='[21]10A. Cost_Alloc_SMDR'!$AB$61 -> 1.42 | K26: 1 | L26: 1.42 | N26: 1.42
G27: 1 | H27: 0 | K27: 1 | L27: 0 | N27: 0
G28: 1 | H28: 0 | K28: 1 | L28: 0 | N28: 0
B29: Distribution Volumetric Rate | D29: per kWh | F29: ='[19]B. CurrentTariff'!C33 -> 0.0145 | G29: =$F$18 -> 750 | H29: 10.875 | J29: ='[19]G. RateDesign'!G46 -> 0.01397668922 | K29: =$F$18 -> 750 | L29: 10.48251692 | N29: -0.3924830845 | O29: -0.03609039858
B30: Smart Meter Disposition Rider | D30: per kWh | G30: 750 | H30: 0 | K30: =$F$18 -> 750 | L30: 0 | N30: 0
B31: LRAM & SSM Rate Rider | D31: per kWh | G31: 750 | H31: 0 | K31: 750 | L31: 0 | N31: 0
B32: ='[19]J. DVA'!$B$147 -> Rate Rider Calculation for Accounts 1575 and 1576 | D32: per kWh | G32: =$F$18 -> 750 | H32: =G32*F32 -> 0 | J32: ='[19]J. DVA'!F153 -> -0.002549576061 | K32: =$F$18 -> 750 | L32: =K32*J32 -> -1.912182046 | N32: =L32-H32 -> -1.912182046 | O32: =IF((H32)=0,"",(N32/H32)) -> 
G33: 750 | H33: =G33*F33 -> 0 | K33: 750 | L33: =K33*J33 -> 0 | N33: =L33-H33 -> 0 | O33: =IF((H33)=0,"",(N33/H33)) -> 
G34: 750 | H34: =G34*F34 -> 0 | K34: 750 | L34: =K34*J34 -> 0 | N34: =L34-H34 -> 0 | O34: =IF((H34)=0,"",(N34/H34)) -> 
G35: 750 | H35: 0 | K35: 750 | L35: 0 | N35: 0
G36: 750 | H36: 0 | K36: 750 | L36: 0 | N36: 0
G37: 750 | H37: 0 | K37: 750 | L37: 0 | N37: 0
G38: 750 | H38: 0 | K38: 750 | L38: 0 | N38: 0
B39: Sub-Total A (excluding pass through) | H39: =SUM(H23:H38) -> 24.845 | L39: =SUM(L23:L38) -> 28.03646647 | N39: 3.19146647 | O39: 0.1284550803
B40: ='[19]J. DVA'!$B$16 -> Rate Rider Calculation for Deferral / Variance Accounts Balances (excluding Global Adj.) | D40: per kWh | G40: 750 | H40: =G40*F40 -> 0 | J40: ='[19]J. DVA'!F20 -> 0.0003403795305 | K40: 750 | L40: =K40*J40 -> 0.2552846479 | N40: 0.2552846479
B41: ='[19]J. DVA'!$B$42 -> Rate Rider Calculation for Deferral / Variance Accounts Balances (excluding Global Adj.) - NON-WMP | D41: per kWh | G41: 750 | H41: 0 | J41: ='[19]J. DVA'!F46 -> -0.0001611198572 | K41: 750 | L41: -0.1208398929 | N41: -0.1208398929
B42: ='[19]J. DVA'!$B$68 -> Rate Rider Calculation for RSVA - Power - Global Adjustment | D42: per kWh | G42: 750 | K42: 750 | L42: 0 | N42: 0
B43: ='[19]J. DVA'!$B$121 -> Rate Rider Calculation for Group 2 Accounts | D43: Monthly | G43: 750 | J43: ='[19]J. DVA'!F125 -> 0.1017256732 | K43: 1 | L43: 0.1017256732 | N43: 0.1017256732
B45: ='[19]J. DVA'!$B$175 -> Rate Rider Calculation for Accounts 1568 | D45: per kWh | G45: 750 | H45: 0 | J45: ='[19]J. DVA'!F181 -> 0.0001857443386 | K45: 750 | L45: 0.139308254 | N45: 0.139308254
B46: Low Voltage Charges | D46: per kWh | F46: 0.0011 | G46: 750 | H46: 0.825 | J46: ='[4]4.12 PowerSupplExp'!$J$185 -> 0.0011 | K46: 750 | L46: 0.825 | N46: 0 | O46: =IF((H46)=0,"",(N46/H46)) -> 0
B47: Line Losses on Cost of Power | D47: per kWh | F47: =IF(ISBLANK(D16)=1, 0, IF(D16="TOU", 0.64*$F$57+0.18*$F$58+0.18*$F$59, IF(AND(D16="non-TOU", G61>0), F61,F60))) -> 0.10766 | G47: =$F$18*(1+$F$76)-$F$18 -> 60.75 | H47: 6.540345 | J47: =0.64*$F$57+0.18*$F$58+0.18*$F$59 -> 0.10766 | K47: =$F$18*(1+$J$76)-$F$18 -> 60.75 | L47: 6.540345 | N47: 0 | O47: 0
B48: Smart Meter Entity Charge | D48: per kWh | F48: 0.79 | G48: 1 | H48: 0.79 | J48: 0.79 | K48: 1 | L48: 0.79 | N48: 0
B49: Sub-Total B - Distribution (includes Sub-Total A) | H49: =SUM(H40:H48)+H39 -> 33.000345 | L49: =SUM(L40:L48)+L39 -> 36.56729015 | N49: 3.566945152 | O49: =IF((H49)=0,"",(N49/H49)) -> 0.108088117
B50: RTSR - Network | D50: per kWh | F50: ='[19]B. CurrentTariff'!C45 -> 0.0064 | G50: =F18*(1+F76) -> 810.75 | H50: =G50*F50 -> 5.1888 | J50: ='[4]4.12 PowerSupplExp'!$O$58 -> 0.00640525801 | K50: =F18*(1+J76) -> 810.75 | L50: =K50*J50 -> 5.193062932 | N50: 0.004262931736 | O50: 0.0008215640873
B51: RTSR - Line and Transformation Connection | D51: per kWh | F51: ='[19]B. CurrentTariff'!C46 -> 0.0033 | G51: =G50 -> 810.75 | H51: =G51*F51 -> 2.675475 | J51: ='[4]4.12 PowerSupplExp'!$O$74 -> 0.003468524144 | K51: =K50 -> 810.75 | L51: =K51*J51 -> 2.81210595 | N51: 0.1366309497 | O51: 0.0510679224
B52: Sub-Total C - Delivery (including Sub-Total B) | H52: =SUM(H49:H51) -> 40.86462 | L52: =SUM(L49:L51) -> 44.57245903 | N52: 3.707839034 | O52: 0.09073469993
B53: Wholesale Market Service Charge (WMSC) | D53: per kWh | F53: 0.0036 | G53: =G51 -> 810.75 | H53: =G53*F53 -> 2.9187 | J53: 0.0036 | K53: =K51 -> 810.75 | L53: =K53*J53 -> 2.9187 | N53: 0 | O53: 0
B54: Rural and Remote Rate Protection (RRRP) | D54: per kWh | F54: 0.0013 | G54: =G51 -> 810.75 | H54: 1.053975 | J54: 0.0013 | K54: =K51 -> 810.75 | L54: 1.053975 | N54: 0 | O54: 0
B55: Standard Supply Service Charge | D55: Monthly | F55: 0.25 | G55: 1 | H55: 0.25 | J55: 0.25 | K55: 1 | L55: 0.25 | N55: 0 | O55: 0
B56: OEAP | D56: per kWh | F56: 0.0011 | G56: =F18 -> 750 | H56: 0.825 | J56: 0.0011 | K56: =F18 -> 750 | L56: 0.825 | N56: 0 | O56: 0
B57: TOU - Off Peak | D57: per kWh | F57: 0.083 | G57: =0.64*$F$18 -> 480 | H57: 39.84 | J57: 0.083 | K57: =G57 -> 480 | L57: 39.84 | N57: 0 | O57: 0
B58: TOU - Mid Peak | D58: per kWh | F58: 0.128 | G58: =0.18*$F$18 -> 135 | H58: 17.28 | J58: 0.128 | K58: =G58 -> 135 | L58: 17.28 | N58: 0 | O58: 0
B59: TOU - On Peak | D59: per kWh | F59: 0.175 | G59: =0.18*$F$18 -> 135 | H59: 23.625 | J59: 0.175 | K59: =G59 -> 135 | L59: 23.625 | N59: 0 | O59: 0
B60: Energy - RPP - Tier 1 | D60: per kWh | F60: 0.099 | G60: =IF(AND($T$1=1, F18>=600), 600, IF(AND($T$1=1, AND(F18<600, F18>=0)), F18, IF(AND($T$1=2, F18>=1000), 1000, IF(AND($T$1=2, AND(F18<1000, F18>=0)), F18)))) -> 600 | H60: =G60*F60 -> 59.4 | J60: 0.099 | K60: =G60 -> 600 | L60: =K60*J60 -> 59.4 | N60: 0 | O60: 0
B61: Energy - RPP - Tier 2 | D61: per kWh | F61: 0.116 | G61: =IF(AND($T$1=1, F18>=600), F18-600, IF(AND($T$1=1, AND(F18<600, F18>=0)), 0, IF(AND($T$1=2, F18>=1000), F18-1000, IF(AND($T$1=2, AND(F18<1000, F18>=0)), 0)))) -> 150 | H61: =G61*F61 -> 17.4 | J61: 0.116 | K61: =G61 -> 150 | L61: =K61*J61 -> 17.4 | N61: 0 | O61: 0
B63: Total Bill on TOU (before Taxes) | H63: =SUM(H53:H59,H52) -> 126.657295 | L63: =SUM(L53:L59,L52) -> 130.365134 | N63: =L63-H63 -> 3.707839034 | O63: =IF((H63)=0,"",(N63/H63)) -> 0.02927457936
B64: HST | F64: 0.13 | H64: =H63*F64 -> 16.46544835 | J64: 0.13 | L64: =L63*J64 -> 16.94746742 | N64: 0.4820190744 | O64: 0.02927457936
B65: Total Bill (including HST) | H65: =H63+H64 -> 143.1227434 | L65: =L63+L64 -> 147.3126015 | N65: 4.189858108 | O65: 0.02927457936
B66: Ontario Clean Energy Benefit 1 | H66: =ROUND(-H65*0.1,2) -> -14.31 | L66: =ROUND(-L65*0.1,2) -> -14.73 | N66: -0.42 | O66: 0.02935010482
B67: Total Bill on TOU (including OCEB) | H67: =H65+H66 -> 128.8127434 | L67: =L65+L66 -> 132.5826015 | N67: 3.769858108 | O67: 0.02926618912
B69: Total Bill on RPP (before Taxes) | H69: =SUM(H60:H61,H52,H53:H56) -> 122.712295 | L69: =SUM(L60:L61,L52,L53:L56) -> 126.420134 | N69: =L69-H69 -> 3.707839034 | O69: =IF((H69)=0,"",(N69/H69)) -> 0.0302157093
B70: HST | F70: 0.13 | H70: =H69*F70 -> 15.95259835 | J70: 0.13 | L70: =L69*J70 -> 16.43461742 | N70: =L70-H70 -> 0.4820190744 | O70: =IF((H70)=0,"",(N70/H70)) -> 0.0302157093
B71: Total Bill (including HST) | H71: =H69+H70 -> 138.6648933 | L71: =L69+L70 -> 142.8547515 | N71: =L71-H71 -> 4.189858108 | O71: =IF((H71)=0,"",(N71/H71)) -> 0.0302157093
B72: Ontario Clean Energy Benefit 1 | H72: =ROUND(-H71*0.1,2) -> -13.87 | L72: =ROUND(-L71*0.1,2) -> -14.29 | N72: =L72-H72 -> -0.42 | O72: =IF((H72)=0,"",(N72/H72)) -> 0.03028118241
B73: Total Bill on RPP (including OCEB) | H73: =SUM(H71:H72) -> 124.7948933 | L73: =SUM(L71:L72) -> 128.5647515 | N73: =L73-H73 -> 3.769858108 | O73: =IF((H73)=0,"",(N73/H73)) -> 0.03020843247
B76: Loss Factor (%) | F76: 0.081 | J76: 0.081

Sheet Bill Impact - GS<50
T1: 1
B10: Appendix 2-W
B11: Bill Impacts
B14: Customer Class: | D14: General Service < 50KW
B16: TOU / non-TOU: | D16: TOU
D18: Consumption | F18: 2000 | G18: kWh
F20: Current Board-Approved | J20: Proposed | N20: Impact
D21: Charge Unit | F21: Rate | G21: Volume | H21: Charge | J21: Rate | K21: Volume | L21: Charge | N21: $ Change | O21: % Change
F22: ($) | H22: ($) | J22: ($) | L22: ($)
B23: Monthly Service Charge | D23: Monthly | F23: ='[19]B. CurrentTariff'!C53 -> 31.25 | G23: 1 | H23: =G23*F23 -> 31.25 | J23: ='[19]G. RateDesign'!B47 -> 31.25 | K23: 1 | L23: =K23*J23 -> 31.25 | N23: =L23-H23 -> 0 | O23: =IF((H23)=0,"",(N23/H23)) -> 0
B24: Smart Meter Rate Adder | G24: 1 | H24: =G24*F24 -> 0 | K24: 1 | L24: =K24*J24 -> 0 | N24: =L24-H24 -> 0 | O24: =IF((H24)=0,"",(N24/H24)) -> 
B25: Stranded Meter Rate Rider | D25: Monthly | G25: 1 | H25: 0 | J25: ='[19]I. SMRR'!G14 -> 0.2435662264 | K25: 1 | L25: =K25*J25 -> 0.2435662264 | N25: =L25-H25 -> 0.2435662264 | O25: =IF((H25)=0,"",(N25/H25)) -> 
B26: Smart Meter Disposition Rider | D26: Monthly | G26: 1 | H26: 0 | J26: ='[21]10A. Cost_Alloc_SMDR'!$AD$61 -> 3.1 | K26: 1 | L26: 3.1 | N26: 3.1
G27: 1 | H27: 0 | K27: 1 | L27: 0 | N27: 0
G28: 1 | H28: 0 | K28: 1 | L28: 0 | N28: 0
B29: Distribution Volumetric Rate | D29: per kWh | F29: ='[19]B. CurrentTariff'!C54 -> 0.0137 | G29: =$F$18 -> 2000 | H29: 27.4 | J29: ='[19]G. RateDesign'!G47 -> 0.01804024095 | K29: =$F$18 -> 2000 | L29: 36.08048189 | N29: 8.68048189 | O29: 0.3168059084
B30: Smart Meter Disposition Rider | D30: per kWh | G30: 2000 | H30: 0 | K30: =$F$18 -> 2000 | L30: 0 | N30: 0
B31: LRAM & SSM Rate Rider | D31: per kWh | G31: 2000 | H31: 0 | K31: 2000 | L31: 0 | N31: 0
B32: ='[19]J. DVA'!$B$147 -> Rate Rider Calculation for Accounts 1575 and 1576 | D32: per kWh | G32: =$F$18 -> 2000 | H32: =G32*F32 -> 0 | J32: ='[19]J. DVA'!F154 -> -0.002549576061 | K32: =$F$18 -> 2000 | L32: =K32*J32 -> -5.099152122 | N32: =L32-H32 -> -5.099152122 | O32: =IF((H32)=0,"",(N32/H32)) -> 
G33: 2000 | H33: =G33*F33 -> 0 | K33: 2000 | L33: =K33*J33 -> 0 | N33: =L33-H33 -> 0 | O33: =IF((H33)=0,"",(N33/H33)) -> 
G34: 2000 | H34: =G34*F34 -> 0 | K34: 2000 | L34: =K34*J34 -> 0 | N34: =L34-H34 -> 0 | O34: =IF((H34)=0,"",(N34/H34)) -> 
G35: 2000 | H35: 0 | K35: 2000 | L35: 0 | N35: 0
G36: 2000 | H36: 0 | K36: 2000 | L36: 0 | N36: 0
G37: 2000 | H37: 0 | K37: 2000 | L37: 0 | N37: 0
G38: 2000 | H38: 0 | K38: 2000 | L38: 0 | N38: 0
B39: Sub-Total A (excluding pass through) | H39: =SUM(H23:H38) -> 58.65 | L39: =SUM(L23:L38) -> 65.574896 | N39: 6.924895995 | O39: 0.118071543
B40: ='[19]J. DVA'!$B$16 -> Rate Rider Calculation for Deferral / Variance Accounts Balances (excluding Global Adj.) | D40: per kWh | G40: 2000 | H40: =G40*F40 -> 0 | J40: ='[19]J. DVA'!F21 -> 0.0003403019952 | K40: 2000 | L40: =K40*J40 -> 0.6806039904 | N40: 0.6806039904 | O40: =IF((H40)=0,"",(N40/H40)) -> 
B41: ='[19]J. DVA'!$B$42 -> Rate Rider Calculation for Deferral / Variance Accounts Balances (excluding Global Adj.) - NON-WMP | D41: per kWh | G41: 2000 | H41: 0 | J41: ='[19]J. DVA'!F47 -> -0.0001611198572 | K41: 2000 | L41: -0.3222397143 | N41: -0.3222397143 | O41: =IF((H41)=0,"",(N41/H41)) -> 
B42: ='[19]J. DVA'!$B$68 -> Rate Rider Calculation for RSVA - Power - Global Adjustment | G42: 2000 | J42: 0 | K42: 2000 | L42: 0 | N42: 0
B43: ='[19]J. DVA'!$B$121 -> Rate Rider Calculation for Group 2 Accounts | G43: 2000 | J43: ='[19]J. DVA'!F126 -> 0.0001618234193 | K43: 2000 | L43: 0.3236468386 | N43: 0.3236468386
B45: ='[19]J. DVA'!$B$175 -> Rate Rider Calculation for Accounts 1568 | D45: per kWh | G45: 2000 | H45: 0 | J45: ='[19]J. DVA'!F182 -> 0.0001857443386 | K45: 2000 | L45: 0.3714886772 | N45: 0.3714886772 | O45: =IF((H45)=0,"",(N45/H45)) -> 
B46: Low Voltage Charges | D46: per kWh | F46: ='[19]B. CurrentTariff'!C56 -> 0.001 | G46: 2000 | H46: 2 | J46: ='[4]4.12 PowerSupplExp'!$J$186 -> 0.001 | K46: 2000 | L46: 2 | N46: 0 | O46: =IF((H46)=0,"",(N46/H46)) -> 0
B47: Line Losses on Cost of Power | D47: per kWh | F47: =IF(ISBLANK(D16)=1, 0, IF(D16="TOU", 0.64*$F$57+0.18*$F$58+0.18*$F$59, IF(AND(D16="non-TOU", G61>0), F61,F60))) -> 0.10766 | G47: =$F$18*(1+$F$76)-$F$18 -> 162 | H47: 17.44092 | J47: =0.64*$F$57+0.18*$F$58+0.18*$F$59 -> 0.10766 | K47: =$F$18*(1+$J$76)-$F$18 -> 162 | L47: =K47*J47 -> 17.44092 | N47: 0 | O47: 0
B48: Smart Meter Entity Charge | D48: per kWh | F48: 0.79 | G48: 1 | H48: 0.79 | J48: 0.79 | K48: 1 | L48: =K48*J48 -> 0.79 | N48: 0
B49: Sub-Total B - Distribution (includes Sub-Total A) | H49: =SUM(H40:H48)+H39 -> 78.88092 | L49: =SUM(L40:L48)+L39 -> 86.85931579 | N49: 7.978395787 | O49: =IF((H49)=0,"",(N49/H49)) -> 0.1011448115
B50: RTSR - Network | D50: per kWh | F50: 0.0058 | G50: =F18*(1+F76) -> 2162 | H50: =G50*F50 -> 12.5396 | J50: ='[4]4.12 PowerSupplExp'!$O$59 -> 0.005804764861 | K50: =F18*(1+J76) -> 2162 | L50: =K50*J50 -> 12.54990163 | N50: 0.01030163037 | O50: 0.0008215278291
B51: RTSR - Line and Transformation Connection | D51: per kWh | F51: 0.004 | G51: =G50 -> 2162 | H51: =G51*F51 -> 8.648 | J51: ='[4]4.12 PowerSupplExp'!$O$75 -> 0.00325831043 | K51: =K50 -> 2162 | L51: =K51*J51 -> 7.04446715 | N51: -1.60353285 | O51: -0.1854223924
B52: Sub-Total C - Delivery (including Sub-Total B) | H52: =SUM(H49:H51) -> 100.06852 | L52: =SUM(L49:L51) -> 106.4536846 | N52: 6.385164568 | O52: 0.06380792449
B53: Wholesale Market Service Charge (WMSC) | D53: per kWh | F53: 0.0036 | G53: =G51 -> 2162 | H53: =G53*F53 -> 7.7832 | J53: 0.0036 | K53: =K51 -> 2162 | L53: =K53*J53 -> 7.7832 | N53: 0 | O53: 0
B54: Rural and Remote Rate Protection (RRRP) | D54: per kWh | F54: 0.0013 | G54: =G51 -> 2162 | H54: 2.8106 | J54: 0.0013 | K54: =K51 -> 2162 | L54: 2.8106 | N54: 0 | O54: 0
B55: Standard Supply Service Charge | D55: Monthly | F55: 0.25 | G55: 1 | H55: 0.25 | J55: 0.25 | K55: 1 | L55: 0.25 | N55: 0 | O55: 0
B56: OEAP | D56: per kWh | F56: 0.0011 | G56: =F18 -> 2000 | H56: 2.2 | J56: 0.0011 | K56: =F18 -> 2000 | L56: 2.2 | N56: 0 | O56: 0
B57: TOU - Off Peak | D57: per kWh | F57: 0.083 | G57: =0.64*$F$18 -> 1280 | H57: 106.24 | J57: 0.083 | K57: =G57 -> 1280 | L57: 106.24 | N57: 0 | O57: 0
B58: TOU - Mid Peak | D58: per kWh | F58: 0.128 | G58: =0.18*$F$18 -> 360 | H58: 46.08 | J58: 0.128 | K58: =G58 -> 360 | L58: 46.08 | N58: 0 | O58: 0
B59: TOU - On Peak | D59: per kWh | F59: 0.175 | G59: =0.18*$F$18 -> 360 | H59: 63 | J59: 0.175 | K59: =G59 -> 360 | L59: 63 | N59: 0 | O59: 0
B60: Energy - RPP - Tier 1 | D60: per kWh | F60: 0.099 | G60: =IF(AND($T$1=1, F18>=600), 600, IF(AND($T$1=1, AND(F18<600, F18>=0)), F18, IF(AND($T$1=2, F18>=1000), 1000, IF(AND($T$1=2, AND(F18<1000, F18>=0)), F18)))) -> 600 | H60: =G60*F60 -> 59.4 | J60: 0.099 | K60: =G60 -> 600 | L60: =K60*J60 -> 59.4 | N60: 0 | O60: 0
B61: Energy - RPP - Tier 2 | D61: per kWh | F61: 0.116 | G61: =IF(AND($T$1=1, F18>=600), F18-600, IF(AND($T$1=1, AND(F18<600, F18>=0)), 0, IF(AND($T$1=2, F18>=1000), F18-1000, IF(AND($T$1=2, AND(F18<1000, F18>=0)), 0)))) -> 1400 | H61: =G61*F61 -> 162.4 | J61: 0.116 | K61: =G61 -> 1400 | L61: =K61*J61 -> 162.4 | N61: 0 | O61: 0
B63: Total Bill on TOU (before Taxes) | H63: =SUM(H53:H59,H52) -> 328.43232 | L63: =SUM(L53:L59,L52) -> 334.8174846 | N63: =L63-H63 -> 6.385164568 | O63: =IF((H63)=0,"",(N63/H63)) -> 0.01944134051
B64: HST | F64: 0.13 | H64: =H63*F64 -> 42.6962016 | J64: 0.13 | L64: =L63*J64 -> 43.52627299 | N64: 0.8300713938 | O64: 0.01944134051
B65: Total Bill (including HST) | H65: =H63+H64 -> 371.1285216 | L65: =L63+L64 -> 378.3437576 | N65: 7.215235962 | O65: 0.01944134051
B66: Ontario Clean Energy Benefit 1 | H66: =ROUND(-H65*0.1,2) -> -37.11 | L66: =ROUND(-L65*0.1,2) -> -37.83 | N66: -0.72 | O66: 0.0194017785
B67: Total Bill on TOU (including OCEB) | H67: =H65+H66 -> 334.0185216 | L67: =L65+L66 -> 340.5137576 | N67: 6.495235962 | O67: 0.01944573591
B69: Total Bill on RPP (before Taxes) | H69: =SUM(H60:H61,H52,H53:H56) -> 334.91232 | L69: =SUM(L60:L61,L52,L53:L56) -> 341.2974846 | N69: =L69-H69 -> 6.385164568 | O69: =IF((H69)=0,"",(N69/H69)) -> 0.0190651827
B70: HST | F70: 0.13 | H70: =H69*F70 -> 43.5386016 | J70: 0.13 | L70: =L69*J70 -> 44.36867299 | N70: =L70-H70 -> 0.8300713938 | O70: =IF((H70)=0,"",(N70/H70)) -> 0.0190651827
B71: Total Bill (including HST) | H71: =H69+H70 -> 378.4509216 | L71: =L69+L70 -> 385.6661576 | N71: =L71-H71 -> 7.215235962 | O71: =IF((H71)=0,"",(N71/H71)) -> 0.0190651827
B72: Ontario Clean Energy Benefit 1 | H72: =ROUND(-H71*0.1,2) -> -37.85 | L72: =ROUND(-L71*0.1,2) -> -38.57 | N72: =L72-H72 -> -0.72 | O72: =IF((H72)=0,"",(N72/H72)) -> 0.01902245707
B73: Total Bill on RPP (including OCEB) | H73: =SUM(H71:H72) -> 340.6009216 | L73: =SUM(L71:L72) -> 347.0961576 | N73: =L73-H73 -> 6.495235962 | O73: =IF((H73)=0,"",(N73/H73)) -> 0.01906993067
B76: Loss Factor (%) | F76: 0.081 | J76: 0.081

Sheet Bill Impact - GS>50
T1: 1
B10: Appendix 2-W
B11: Bill Impacts
B14: Customer Class: | D14: General Service > 50KW
B16: TOU / non-TOU: | D16: TOU
D18: Consumption | F18: 100 | G18: kWh
F20: Current Board-Approved | J20: Proposed | N20: Impact
D21: Charge Unit | F21: Rate | G21: Volume | H21: Charge | J21: Rate | K21: Volume | L21: Charge | N21: $ Change | O21: % Change
F22: ($) | H22: ($) | J22: ($) | L22: ($)
B23: Monthly Service Charge | D23: Monthly | F23: ='[19]B. CurrentTariff'!C74 -> 189.27 | G23: 1 | H23: =G23*F23 -> 189.27 | J23: ='[19]G. RateDesign'!B48 -> 189.27 | K23: 1 | L23: =K23*J23 -> 189.27 | N23: =L23-H23 -> 0 | O23: =IF((H23)=0,"",(N23/H23)) -> 0
B24: Smart Meter Rate Adder | G24: 1 | H24: =G24*F24 -> 0 | K24: 1 | L24: =K24*J24 -> 0 | N24: =L24-H24 -> 0 | O24: =IF((H24)=0,"",(N24/H24)) -> 
B25: Stranded Meter Rate Rider | D25: Monthly | G25: 1 | H25: 0 | J25: ='[19]I. SMRR'!G15 -> 4.822114333 | K25: 1 | L25: =K25*J25 -> 4.822114333 | N25: =L25-H25 -> 4.822114333 | O25: =IF((H25)=0,"",(N25/H25)) -> 
B26: Smart Meter Disposition Rider | G26: 1 | H26: 0 | J26: ='[21]10A. Cost_Alloc_SMDR'!$AF$61 -> 11.6 | K26: 1 | L26: 11.6 | N26: 11.6
G27: 1 | H27: 0 | K27: 1 | L27: 0 | N27: 0
G28: 1 | H28: 0 | K28: 1 | L28: 0 | N28: 0
B29: Distribution Volumetric Rate | D29: per kW | F29: ='[19]B. CurrentTariff'!C75 -> 2.5331 | G29: =$F$18 -> 100 | H29: 253.31 | J29: ='[19]G. RateDesign'!G48 -> 3.192110116 | K29: =$F$18 -> 100 | L29: 319.2110116 | N29: 65.90101161 | O29: 0.2601595342
B30: Smart Meter Disposition Rider | D30: per kW | G30: 100 | H30: 0 | K30: =$F$18 -> 100 | L30: 0 | N30: 0
B31: LRAM & SSM Rate Rider | D31: per kW | G31: 100 | H31: 0 | K31: 100 | L31: 0 | N31: 0
B32: ='[19]J. DVA'!$B$147 -> Rate Rider Calculation for Accounts 1575 and 1576 | D32: per kW | G32: =$F$18 -> 100 | H32: =G32*F32 -> 0 | J32: ='[19]J. DVA'!F155 -> -0.9382691059 | K32: =$F$18 -> 100 | L32: =K32*J32 -> -93.82691059 | N32: =L32-H32 -> -93.82691059 | O32: =IF((H32)=0,"",(N32/H32)) -> 
G33: 100 | H33: =G33*F33 -> 0 | K33: 100 | L33: =K33*J33 -> 0 | N33: =L33-H33 -> 0 | O33: =IF((H33)=0,"",(N33/H33)) -> 
G34: 100 | H34: =G34*F34 -> 0 | K34: 100 | L34: =K34*J34 -> 0 | N34: =L34-H34 -> 0 | O34: =IF((H34)=0,"",(N34/H34)) -> 
G35: 100 | H35: 0 | K35: 100 | L35: 0 | N35: 0
G36: 100 | H36: 0 | K36: 100 | L36: 0 | N36: 0
G37: 100 | H37: 0 | K37: 100 | L37: 0 | N37: 0
G38: 100 | H38: 0 | K38: 100 | L38: 0 | N38: 0
B39: Sub-Total A (excluding pass through) | H39: =SUM(H23:H38) -> 442.58 | L39: =SUM(L23:L38) -> 431.0762153 | N39: -11.50378465 | O39: -0.02599255424
B40: ='[19]J. DVA'!$B$16 -> Rate Rider Calculation for Deferral / Variance Accounts Balances (excluding Global Adj.) | D40: per kW | G40: 100 | H40: =G40*F40 -> 0 | J40: ='[19]J. DVA'!F22 -> 0.129486429 | K40: 100 | L40: =K40*J40 -> 12.9486429 | N40: 12.9486429
B41: ='[19]J. DVA'!$B$42 -> Rate Rider Calculation for Deferral / Variance Accounts Balances (excluding Global Adj.) - NON-WMP | D41: per kW | G41: 100 | H41: 0 | J41: ='[19]J. DVA'!F48 -> -0.05929369461 | K41: 100 | L41: -5.929369461 | N41: -5.929369461
B42: ='[19]J. DVA'!$B$68 -> Rate Rider Calculation for RSVA - Power - Global Adjustment | D42: per kWh | G42: 100 | J42: ='[19]J. DVA'!F74 -> 0.3461697728 | K42: 100 | L42: 34.61697728 | N42: 34.61697728
B43: ='[19]J. DVA'!$B$121 -> Rate Rider Calculation for Group 2 Accounts | D43: per kWh | G43: 100 | J43: ='[19]J. DVA'!F127 -> 0.0595526124 | K43: 100 | L43: 5.95526124 | N43: 5.95526124
B44: ='[19]J. DVA'!$B$175 -> Rate Rider Calculation for Accounts 1568 | D44: per kW | G44: 100 | H44: 0 | J44: ='[19]J. DVA'!F183 -> 0.06835574636 | K44: 100 | L44: 6.835574636 | N44: 6.835574636
B45: Low Voltage Charges | D45: per kW | F45: 0.3954 | G45: 100 | H45: 39.54 | J45: ='[4]4.12 PowerSupplExp'!$J$187 -> 0.3733 | K45: 100 | L45: 37.33 | N45: -2.21 | O45: -0.05589276682
B46: Line Losses on Cost of Power | D46: per kW | F46: =IF(ISBLANK(D16)=1, 0, IF(D16="TOU", 0.64*$F$56+0.18*$F$57+0.18*$F$58, IF(AND(D16="non-TOU", G60>0), F60,F59))) -> 0.10766 | G46: =$F$18*(1+$F$75)-$F$18 -> 8.1 | H46: 0.872046 | J46: =0.64*$F$56+0.18*$F$57+0.18*$F$58 -> 0.10766 | K46: =$F$18*(1+$J$75)-$F$18 -> 8.1 | L46: 0.872046 | N46: 0 | O46: 0
B47: Smart Meter Entity Charge | D47: per kW | F47: 0.79 | G47: 1 | H47: 0.79 | J47: 0.79 | K47: 1 | L47: 0.79 | N47: 0
B48: Sub-Total B - Distribution (includes Sub-Total A) | H48: =SUM(H40:H47)+H39 -> 483.782046 | L48: =SUM(L40:L47)+L39 -> 524.4953479 | N48: 40.71330195 | O48: =IF((H48)=0,"",(N48/H48)) -> 0.08415628956
B49: RTSR - Network | D49: per kW | F49: 2.3683 | G49: =F18*(1+F75) -> 108.1 | H49: =G49*F49 -> 256.01323 | J49: ='[4]4.12 PowerSupplExp'!$O$60 -> 2.368744446 | K49: =F18*(1+J75) -> 108.1 | L49: =K49*J49 -> 256.0612746 | N49: 0.04804460367 | O49: 0.0001876645346
B50: RTSR - Line and Transformation Connection | D50: per kW | F50: 1.5959 | G50: =G49 -> 108.1 | H50: =G50*F50 -> 172.51679 | J50: ='[4]4.12 PowerSupplExp'!$O$76 -> 1.215665252 | K50: =K49 -> 108.1 | L50: =K50*J50 -> 131.4134138 | N50: -41.10337625 | O50: -0.2382572516
B51: Sub-Total C - Delivery (including Sub-Total B) | H51: =SUM(H48:H50) -> 912.312066 | L51: =SUM(L48:L50) -> 911.9700363 | N51: -0.3420296969 | O51: -0.0003749042786
B52: Wholesale Market Service Charge (WMSC) | D52: per kWh | F52: 0.0036 | G52: =G50 -> 108.1 | H52: =G52*F52 -> 0.38916 | J52: 0.0036 | K52: =K50 -> 108.1 | L52: =K52*J52 -> 0.38916 | N52: 0 | O52: 0
B53: Rural and Remote Rate Protection (RRRP) | D53: per kWh | F53: 0.0013 | G53: =G50 -> 108.1 | H53: 0.14053 | J53: 0.0013 | K53: =K50 -> 108.1 | L53: 0.14053 | N53: 0 | O53: 0
B54: Standard Supply Service Charge | D54: Monthly | F54: 0.25 | G54: 1 | H54: 0.25 | J54: 0.25 | K54: 1 | L54: 0.25 | N54: 0 | O54: 0
B55: OEAP | D55: per kWh | F55: 0.0011 | G55: =F18 -> 100 | H55: 0.11 | J55: 0.0011 | K55: =F18 -> 100 | L55: 0.11 | N55: 0 | O55: 0
B56: TOU - Off Peak | D56: per kWh | F56: 0.083 | G56: =0.64*$F$18 -> 64 | H56: 5.312 | J56: 0.083 | K56: =G56 -> 64 | L56: 5.312 | N56: 0 | O56: 0
B57: TOU - Mid Peak | D57: per kWh | F57: 0.128 | G57: =0.18*$F$18 -> 18 | H57: 2.304 | J57: 0.128 | K57: =G57 -> 18 | L57: 2.304 | N57: 0 | O57: 0
B58: TOU - On Peak | D58: per kWh | F58: 0.175 | G58: =0.18*$F$18 -> 18 | H58: 3.15 | J58: 0.175 | K58: =G58 -> 18 | L58: 3.15 | N58: 0 | O58: 0
B59: Energy - RPP - Tier 1 | D59: per kWh | F59: 0.099 | G59: =IF(AND($T$1=1, F18>=600), 600, IF(AND($T$1=1, AND(F18<600, F18>=0)), F18, IF(AND($T$1=2, F18>=1000), 1000, IF(AND($T$1=2, AND(F18<1000, F18>=0)), F18)))) -> 100 | H59: =G59*F59 -> 9.9 | J59: 0.099 | K59: =G59 -> 100 | L59: =K59*J59 -> 9.9 | N59: 0 | O59: 0
B60: Energy - RPP - Tier 2 | D60: per kWh | F60: 0.116 | G60: =IF(AND($T$1=1, F18>=600), F18-600, IF(AND($T$1=1, AND(F18<600, F18>=0)), 0, IF(AND($T$1=2, F18>=1000), F18-1000, IF(AND($T$1=2, AND(F18<1000, F18>=0)), 0)))) -> 0 | H60: =G60*F60 -> 0 | J60: 0.116 | K60: =G60 -> 0 | L60: =K60*J60 -> 0 | N60: 0
B62: Total Bill on TOU (before Taxes) | H62: =SUM(H52:H58,H51) -> 923.967756 | L62: =SUM(L52:L58,L51) -> 923.6257263 | N62: =L62-H62 -> -0.3420296969 | O62: =IF((H62)=0,"",(N62/H62)) -> -0.0003701749273
B63: HST | F63: 0.13 | H63: =H62*F63 -> 120.1158083 | J63: 0.13 | L63: =L62*J63 -> 120.0713444 | N63: -0.0444638606 | O63: -0.0003701749273
B64: Total Bill (including HST) | H64: =H62+H63 -> 1044.083564 | L64: =L62+L63 -> 1043.697071 | N64: -0.3864935575 | O64: -0.0003701749273
B65: Ontario Clean Energy Benefit 1 | H65: =ROUND(-H64*0.1,2) -> -104.41 | L65: =ROUND(-L64*0.1,2) -> -104.37 | N65: 0.04 | O65: -0.0003831050666
B66: Total Bill on TOU (including OCEB) | H66: =H64+H65 -> 939.6735643 | L66: =L64+L65 -> 939.3270707 | N66: -0.3464935575 | O66: -0.0003687382201
B68: Total Bill on RPP (before Taxes) | H68: =SUM(H59:H60,H51,H52:H55) -> 923.101756 | L68: =SUM(L59:L60,L51,L52:L55) -> 922.7597263 | N68: =L68-H68 -> -0.3420296969 | O68: =IF((H68)=0,"",(N68/H68)) -> -0.0003705222038
B69: HST | F69: 0.13 | H69: =H68*F69 -> 120.0032283 | J69: 0.13 | L69: =L68*J69 -> 119.9587644 | N69: =L69-H69 -> -0.0444638606 | O69: =IF((H69)=0,"",(N69/H69)) -> -0.0003705222038
B70: Total Bill (including HST) | H70: =H68+H69 -> 1043.104984 | L70: =L68+L69 -> 1042.718491 | N70: =L70-H70 -> -0.3864935575 | O70: =IF((H70)=0,"",(N70/H70)) -> -0.0003705222038
B71: Ontario Clean Energy Benefit 1 | H71: =ROUND(-H70*0.1,2) -> -104.31 | L71: =ROUND(-L70*0.1,2) -> -104.27 | N71: =L71-H71 -> 0.04 | O71: =IF((H71)=0,"",(N71/H71)) -> -0.0003834723421
B72: Total Bill on RPP (including OCEB) | H72: =SUM(H70:H71) -> 938.7949843 | L72: =SUM(L70:L71) -> 938.4484907 | N72: =L72-H72 -> -0.3464935575 | O72: =IF((H72)=0,"",(N72/H72)) -> -0.0003690833072
B75: Loss Factor (%) | F75: 0.081 | J75: 0.081

Sheet Bill Impact - StreetLight
T1: 1
B10: Appendix 2-W
B11: Bill Impacts
B14: Customer Class: | D14: StreetLight
B16: TOU / non-TOU: | D16: TOU
D18: Consumption | F18: 115 | G18: kW
F20: Current Board-Approved | J20: Proposed | N20: Impact
D21: Charge Unit | F21: Rate | G21: Volume | H21: Charge | J21: Rate | K21: Volume | L21: Charge | N21: $ Change | O21: % Change
F22: ($) | H22: ($) | J22: ($) | L22: ($)
B23: Monthly Service Charge | D23: Monthly | F23: ='[19]B. CurrentTariff'!C116 -> 2.95 | G23: 2300 | H23: =G23*F23 -> 6785 | J23: ='[19]G. RateDesign'!B50 -> 2.82 | K23: 2300 | L23: =K23*J23 -> 6486 | N23: =L23-H23 -> -299 | O23: =IF((H23)=0,"",(N23/H23)) -> -0.04406779661
B24: Smart Meter Rate Adder | G24: 1 | H24: =G24*F24 -> 0 | K24: 1 | L24: =K24*J24 -> 0 | N24: =L24-H24 -> 0 | O24: =IF((H24)=0,"",(N24/H24)) -> 
G25: 1 | H25: 0 | K25: 1 | L25: =K25*J25 -> 0 | N25: =L25-H25 -> 0 | O25: =IF((H25)=0,"",(N25/H25)) -> 
G26: 1 | H26: 0 | K26: 1 | L26: 0 | N26: 0
G27: 1 | H27: 0 | K27: 1 | L27: 0 | N27: 0
G28: 1 | H28: 0 | K28: 1 | L28: 0 | N28: 0
B29: Distribution Volumetric Rate | D29: per kW | F29: ='[19]B. CurrentTariff'!C117 -> 7.2483 | G29: =$F$18 -> 115 | H29: 833.5545 | J29: ='[19]G. RateDesign'!G50 -> 6.924761714 | K29: =$F$18 -> 115 | L29: 796.3475971 | N29: -37.20690285 | O29: -0.04463643691
B30: Smart Meter Disposition Rider | D30: per kW | G30: 115 | H30: 0 | K30: =$F$18 -> 115 | L30: 0 | N30: 0
B31: LRAM & SSM Rate Rider | D31: per kW | G31: 115 | H31: 0 | K31: 115 | L31: 0 | N31: 0
B32: Stranded Meter Rate Rider | G32: 115 | H32: =G32*F32 -> 0 | K32: 115 | L32: =K32*J32 -> 0 | N32: =L32-H32 -> 0 | O32: =IF((H32)=0,"",(N32/H32)) -> 
B33: ='[19]J. DVA'!$B$147 -> Rate Rider Calculation for Accounts 1575 and 1576 | D33: per kW | G33: =$F$18 -> 115 | H33: =G33*F33 -> 0 | J33: ='[19]J. DVA'!F157 -> -0.9175395907 | K33: =$F$18 -> 115 | L33: =K33*J33 -> -105.5170529 | N33: =L33-H33 -> -105.5170529 | O33: =IF((H33)=0,"",(N33/H33)) -> 
G34: 115 | H34: =G34*F34 -> 0 | K34: 115 | L34: =K34*J34 -> 0 | N34: =L34-H34 -> 0 | O34: =IF((H34)=0,"",(N34/H34)) -> 
G35: 115 | H35: 0 | K35: 115 | L35: 0 | N35: 0
G36: 115 | H36: 0 | K36: 115 | L36: 0 | N36: 0
G37: 115 | H37: 0 | K37: 115 | L37: 0 | N37: 0
G38: 115 | H38: 0 | K38: 115 | L38: 0 | N38: 0
B39: Sub-Total A (excluding pass through) | H39: =SUM(H23:H38) -> 7618.5545 | L39: =SUM(L23:L38) -> 7176.830544 | N39: -441.7239558 | O39: -0.05798002177
B40: ='[19]J. DVA'!$B$16 -> Rate Rider Calculation for Deferral / Variance Accounts Balances (excluding Global Adj.) | D40: per kW | G40: 115 | H40: =G40*F40 -> 0 | J40: ='[19]J. DVA'!F24 -> 0.126625639 | K40: 115 | L40: =K40*J40 -> 14.56194849 | N40: 14.56194849
B41: ='[19]J. DVA'!$B$42 -> Rate Rider Calculation for Deferral / Variance Accounts Balances (excluding Global Adj.) - NON-WMP | D41: per kW | G41: 115 | H41: 0 | J41: ='[19]J. DVA'!F50 -> -0.05798369778 | K41: 115 | L41: -6.668125245 | N41: -6.668125245
B42: ='[19]J. DVA'!$B$68 -> Rate Rider Calculation for RSVA - Power - Global Adjustment | D42: per kW | G42: 115 | J42: ='[19]J. DVA'!F76 -> 0.3385217201 | K42: 115 | L42: 38.92999781 | N42: 38.92999781
B43: ='[19]J. DVA'!$B$121 -> Rate Rider Calculation for Group 2 Accounts | D43: per kW | G43: 115 | J43: ='[19]J. DVA'!F129 -> 0.05823689521 | K43: 115 | L43: 6.69724295 | N43: 6.69724295
B44: ='[19]J. DVA'!$B$175 -> Rate Rider Calculation for Accounts 1568 | D44: per kW | G44: 115 | H44: 0 | J44: ='[19]J. DVA'!F185 -> 0.06684553838 | K44: 115 | L44: 7.687236914 | N44: 7.687236914
B45: Low Voltage Charges | D45: per kW | F45: 0.3057 | G45: 115 | H45: 35.1555 | J45: ='[4]4.12 PowerSupplExp'!$J$189 -> 0.2885 | K45: 115 | L45: 33.1775 | N45: -1.978 | O45: -0.05626431142
B46: Line Losses on Cost of Power | D46: per kW | F46: =IF(ISBLANK(D16)=1, 0, IF(D16="TOU", 0.64*$F$56+0.18*$F$57+0.18*$F$58, IF(AND(D16="non-TOU", G60>0), F60,F59))) -> 0.10766 | G46: =$F$18*(1+$F$75)-$F$18 -> 9.315 | H46: 1.0028529 | J46: =0.64*$F$56+0.18*$F$57+0.18*$F$58 -> 0.10766 | K46: =$F$18*(1+$J$75)-$F$18 -> 9.315 | L46: 1.0028529 | N46: 0 | O46: 0
B47: Smart Meter Entity Charge | D47: per kW | F47: 0.79 | G47: 1 | H47: 0.79 | J47: 0.79 | K47: 1 | L47: 0.79 | N47: 0
B48: Sub-Total B - Distribution (includes Sub-Total A) | H48: =SUM(H40:H47)+H39 -> 7655.502853 | L48: =SUM(L40:L47)+L39 -> 7273.009198 | N48: -382.4936549 | O48: =IF((H48)=0,"",(N48/H48)) -> -0.04996323066
B49: RTSR - Network | D49: per kW | F49: 1.786 | G49: =F18*(1+F75) -> 124.315 | H49: =G49*F49 -> 222.02659 | J49: ='[4]4.12 PowerSupplExp'!$O$62 -> 1.786368025 | K49: =F18*(1+J75) -> 124.315 | L49: =K49*J49 -> 222.072341 | N49: 0.0457510136 | O49: 0.0002060609659
B50: RTSR - Line and Transformation Connection | D50: per kW | F50: 1.2338 | G50: =G49 -> 124.315 | H50: =G50*F50 -> 153.379847 | J50: ='[4]4.12 PowerSupplExp'!$O$78 -> 0.9397608098 | K50: =K49 -> 124.315 | L50: =K50*J50 -> 116.8263651 | N50: -36.55348193 | O50: -0.2383199791
B51: Sub-Total C - Delivery (including Sub-Total B) | H51: =SUM(H48:H50) -> 8030.90929 | L51: =SUM(L48:L50) -> 7611.907904 | N51: -419.0013858 | O51: -0.05217359214
B52: Wholesale Market Service Charge (WMSC) | D52: per kWh | F52: 0.0036 | G52: =G50 -> 124.315 | H52: =G52*F52 -> 0.447534 | J52: 0.0036 | K52: =K50 -> 124.315 | L52: =K52*J52 -> 0.447534 | N52: 0 | O52: 0
B53: Rural and Remote Rate Protection (RRRP) | D53: per kWh | F53: 0.0013 | G53: =G50 -> 124.315 | H53: 0.1616095 | J53: 0.0013 | K53: =K50 -> 124.315 | L53: 0.1616095 | N53: 0 | O53: 0
B54: Standard Supply Service Charge | D54: Monthly | F54: 0.25 | G54: 1 | H54: 0.25 | J54: 0.25 | K54: 1 | L54: 0.25 | N54: 0 | O54: 0
B55: OEAP | D55: per kWh | F55: 0.0011 | G55: =F18 -> 115 | H55: 0.1265 | J55: 0.0011 | K55: =F18 -> 115 | L55: 0.1265 | N55: 0 | O55: 0
B56: TOU - Off Peak | D56: per kWh | F56: 0.083 | G56: =0.64*$F$18 -> 73.6 | H56: 6.1088 | J56: 0.083 | K56: =G56 -> 73.6 | L56: 6.1088 | N56: 0 | O56: 0
B57: TOU - Mid Peak | D57: per kWh | F57: 0.128 | G57: =0.18*$F$18 -> 20.7 | H57: 2.6496 | J57: 0.128 | K57: =G57 -> 20.7 | L57: 2.6496 | N57: 0 | O57: 0
B58: TOU - On Peak | D58: per kWh | F58: 0.175 | G58: =0.18*$F$18 -> 20.7 | H58: 3.6225 | J58: 0.175 | K58: =G58 -> 20.7 | L58: 3.6225 | N58: 0 | O58: 0
B59: Energy - RPP - Tier 1 | D59: per kWh | F59: 0.099 | G59: =IF(AND($T$1=1, F18>=600), 600, IF(AND($T$1=1, AND(F18<600, F18>=0)), F18, IF(AND($T$1=2, F18>=1000), 1000, IF(AND($T$1=2, AND(F18<1000, F18>=0)), F18)))) -> 115 | H59: =G59*F59 -> 11.385 | J59: 0.099 | K59: =G59 -> 115 | L59: =K59*J59 -> 11.385 | N59: 0 | O59: 0
B60: Energy - RPP - Tier 2 | D60: per kWh | F60: 0.116 | G60: =IF(AND($T$1=1, F18>=600), F18-600, IF(AND($T$1=1, AND(F18<600, F18>=0)), 0, IF(AND($T$1=2, F18>=1000), F18-1000, IF(AND($T$1=2, AND(F18<1000, F18>=0)), 0)))) -> 0 | H60: =G60*F60 -> 0 | J60: 0.116 | K60: =G60 -> 0 | L60: =K60*J60 -> 0 | N60: 0
B62: Total Bill on TOU (before Taxes) | H62: =SUM(H52:H58,H51) -> 8044.275833 | L62: =SUM(L52:L58,L51) -> 7625.274448 | N62: =L62-H62 -> -419.0013858 | O62: =IF((H62)=0,"",(N62/H62)) -> -0.05208689936
B63: HST | F63: 0.13 | H63: =H62*F63 -> 1045.755858 | J63: 0.13 | L63: =L62*J63 -> 991.2856782 | N63: -54.47018015 | O63: -0.05208689936
B64: Total Bill (including HST) | H64: =H62+H63 -> 9090.031692 | L64: =L62+L63 -> 8616.560126 | N64: -473.4715659 | O64: -0.05208689936
B65: Ontario Clean Energy Benefit 1 | H65: =ROUND(-H64*0.1,2) -> -909 | L65: =ROUND(-L64*0.1,2) -> -861.66 | N65: 47.34 | O65: -0.05207920792
B66: Total Bill on TOU (including OCEB) | H66: =H64+H65 -> 8181.031692 | L66: =L64+L65 -> 7754.900126 | N66: -426.1315659 | O66: -0.05208775396
B68: Total Bill on RPP (before Taxes) | H68: =SUM(H59:H60,H51,H52:H55) -> 8043.279933 | L68: =SUM(L59:L60,L51,L52:L55) -> 7624.278548 | N68: =L68-H68 -> -419.0013858 | O68: =IF((H68)=0,"",(N68/H68)) -> -0.05209334864
B69: HST | F69: 0.13 | H69: =H68*F69 -> 1045.626391 | J69: 0.13 | L69: =L68*J69 -> 991.1562112 | N69: =L69-H69 -> -54.47018015 | O69: =IF((H69)=0,"",(N69/H69)) -> -0.05209334864
B70: Total Bill (including HST) | H70: =H68+H69 -> 9088.906325 | L70: =L68+L69 -> 8615.434759 | N70: =L70-H70 -> -473.4715659 | O70: =IF((H70)=0,"",(N70/H70)) -> -0.05209334864
B71: Ontario Clean Energy Benefit 1 | H71: =ROUND(-H70*0.1,2) -> -908.89 | L71: =ROUND(-L70*0.1,2) -> -861.54 | N71: =L71-H71 -> 47.35 | O71: =IF((H71)=0,"",(N71/H71)) -> -0.05209651333
B72: Total Bill on RPP (including OCEB) | H72: =SUM(H70:H71) -> 8180.016325 | L72: =SUM(L70:L71) -> 7753.894759 | N72: =L72-H72 -> -426.1215659 | O72: =IF((H72)=0,"",(N72/H72)) -> -0.05209299701
B75: Loss Factor (%) | F75: 0.081 | J75: 0.081

Sheet Bill Impact - USL
T1: 1
B10: Appendix 2-W
B11: Bill Impacts
B14: Customer Class: | D14: USL
B16: TOU / non-TOU: | D16: TOU
D18: Consumption | F18: 1800 | G18: kWh
F20: Current Board-Approved | J20: Proposed | N20: Impact
D21: Charge Unit | F21: Rate | G21: Volume | H21: Charge | J21: Rate | K21: Volume | L21: Charge | N21: $ Change | O21: % Change
F22: ($) | H22: ($) | J22: ($) | L22: ($)
B23: Monthly Service Charge | D23: Monthly | F23: ='[19]B. CurrentTariff'!C95 -> 43.63 | G23: 1 | H23: =G23*F23 -> 43.63 | J23: ='[19]G. RateDesign'!B49 -> 39.62 | K23: 1 | L23: =K23*J23 -> 39.62 | N23: =L23-H23 -> -4.01 | O23: =IF((H23)=0,"",(N23/H23)) -> -0.09190923676
B24: Smart Meter Rate Adder | G24: 1 | H24: =G24*F24 -> 0 | K24: 1 | L24: =K24*J24 -> 0 | N24: =L24-H24 -> 0 | O24: =IF((H24)=0,"",(N24/H24)) -> 
G25: 1 | H25: 0 | K25: 1 | L25: =K25*J25 -> 0 | N25: =L25-H25 -> 0 | O25: =IF((H25)=0,"",(N25/H25)) -> 
G26: 1 | H26: 0 | K26: 1 | L26: 0 | N26: 0
G27: 1 | H27: 0 | K27: 1 | L27: 0 | N27: 0
G28: 1 | H28: 0 | K28: 1 | L28: 0 | N28: 0
B29: Distribution Volumetric Rate | D29: per kWh | F29: ='[19]B. CurrentTariff'!C138 -> 0.002 | G29: =$F$18 -> 1800 | H29: 3.6 | J29: ='[19]G. RateDesign'!G49 -> 0.008869071931 | K29: =$F$18 -> 1800 | L29: 15.96432948 | N29: 12.36432948 | O29: 3.434535966
B30: Smart Meter Disposition Rider | D30: per kWh | G30: 1800 | H30: 0 | K30: =$F$18 -> 1800 | L30: 0 | N30: 0
B31: LRAM & SSM Rate Rider | D31: per kWh | G31: 1800 | H31: 0 | K31: 1800 | L31: 0 | N31: 0
B32: Stranded Meter Rate Rider | G32: 1800 | H32: =G32*F32 -> 0 | K32: 1800 | L32: =K32*J32 -> 0 | N32: =L32-H32 -> 0 | O32: =IF((H32)=0,"",(N32/H32)) -> 
B33: ='[19]J. DVA'!$B$147 -> Rate Rider Calculation for Accounts 1575 and 1576 | D33: per kWh | G33: =$F$18 -> 1800 | H33: =G33*F33 -> 0 | J33: ='[19]J. DVA'!F156 -> -0.002549576061 | K33: =$F$18 -> 1800 | L33: =K33*J33 -> -4.589236909 | N33: =L33-H33 -> -4.589236909 | O33: =IF((H33)=0,"",(N33/H33)) -> 
G34: 1800 | H34: =G34*F34 -> 0 | K34: 1800 | L34: =K34*J34 -> 0 | N34: =L34-H34 -> 0 | O34: =IF((H34)=0,"",(N34/H34)) -> 
G35: 1800 | H35: 0 | K35: 1800 | L35: 0 | N35: 0
G36: 1800 | H36: 0 | K36: 1800 | L36: 0 | N36: 0
G37: 1800 | H37: 0 | K37: 1800 | L37: 0 | N37: 0
G38: 1800 | H38: 0 | K38: 1800 | L38: 0 | N38: 0
B39: Sub-Total A (excluding pass through) | H39: =SUM(H23:H38) -> 47.23 | L39: =SUM(L23:L38) -> 50.99509257 | N39: 3.765092567 | O39: 0.07971824195
B40: ='[19]J. DVA'!$B$16 -> Rate Rider Calculation for Deferral / Variance Accounts Balances (excluding Global Adj.) | D40: per kWh | G40: 1800 | H40: =G40*F40 -> 0 | J40: ='[19]J. DVA'!F23 -> 0.0003518558776 | K40: 1800 | L40: =K40*J40 -> 0.6333405796 | N40: 0.6333405796
B41: ='[19]J. DVA'!$B$42 -> Rate Rider Calculation for Deferral / Variance Accounts Balances (excluding Global Adj.) - NON-WMP | D41: per kWh | G41: 1800 | H41: 0 | J41: ='[19]J. DVA'!F49 -> -0.0001611198572 | K41: 1800 | L41: -0.2900157429 | N41: -0.2900157429
B42: ='[19]J. DVA'!$B$68 -> Rate Rider Calculation for RSVA - Power - Global Adjustment | D42: per kWh | G42: 1800 | J42: 0 | K42: 1800 | L42: 0 | N42: 0
B43: ='[19]J. DVA'!$B$121 -> Rate Rider Calculation for Group 2 Accounts | D43: per kWh | G43: 1800 | J43: ='[19]J. DVA'!F128 -> 0.0001618234193 | K43: 1800 | L43: 0.2912821547 | N43: 0.2912821547
B44: ='[19]J. DVA'!$B$175 -> Rate Rider Calculation for Accounts 1568 | D44: per kWh | G44: 1800 | H44: 0 | J44: ='[19]J. DVA'!F184 -> 0.0001857443386 | K44: 1800 | L44: 0.3343398095 | N44: 0.3343398095
B45: Low Voltage Charges | D45: per kWh | F45: 0.001 | G45: 1800 | H45: 1.8 | J45: ='[4]4.12 PowerSupplExp'!$J$188 -> 0.001 | K45: 1800 | L45: 1.8 | N45: 0 | O45: 0
B46: Line Losses on Cost of Power | D46: per kWh | F46: =IF(ISBLANK(D16)=1, 0, IF(D16="TOU", 0.64*$F$56+0.18*$F$57+0.18*$F$58, IF(AND(D16="non-TOU", G60>0), F60,F59))) -> 0.10766 | G46: =$F$18*(1+$F$75)-$F$18 -> 145.8 | H46: 15.696828 | J46: =0.64*$F$56+0.18*$F$57+0.18*$F$58 -> 0.10766 | K46: =$F$18*(1+$J$75)-$F$18 -> 145.8 | L46: 15.696828 | N46: 0 | O46: 0
B47: Smart Meter Entity Charge | D47: per kWh | F47: 0.79 | G47: 1 | H47: 0.79 | J47: 0.79 | K47: 1 | L47: 0.79 | N47: 0
B48: Sub-Total B - Distribution (includes Sub-Total A) | H48: =SUM(H40:H47)+H39 -> 65.516828 | L48: =SUM(L40:L47)+L39 -> 70.25086737 | N48: 4.734039368 | O48: =IF((H48)=0,"",(N48/H48)) -> 0.07225684626
B49: RTSR - Network | D49: per kWh | F49: 0.0058 | G49: =F18*(1+F75) -> 1945.8 | H49: =G49*F49 -> 11.28564 | J49: ='[4]4.12 PowerSupplExp'!$O$61 -> 0.005804740693 | K49: =F18*(1+J75) -> 1945.8 | L49: =K49*J49 -> 11.29486444 | N49: 0.009224440189 | O49: 0.0008173608398
B50: RTSR - Line and Transformation Connection | D50: per kWh | F50: 0.004 | G50: =G49 -> 1945.8 | H50: =G50*F50 -> 7.7832 | J50: ='[4]4.12 PowerSupplExp'!$O$77 -> 0.003258290798 | K50: =K49 -> 1945.8 | L50: =K50*J50 -> 6.339982235 | N50: -1.443217765 | O50: -0.1854273004
B51: Sub-Total C - Delivery (including Sub-Total B) | H51: =SUM(H48:H50) -> 84.585668 | L51: =SUM(L48:L50) -> 87.88571404 | N51: 3.300046044 | O51: 0.03901424581
B52: Wholesale Market Service Charge (WMSC) | D52: per kWh | F52: 0.0036 | G52: =G50 -> 1945.8 | H52: =G52*F52 -> 7.00488 | J52: 0.0036 | K52: =K50 -> 1945.8 | L52: =K52*J52 -> 7.00488 | N52: 0 | O52: 0
B53: Rural and Remote Rate Protection (RRRP) | D53: per kWh | F53: 0.0013 | G53: =G50 -> 1945.8 | H53: 2.52954 | J53: 0.0013 | K53: =K50 -> 1945.8 | L53: 2.52954 | N53: 0 | O53: 0
B54: Standard Supply Service Charge | D54: Monthly | F54: 0.25 | G54: 1 | H54: 0.25 | J54: 0.25 | K54: 1 | L54: 0.25 | N54: 0 | O54: 0
B55: OEAP | D55: per kWh | F55: 0.0011 | G55: =F18 -> 1800 | H55: 1.98 | J55: 0.0011 | K55: =F18 -> 1800 | L55: 1.98 | N55: 0 | O55: 0
B56: TOU - Off Peak | D56: per kWh | F56: 0.083 | G56: =0.64*$F$18 -> 1152 | H56: 95.616 | J56: 0.083 | K56: =G56 -> 1152 | L56: 95.616 | N56: 0 | O56: 0
B57: TOU - Mid Peak | D57: per kWh | F57: 0.128 | G57: =0.18*$F$18 -> 324 | H57: 41.472 | J57: 0.128 | K57: =G57 -> 324 | L57: 41.472 | N57: 0 | O57: 0
B58: TOU - On Peak | D58: per kWh | F58: 0.175 | G58: =0.18*$F$18 -> 324 | H58: 56.7 | J58: 0.175 | K58: =G58 -> 324 | L58: 56.7 | N58: 0 | O58: 0
B59: Energy - RPP - Tier 1 | D59: per kWh | F59: 0.099 | G59: =IF(AND($T$1=1, F18>=600), 600, IF(AND($T$1=1, AND(F18<600, F18>=0)), F18, IF(AND($T$1=2, F18>=1000), 1000, IF(AND($T$1=2, AND(F18<1000, F18>=0)), F18)))) -> 600 | H59: =G59*F59 -> 59.4 | J59: 0.099 | K59: =G59 -> 600 | L59: =K59*J59 -> 59.4 | N59: 0 | O59: 0
B60: Energy - RPP - Tier 2 | D60: per kWh | F60: 0.116 | G60: =IF(AND($T$1=1, F18>=600), F18-600, IF(AND($T$1=1, AND(F18<600, F18>=0)), 0, IF(AND($T$1=2, F18>=1000), F18-1000, IF(AND($T$1=2, AND(F18<1000, F18>=0)), 0)))) -> 1200 | H60: =G60*F60 -> 139.2 | J60: 0.116 | K60: =G60 -> 1200 | L60: =K60*J60 -> 139.2 | N60: 0 | O60: 0
B62: Total Bill on TOU (before Taxes) | H62: =SUM(H52:H58,H51) -> 290.138088 | L62: =SUM(L52:L58,L51) -> 293.438134 | N62: =L62-H62 -> 3.300046044 | O62: =IF((H62)=0,"",(N62/H62)) -> 0.01137405318
B63: HST | F63: 0.13 | H63: =H62*F63 -> 37.71795144 | J63: 0.13 | L63: =L62*J63 -> 38.14695743 | N63: 0.4290059857 | O63: 0.01137405318
B64: Total Bill (including HST) | H64: =H62+H63 -> 327.8560394 | L64: =L62+L63 -> 331.5850915 | N64: 3.729052029 | O64: 0.01137405318
B65: Ontario Clean Energy Benefit 1 | H65: =ROUND(-H64*0.1,2) -> -32.79 | L65: =ROUND(-L64*0.1,2) -> -33.16 | N65: -0.37 | O65: 0.01128392803
B66: Total Bill on TOU (including OCEB) | H66: =H64+H65 -> 295.0660394 | L66: =L64+L65 -> 298.4250915 | N66: 3.359052029 | O66: 0.01138406858
B68: Total Bill on RPP (before Taxes) | H68: =SUM(H59:H60,H51,H52:H55) -> 294.950088 | L68: =SUM(L59:L60,L51,L52:L55) -> 298.250134 | N68: =L68-H68 -> 3.300046044 | O68: =IF((H68)=0,"",(N68/H68)) -> 0.01118848977
B69: HST | F69: 0.13 | H69: =H68*F69 -> 38.34351144 | J69: 0.13 | L69: =L68*J69 -> 38.77251743 | N69: =L69-H69 -> 0.4290059857 | O69: =IF((H69)=0,"",(N69/H69)) -> 0.01118848977
B70: Total Bill (including HST) | H70: =H68+H69 -> 333.2935994 | L70: =L68+L69 -> 337.0226515 | N70: =L70-H70 -> 3.729052029 | O70: =IF((H70)=0,"",(N70/H70)) -> 0.01118848977
B71: Ontario Clean Energy Benefit 1 | H71: =ROUND(-H70*0.1,2) -> -33.33 | L71: =ROUND(-L70*0.1,2) -> -33.7 | N71: =L71-H71 -> -0.37 | O71: =IF((H71)=0,"",(N71/H71)) -> 0.01110111011
B72: Total Bill on RPP (including OCEB) | H72: =SUM(H70:H71) -> 299.9635994 | L72: =SUM(L70:L71) -> 303.3226515 | N72: =L72-H72 -> 3.359052029 | O72: =IF((H72)=0,"",(N72/H72)) -> 0.01119819883
B75: Loss Factor (%) | F75: 0.081 | J75: 0.081

Sheet lists (hidden)
B1: Embedded Distributor | C1: =COUNTA(B1:B17) -> 4 | I1: A Standby Service Charge will be applied for a month where standby power is not provided. The applicable rate is the approved Distribution Volumetric Rate of the applicable service class and is applied to gross metered demand or contracted amount, whichever is greater. A monthly administration charge of $200, for simple metering arrangements, or $500, for complex metering arrangements, will also be applied. | L1: Loss Factors | N1: Units | O1: Units1 | P1: Units2 | Z1: Account History | AA1: Account set up charge/change of occupancy charge (plus credit agency costs if applicable) | AB1: Total Loss Factor – Embedded Distributor – Hydro One Networks Inc. | AL1: Algoma Power Inc. | AM1: Algoma Power Inc. | AO1: DISTRIBUTED GENERATION [DGEN] | AP1: kW | AT1: Sub-Total: Delivery (Distribution and Retail Transmission)
A2: DISTRIBUTED GENERATION [DGEN] | B2: General Service 3,000 to 4,999 kW | I2: Distribution Volumetric Rate | L2: Total Loss Factor – Primary Metered Customer | N2: $ | O2: $/kWh | P2: $ | Z2: Account set up charge/change of occupancy charge | AA2: Administrative Billing Charge | AB2: Total Loss Factor – Primary Metered Customer | AL2: Atikokan Hydro Inc. | AM2: Atikokan Hydro Inc. | AO2: EMBEDDED DISTRIBUTOR | AP2: kW | AT2: Wholesale Market Service Rate | AW2: =AU2*AV2 -> 0 | AX2: =AU2 -> 0 | AY2: 0 | AZ2: =AX2*AY2 -> 0 | BB2: =AZ2-AW2 -> 0 | BC2: =BB2/AW2 -> 
A3: EMBEDDED DISTRIBUTOR | B3: General Service 1,000 to 4,999 kW | I3: Distribution Volumetric Rate - $/kW of contracted amount | L3: Total Loss Factor – Primary Metered Customer < 5,000 kW | N3: $/kWh | O3: $/kW | P3: % | W3: MSC | Z3: Account set up charge/change of occupancy charge (plus credit agency costs if applicable – Residential) | AA3: Bell Canada Pole Rentals | AB3: Total Loss Factor – Primary Metered Customer < 5,000 kW | AL3: Attawapiskat Power Corp. | AM3: Attawapiskat Power Corp. | AO3: EMBEDDED DISTRIBUTOR | AP3: kW | AT3: Rural Rate Protection Charge | AW3: =AU3*AV3 -> 0 | AX3: 0 | AY3: 0 | AZ3: =AX3*AY3 -> 0 | BB3: =AZ3-AW3 -> 0 | BC3: =BB3/AW3 -> 
A4: EMBEDDED DISTRIBUTOR | B4: General Service Equal To Or Greater Than 1,500 kW - Interval Metered | I4: Distribution Wheeling Service Rate | L4: Total Loss Factor – Primary Metered Customer > 5,000 kW | N4: $/kW | O4: $/kVA | W4: SM_Rate_Adder | Z4: Account set up charge/change of occupancy charge (plus credit agency costs if applicable) | AA4: Clearance Pole Attachment charge $/pole/year | AB4: Total Loss Factor – Primary Metered Customer > 5,000 kW | AL4: Bluewater Power Distribution Corporation | AM4: Bluewater Power Distribution Corporation | AO4: FARMS - SINGLE PHASE ENERGY-BILLED [F1] | AP4: kWh | AT4: Standard Supply Service – Administration Charge (if applicable) | AW4: =AU4*AV4 -> 0 | AX4: 0 | AY4: 0 | AZ4: =AX4*AY4 -> 0 | BB4: =AZ4-AW4 -> 0 | BC4: =BB4/AW4 -> 
A5: FARMS - SINGLE PHASE ENERGY-BILLED [F1] | I5: Electricity Rate | L5: Total Loss Factor – Secondary Metered Customer | N5: $/kVA | W5: MSC_Rate_Rider_ | Z5: Arrears certificate | AA5: Collection of account charge – no disconnection | AB5: Total Loss Factor – Secondary Metered Customer | AL5: Brant County Power Inc. | AM5: Brant County Power Inc. | AO5: FARMS - THREE PHASE ENERGY-BILLED [F3] | AP5: kWh | AT5: Sub-Total: Regulatory | AW5: =SUM(AW2:AW4) -> 0 | AZ5: =SUM(AZ2:BA4) -> 0 | BB5: =AZ5-AW5 -> 0 | BC5: =BB5/AW5 -> 
A6: FARMS - THREE PHASE ENERGY-BILLED [F3] | I6: Electricity Rate - All Additional kWh | L6: Total Loss Factor – Secondary Metered Customer < 5,000 kW | W6: VC | Z6: Arrears certificate (credit reference) | AA6: Collection of account charge – no disconnection – after regular hours | AB6: Total Loss Factor – Secondary Metered Customer < 5,000 kW | AL6: Brantford Power Inc. | AM6: Brantford Power Inc. | AO6: GENERAL SERVICE - COMMERCIAL | AP6: kW | AT6: Debt Retirement Charge (DRC) | AW6: =AU6*AV6 -> 0 | AX6: =AU6 -> 0 | AY6: =AV6 -> 0 | AZ6: =AX6*AY6 -> 0 | BB6: =AZ6-AW6 -> 0 | BC6: =BB6/AW6 -> 
A7: GENERAL SERVICE - COMMERCIAL | I7: Electricity Rate - First 250 kWh | AL7: Burlington Hydro Inc. | AM7: Burlington Hydro Inc. | AO7: GENERAL SERVICE - INSTITUTIONAL | AP7: kW
A8: GENERAL SERVICE - INSTITUTIONAL | I8: Electricity Rate -All Additional kWh | L8: Total Loss Factor – Secondary Metered Customer > 5,000 kW | W8: VC_Rate_Rider_ | Z8: Charge to certify cheque | AA8: Collection of account charge – no disconnection - during regular business hours | AB8: Total Loss Factor – Secondary Metered Customer > 5,000 kW | AL8: Cambridge and North Dumfries Hydro Inc. | AM8: Cambridge and North Dumfries Hydro Inc. | AO8: GENERAL SERVICE 1,000 TO 2,999 KW | AP8: kW | AT8: Total Bill on RPP (before taxes) | BB8: =AZ8-AW8 -> 0
A9: GENERAL SERVICE 1,000 TO 2,999 KW | I9: Electricity Rate First 1,000 kWh | L9: Distribution Loss Factor - Secondary Metered Customer < 5,000 kW | W9: VC_GA_Rate_Rider_kW_ | Z9: Collection of Account Charge – No Disconnection | AA9: Collection of account charge – no disconnection – during regular hours | AL9: Canadian Niagara Power Inc. | AM9: Canadian Niagara Power Inc. - Eastern Ontario Power | AO9: GENERAL SERVICE 1,000 TO 4,999 KW - INTERVAL METERS | AP9: kW | AT9: HST | AW9: =AV9*AW8 -> 0 | AY9: =AV9 -> 0 | AZ9: =AY9*AZ8 -> 0 | BB9: =AZ9-AW9 -> 0 | BC9: =BB9/AW9 -> 
A10: GENERAL SERVICE 1,000 TO 4,999 KW | I10: Electricity Rate First 25,000 kWh | L10: Distribution Loss Factor - Secondary Metered Customer > 5,000 kW | W10: VC_LV_Rate | Z10: Credit Card Convenience Charge | AA10: Collection/Disconnection/Load Limiter/Reconnection – if in Community | AL10: Centre Wellington Hydro Ltd. | AM10: Canadian Niagara Power Inc. - Fort Erie | AO10: GENERAL SERVICE 1,000 TO 4,999 KW (CO-GENERATION) | AP10: kW | AT10: Total Bill (including HST) | AW10: =AW9+AW8 -> 0 | AZ10: =AZ9+AZ8 -> 0 | BB10: =AZ10-AW10 -> 0 | BC10: =BB10/AW10 -> 
A11: GENERAL SERVICE 1,000 TO 4,999 KW - INTERVAL METERS | I11: Electricity Rate First 6,000 kWh | L11: Distribution Loss Factor - Primary Metered Customer < 5,000 kW | W11: RTSR_Network | Z11: Credit check (plus credit agency costs) | AA11: Credit Card Convenience Charge | AL11: Chapleau Public Utilities Corporation | AM11: Canadian Niagara Power Inc. - Port Colborne Hydro Inc. | AO11: GENERAL SERVICE 1,000 TO 4,999 KW | AP11: kW | AT11: Ontario Clean Energy Benefit (OCEB) | AW11: =-0.1*AW10 -> 0 | AY11: =AV11 -> 0 | AZ11: =-0.1*AZ10 -> 0 | BB11: =AZ11-AW11 -> 0 | BC11: =BB11/AW11 -> 
A12: GENERAL SERVICE 1,000 TO 4,999 KW (CO-GENERATION) | I12: Electricity Rate Next 1,500 kWh | L12: Distribution Loss Factor - Primary Metered Customer > 5,000 kW | W12: RTSR_Connection | Z12: Credit reference Letter | AA12: Disconnect/Reconnect at meter – after regular hours | AL12: Clinton Power Corporation | AM12: Centre Wellington Hydro Ltd. | AO12: GENERAL SERVICE 1,500 TO 4,999 KW | AP12: kW | AT12: Total Bill on RPP (including OCEB) | AW12: =AW10+AW11 -> 0 | AZ12: =AZ10+AZ11 -> 0 | BB12: =AZ12-AW12 -> 0 | BC12: =BB12/AW12 -> 
A13: GENERAL SERVICE 1,500 TO 4,999 KW | I13: General Service 1,500 to 4,999 kW customer | AL13: COLLUS Power Corporation | AM13: Chapleau Public Utilities Corporation | AO13: GENERAL SERVICE 2,500 TO 4,999 KW | AP13: kW
A14: GENERAL SERVICE 2,500 TO 4,999 KW | I14: General Service 50 to 1,499 kW customer | L14: Total Loss Factor - Embedded Distributor | W14: RTSR_Network_Interval | Z14: Credit reference/credit check (plus credit agency costs – General Service) | AA14: Disconnect/Reconnect at meter – during regular hours | AL14: Cooperative Hydro Embrun Inc. | AM14: Clinton Power Corporation | AO14: GENERAL SERVICE 3,000 TO 4,999 KW - INTERMEDIATE USE | AP14: kW | AT14: Total Bill on TOU (before taxes) | BB14: =AZ14-AW14 -> 0
A15: GENERAL SERVICE 3,000 TO 4,999 KW | I15: General Service Large Use customer | L15: Total Loss Factor – Embedded Distributor – Hydro One Networks Inc. | W15: RTSR_Connection_Interval | Z15: Credit Reference/credit check (plus credit agency costs) | AA15: Disconnect/Reconnect at pole – after regular hours | AL15: E.L.K. Energy Inc. | AM15: COLLUS Power Corporation | AO15: GENERAL SERVICE 3,000 TO 4,999 KW - INTERVAL METERED | AP15: kW | AT15: HST | AW15: =AV15*AW14 -> 0 | AY15: =AV15 -> 0 | AZ15: =AY15*AZ14 -> 0 | BB15: =AZ15-AW15 -> 0 | BC15: =BB15/AW15 -> 
A16: GENERAL SERVICE 3,000 TO 4,999 KW - INTERMEDIATE USE | I16: Green Energy Act Initiatives Funding Adder - effective until the date of the next cost of service-based rate order | W16: RTSR_Network_Interval_GR1000kW | Z16: Dispute Test – Commercial self contained -- MC | AA16: Disconnect/Reconnect at pole – during regular hours | AL16: Enersource Hydro Mississauga Inc. | AM16: Cooperative Hydro Embrun Inc. | AO16: GENERAL SERVICE 3,000 TO 4,999 KW - TIME OF USE | AP16: kW | AT16: Total Bill (including HST) | AW16: =AW15+AW14 -> 0 | AZ16: =AZ15+AZ14 -> 0 | BB16: =AZ16-AW16 -> 0 | BC16: =BB16/AW16 -> 
A17: GENERAL SERVICE 3,000 TO 4,999 KW - INTERVAL METERED | I17: Green Energy Act Plan Funding Adder | W17: RTSR_Connection_Interval_GR1000kW | Z17: Dispute Test – Commercial TT -- MC | AA17: Disconnect/Reconnect Charge – At Meter – After Hours | AL17: Entegrus Powerlines Inc. | AM17: E.L.K. Energy Inc. | AO17: GENERAL SERVICE 3,000 TO 4,999 KW | AP17: kW | AT17: Ontario Clean Energy Benefit (OCEB) | AW17: =-0.1*AW16 -> 0 | AY17: =AV17 -> 0 | AZ17: =-0.1*AZ16 -> 0 | BB17: =AZ17-AW17 -> 0 | BC17: =BB17/AW17 -> 
A18: GENERAL SERVICE 3,000 TO 4,999 KW - TIME OF USE | I18: Green Energy Act Plan Funding Adder - effective April 1, 2013 until March 31, 2014 | W18: RTSR_Line_Connection | Z18: Dispute Test – Residential | AA18: Disconnect/Reconnect Charge – At Meter – During Regular Hours | AL18: ENWIN Utilities Ltd. | AM18: Enersource Hydro Mississauga Inc. | AO18: GENERAL SERVICE 50 TO 1,000 KW - INTERVAL METERS | AP18: kW | AT18: Total Bill on TOU (including OCEB) | AW18: =AW16+AW17 -> 0 | AZ18: =AZ16+AZ17 -> 0 | BB18: =AZ18-AW18 -> 0 | BC18: =BB18/AW18 -> 
A19: GENERAL SERVICE 50 TO 1,000 KW | I19: Green Energy Act Plan Funding Adder - effective April 1, 2014 until March 31, 2015 | W19: RTSR_Transformer_Connection | Z19: Duplicate Invoices for previous billing | AA19: Disconnect/Reconnect Charge – At Pole – After Hours | AL19: Erie Thames Powerlines Corporation | AM19: Entegrus Powerlines Inc. - Chatham-Kent | AO19: GENERAL SERVICE 50 TO 1,000 KW - NON INTERVAL METERS | AP19: kW
A20: GENERAL SERVICE 50 TO 1,000 KW - INTERVAL METERS | I20: ICM Rate Rider (2014) - in effect until the effective date of the next cost of service rates | W20: WMSR | Z20: Easement Letter | AA20: Disconnect/Reconnect Charge – At Pole – During Regular Hours | AL20: Espanola Regional Hydro Distribution Corporation | AM20: Entegrus Powerlines Inc. - Dutton | AO20: GENERAL SERVICE 50 TO 1,000 KW | AP20: kW
A21: GENERAL SERVICE 50 TO 1,000 KW - NON INTERVAL METERS | I21: Low Voltage Service Charge | W21: RRRP | Z21: Income Tax Letter | AA21: Disconnect/Reconnect Charges for non payment of account - At Meter After Hours | AL21: Essex Powerlines Corporation | AM21: Entegrus Powerlines Inc. - Newbury | AO21: GENERAL SERVICE 50 TO 1,499 KW - INTERVAL METERED | AP21: kW
A22: GENERAL SERVICE 50 TO 1,499 KW | I22: Low Voltage Service Rate | W22: SPC | Z22: Interval Meter Interrogation | AA22: Disconnect/Reconnect charges for non payment of account – at meter after regular hours | AL22: Festival Hydro Inc. | AM22: Entegrus Powerlines Inc. - Strathroy, Mounth Brydges & Parkhill | AO22: GENERAL SERVICE 50 TO 1,499 KW | AP22: kW
A23: GENERAL SERVICE 50 TO 1,499 KW - INTERVAL METERED | I23: Low Voltage Volumetric Rate | W23: DRC | Z23: Interval meter request change | AA23: Disconnect/Reconnect Charges for non payment of account - At Meter During Regular Hours | AL23: Fort Albany Power Corporation | AM23: ENWIN Utilities Ltd. | AO23: GENERAL SERVICE 50 TO 2,499 KW | AP23: kW
A24: GENERAL SERVICE 50 TO 2,499 KW | I24: LRAM Rate Rider - Effective Until April 30, 2015 | W24: SSS | Z24: Legal letter | AA24: Disconnect/Reconnect charges for non payment of account – at meter during regular hours | AL24: Fort Frances Power Corporation | AM24: Erie Thames Powerlines Corporation | AO24: GENERAL SERVICE 50 TO 2,999 KW - INTERVAL METERED | AP24: kW
A25: GENERAL SERVICE 50 TO 2,999 KW | I25: Minimum Distribution Charge - per KW of maximum billing demand in the previous 11 months | W25: SFLF | Z25: Legal letter charge | AA25: Disconnect/Reconnect charges for non payment of account – at pole after regular hours | AL25: Greater Sudbury Hydro Inc. | AM25: Espanola Regional Hydro Distribution Corporation | AO25: GENERAL SERVICE 50 TO 2,999 KW - TIME OF USE | AP25: kW
A26: GENERAL SERVICE 50 TO 2,999 KW - INTERVAL METERED | B26: January | I26: Monthly Distribution Wheeling Service Rate - Dedicated LV Line | W26: DLF_Secondary_LT_5000kW | Z26: Meter dispute charge plus Measurement Canada fees (if meter found correct) | AA26: Disconnect/Reconnect charges for non payment of account – at pole during regular hours | AL26: Grimsby Power Inc. | AM26: Essex Powerlines Corporation | AO26: GENERAL SERVICE 50 TO 2,999 KW | AP26: kW
A27: GENERAL SERVICE 50 TO 2,999 KW - TIME OF USE | B27: February | I27: Monthly Distribution Wheeling Service Rate - Hydro One Networks | W27: DLF_Secondary_GT_5000kW | Z27: Notification charge | AA27: Disconnect/Reconnection for >300 volts - after regular hours | AL27: Guelph Hydro Electric Systems Inc. | AM27: Festival Hydro Inc. | AO27: GENERAL SERVICE 50 TO 4,999 KW - INTERVAL METERED | AP27: kW
A28: GENERAL SERVICE 50 TO 4,999 KW | B28: March | I28: Monthly Distribution Wheeling Service Rate - Shared LV Line | W28: DLF_Primary_LT_5000kW | Z28: Pulling Post Dated Cheques | AA28: Disconnect/Reconnection for >300 volts - during regular hours | AL28: Haldimand County Hydro Inc. | AM28: Festival Hydro Inc. - Hensall | AO28: GENERAL SERVICE 50 TO 4,999 KW - TIME OF USE | AP28: kW
A29: GENERAL SERVICE 50 TO 4,999 KW - INTERVAL METERED | B29: April | I29: Monthly Distribution Wheeling Service Rate - Waterloo North Hydro | W29: DLF_Primary_GT_5000kW | Z29: Request for other billing information | AA29: Disposal of Concrete Poles | AL29: Halton Hills Hydro Inc. | AM29: Fort Albany Power Corporation | AO29: GENERAL SERVICE 50 TO 4,999 KW (COGENERATION) | AP29: kW
A30: GENERAL SERVICE 50 TO 4,999 KW - TIME OF USE | B30: May | I30: Rate Rider for Application of Tax Change - effective until April 30, 2015 | W30: TLF_Secondary_LT_5000kW | Z30: Returned cheque (plus bank charges) | AA30: Dispute Test – Commercial TT -- MC | AL30: Hearst Power Distribution Company Limited | AM30: Fort Frances Power Corporation | AO30: GENERAL SERVICE 50 TO 4,999 KW (FORMERLY TIME OF USE) | AP30: kW
A31: GENERAL SERVICE 50 TO 4,999 KW (COGENERATION) | B31: June | I31: Rate Rider for Application of Tax Change - effective until December 31, 2014 | W31: TLF_Secondary_GT_5000kW | Z31: Returned cheque charge (plus bank charges) | AA31: Install/Remove load control device – after regular hours | AL31: Horizon Utilities Corporation | AM31: Greater Sudbury Hydro Inc. | AO31: GENERAL SERVICE 50 TO 4,999 KW | AP31: kW
A32: GENERAL SERVICE 50 TO 4,999 KW (FORMERLY TIME OF USE) | B32: July | I32: Rate Rider for Application of Tax Change (2014) - effective until April 30, 2015 | W32: TLF_Primary_LT_5000kW | Z32: Special Billing Service (aggregation) | AA32: Install/Remove load control device – during regular hours | AL32: Hydro 2000 Inc. | AM32: Grimsby Power Inc. | AO32: GENERAL SERVICE 50 TO 499 KW | AP32: kW
A33: GENERAL SERVICE 50 TO 499 KW | B33: August | I33: Rate Rider for Application of Tax Change (per connection) - effective until April 30, 2015 | W33: TLF_Primary_GT_5000kW | Z33: Special Billing Service (sub-metering charge per meter) | AA33: Interval Meter Interrogation | AL33: Hydro Hawkesbury Inc. | AM33: Guelph Hydro Electric Systems Inc. | AO33: GENERAL SERVICE 50 TO 699 KW | AP33: kW
A34: GENERAL SERVICE 50 TO 699 KW | B34: September | I34: Rate Rider for CGAAP Accounting Changes (2013) - effective until April 30, 2017 | W34: TLF_EmbeddedDistributor | Z34: Special meter reads | AA34: Interval Meter Load Management Tool Charge $/month | AL34: Hydro One Brampton Networks Inc. | AM34: Haldimand County Hydro Inc. | AO34: GENERAL SERVICE 50 TO 999 KW - INTERVAL METERED | AP34: kW
A35: GENERAL SERVICE 50 TO 999 KW | B35: October | I35: Rate Rider for Deferral/Variance Account (2012) - effective unitl April 30, 2016 | Z35: Statement of Account | AA35: Interval meter request change | AL35: Hydro One Networks Inc. | AM35: Halton Hills Hydro Inc. | AO35: GENERAL SERVICE 50 TO 999 KW | AP35: kW
A36: GENERAL SERVICE 50 TO 999 KW - INTERVAL METERED | B36: November | I36: Rate Rider for Deferral/Variance Account Disposition – effective until April 30, 2015 | Z36: Unprocessed Payment Charge (plus bank charges) | AA36: Late Payment – per annum | AL36: Hydro Ottawa Limited | AM36: Hearst Power Distribution Company Limited | AO36: GENERAL SERVICE 500 TO 4,999 KW | AP36: kW
A37: GENERAL SERVICE 500 TO 4,999 KW | B37: December | I37: Rate Rider for Deferral/Variance Account Disposition (2012) - effective until April 30, 2016 | AA37: Late Payment – per month | AL37: Innisfil Hydro Distribution Systems Limited | AM37: Horizon Utilities Corporation | AO37: GENERAL SERVICE 700 TO 4,999 KW | AP37: kW
A38: GENERAL SERVICE 700 TO 4,999 KW | I38: Rate Rider for Deferral/Variance Account Disposition (2013) - effective until April 30, 2014 | AA38: Layout fees | AL38: Kashechewan Power Corporation | AM38: Hydro 2000 Inc. | AO38: GENERAL SERVICE DEMAND BILLED (50 KW AND ABOVE) [GSD] | AP38: kW
A39: GENERAL SERVICE DEMAND BILLED (50 KW AND ABOVE) [GSD] | I39: Rate Rider for Deferral/Variance Account Disposition (2014) - effective until April 28, 2016 | AA39: Meter dispute charge plus Measurement Canada fees (if meter found correct) | AL39: Kenora Hydro Electric Corporation Ltd. | AM39: Hydro Hawkesbury Inc. | AO39: GENERAL SERVICE ENERGY BILLED (LESS THAN 50 KW) [GSE-METERED] | AP39: kWh
A40: GENERAL SERVICE ENERGY BILLED (LESS THAN 50 KW) [GSE-METERED] | I40: Rate Rider for Deferral/Variance Account Disposition (2014) - effective until April 30, 2015 | AA40: Meter Interrogation Charge | AL40: Kingston Hydro Corporation | AM40: Hydro One Brampton Networks Inc. | AO40: GENERAL SERVICE ENERGY BILLED (LESS THAN TO 50 KW) [GSE-UNMETERED] | AP40: kWh
A41: GENERAL SERVICE ENERGY BILLED (LESS THAN TO 50 KW) [GSE-UNMETERED] | I41: Rate Rider for Deferral/Variance Account Disposition (2014) - effective until Decembeer 31, 2015 | AA41: Missed Service Appointment | AL41: Kitchener-Wilmot Hydro Inc. | AM41: Hydro One Networks Inc. | AO41: GENERAL SERVICE EQUAL TO OR GREATER THAN 1,500 KW - INTERVAL METERED | AP41: kW
A42: GENERAL SERVICE EQUAL TO OR GREATER THAN 1,500 KW | I42: Rate Rider for Deferral/Variance Account Disposition (2014) - effective until December 30, 2015 | AA42: Norfolk Pole Rentals – Billed | AL42: Lakefront Utilities Inc. | AM42: Hydro Ottawa Limited | AO42: GENERAL SERVICE EQUAL TO OR GREATER THAN 1,500 KW | AP42: kW
A43: GENERAL SERVICE EQUAL TO OR GREATER THAN 1,500 KW - INTERVAL METERED | I43: Rate Rider for Deferral/Variance Account Disposition (2014) - effective until December 31, 2014 | AA43: Optional Interval/TOU Meter charge $/month | AL43: Lakeland Power Distribution Ltd. | AM43: Innisfil Hydro Distribution Systems Limited | AO43: GENERAL SERVICE GREATER THAN 1,000 KW | AP43: kW
A44: GENERAL SERVICE GREATER THAN 1,000 KW | I44: Rate Rider for Deferral/Variance Account Disposition (2014) - effective until December 31, 2015 | AA44: Overtime Locate | AL44: London Hydro Inc. | AM44: Kashechewan Power Corporation | AO44: GENERAL SERVICE INTERMEDIATE 1,000 TO 4,999 KW | AP44: kW
A45: GENERAL SERVICE GREATER THAN 50 kW - WMP | I45: Rate Rider for Deferral/Variance Account Dispositon (2012) - effective until April 30, 2016 | AA45: Owner Requested Disconnection/Reconnection – after regular hours | AL45: Midland Power Utility Corporation | AM45: Kenora Hydro Electric Corporation Ltd. | AO45: GENERAL SERVICE INTERMEDIATE RATE CLASS 1,000 TO 4,999 KW (FORMERLY GENERAL SERVICE > 50 KW CUSTOMERS) | AP45: kW
A46: GENERAL SERVICE INTERMEDIATE 1,000 TO 4,999 KW | I46: Rate Rider for Disposition of Accounting Changes Under CGAAP Account 1576 - effective until April 30, 2016 | AA46: Owner Requested Disconnection/Reconnection – during regular hours | AL46: Milton Hydro Distribution inc. | AM46: Kingston Hydro Corporation | AO46: GENERAL SERVICE INTERMEDIATE RATE CLASS 1,000 TO 4,999 KW (FORMERLY LARGE USE CUSTOMERS) | AP46: kW
A47: GENERAL SERVICE INTERMEDIATE RATE CLASS 1,000 TO 4,999 KW (FORMERLY GENERAL SERVICE > 50 KW CUSTOMERS) | I47: Rate Rider for Disposition of Deferral/Variance Accounts (2010) - effective until December 31, 2014 | AA47: Returned cheque (plus bank charges) | AL47: Newmarket - Tay Power Distribution Ltd. | AM47: Kitchener-Wilmot Hydro Inc. | AO47: GENERAL SERVICE LESS THAN 50 KW - SINGLE PHASE ENERGY-BILLED [G1] | AP47: kWh
A48: GENERAL SERVICE INTERMEDIATE RATE CLASS 1,000 TO 4,999 KW (FORMERLY LARGE USE CUSTOMERS) | I48: Rate Rider for Disposition of Deferral/Variance Accounts (2011) - effective until April 30, 2015 | AA48: Rural system expansion / line connection fee | AL48: Niagara Peninsula Energy Inc. | AM48: Lakefront Utilities Inc. | AO48: GENERAL SERVICE LESS THAN 50 KW - THREE PHASE ENERGY-BILLED [G3] | AP48: kWh
A49: GENERAL SERVICE LESS THAN 50 KW | I49: Rate Rider for Disposition of Deferral/Variance Accounts (2011) - effective until April 30, 2016 | AA49: Same Day Open Trench | AL49: Niagara-on-the-Lake Hydro Inc. | AM49: Lakeland Power Distribution Ltd. | AO49: GENERAL SERVICE LESS THAN 50 KW - TRANSMISSION CLASS ENERGY-BILLED [T] | AP49: kWh
A50: GENERAL SERVICE LESS THAN 50 KW - SINGLE PHASE ENERGY-BILLED [G1] | I50: Rate Rider for Disposition of Deferral/Variance Accounts (2012) - effective until April 30, 2014 | AA50: Scheduled Day Open Trench | AL50: Norfolk Power Distribution Inc. | AM50: London Hydro Inc. | AO50: GENERAL SERVICE LESS THAN 50 KW - URBAN ENERGY-BILLED [UG] | AP50: kWh
A51: GENERAL SERVICE LESS THAN 50 KW - THREE PHASE ENERGY-BILLED [G3] | I51: Rate Rider for Disposition of Deferral/Variance Accounts (2012) - effective until April 30, 2015 | AA51: Service call – after regular hours | AL51: North Bay Hydro Distribution Limited | AM51: Midland Power Utility Corporation | AO51: GENERAL SERVICE LESS THAN 50 KW | AP51: kWh
A52: GENERAL SERVICE LESS THAN 50 KW - TRANSMISSION CLASS ENERGY-BILLED [T] | I52: Rate Rider for Disposition of Deferral/Variance Accounts (2012) - effective until April 30, 2016 | AA52: Service call – customer owned equipment | AL52: Northern Ontario Wires Inc. | AM52: Milton Hydro Distribution inc. | AO52: GENERAL SERVICE SINGLE PHASE - G1 | AP52: kW
A53: GENERAL SERVICE LESS THAN 50 KW - URBAN ENERGY-BILLED [UG] | I53: Rate Rider for Disposition of Deferral/Variance Accounts (2012) - effective until August 31, 2014 | AA53: Service Call – Customer-owned Equipment – After Regular Hours | AL53: Oakville Hydro Electricity Distribution Inc. | AM53: Newmarket - Tay Power Distribution Ltd. - Newmarket | AO53: GENERAL SERVICE THREE PHASE - G3 | AP53: kW
A54: GENERAL SERVICE SINGLE PHASE - G1 | I54: Rate Rider for Disposition of Deferral/Variance Accounts (2012) - effective until December 31, 2015 | AA54: Service Call – Customer-owned Equipment – During Regular Hours | AL54: Orangeville Hydro Limited | AM54: Newmarket - Tay Power Distribution Ltd. - Tay | AO54: INTERMEDIATE USERS | AP54: kW
